Service Area Categorisation,Service Division Categorisation,Responsible Unit,Expenses Type,Expenses Sub-Type,Detailed Expenses Type,Date,Transaction Number,Amount,Capital/Revenue,Supplier name
,No FE Detail,Ursuline  - Payroll Contract,Fund Balances,,Other Deductions,28/06/2011,1,"54,456.32",Revenue,TEACHERS PENSIONS AGENCY
,No FE Detail,Wimbledon College,Fund Balances,Funded by Other grants & contr,Extl Payees Monthly,28/06/2011,2,"59,268.95",Revenue,TEACHERS PENSIONS AGENCY
,No FE Detail,Payroll Summary Account,Fund Balances,Funded by Other grants & contr,Extl Payees Monthly,28/06/2011,3,"733,589.22",Revenue,TEACHERS PENSIONS AGENCY
Childrens & Education Services,Youth Service,Phipps Bridge Yth Ctre,Premises Related Expenditure,Cleaning and Domestic Supplies,Cleaning Services,01/06/2011,4,616.56,Revenue,JULIUS RUTHERFOORD & CO LTD
Housing Services,Homelessness,Homelessness Prevention,Transfer Payments,Housing Benefits,Rent Deposits,02/06/2011,5,849.98,Revenue,REDACTED
Adult Social Care,Older People 65&Over inc OP-MH,OP East - Nursing Care,Third Party Payments,Private Contractors,Miscellaneous Agency Services,02/06/2011,6,"1,308.97",Revenue,KENWYN CARE HOME
Adult Social Care,Older People 65&Over inc OP-MH,OP East - Nursing Care,Third Party Payments,Private Contractors,Miscellaneous Agency Services,02/06/2011,7,"1,709.28",Revenue,KENWYN CARE HOME
Adult Social Care,Older People 65&Over inc OP-MH,OP East - Nursing Care,Third Party Payments,Private Contractors,Miscellaneous Agency Services,02/06/2011,8,"1,710.65",Revenue,KENWYN CARE HOME
Housing Services,Homelessness,Homelessness Prevention,Transfer Payments,Housing Benefits,Rent Deposits,03/06/2011,9,824.98,Revenue,REDACTED
,No FE Detail,Payroll Summary Account,Fund Balances,Funded by Other grants & contr,Advances- Chqs Drawn,03/06/2011,10,690.00,Revenue,REDACTED
,No FE Detail,Payroll Summary Account,Fund Balances,Funded by Other grants & contr,Replacements,03/06/2011,11,802.60,Revenue,REDACTED
Central Services,Retiremt Benefit -Curtailments,Pension and Redundancy Costs,Employees,Indirect Employee Expenses,Severance-Creditors,03/06/2011,12,"27,000.00",Revenue,REDACTED
Housing Services,Homelessness,Homelessness Prevention,Transfer Payments,Housing Benefits,Rent Deposits,06/06/2011,13,"1,300.00",Revenue,FAIRFAX LETTINGS
Childrens & Education Services,Other Ch's & Family Services,CL Setting Up Home Allowance,Third Party Payments,Private Contractors,Miscellaneous Agency Services,08/06/2011,14,"1,445.45",Revenue,REDACTED
Housing Services,Homelessness,Homelessness Prevention,Transfer Payments,Housing Benefits,Rent Deposits,06/06/2011,15,824.98,Revenue,T2M.COM(UK)LTD
Childrens & Education Services,Other Ch's & Family Services,CL Leaving Care/Supp Lodgings,Third Party Payments,Private Contractors,Private Tenant/Landlord,06/06/2011,16,"1,220.00",Revenue,REDACTED
Central Services,Fully rechargeable Overheads,Legal Services,Supplies and Services,Services,Court Fees,07/06/2011,17,745.00,Revenue,REDACTED
Central Services,Fully rechargeable Overheads,Democratic Services,Supplies and Services,Expenses,Members Expenses,08/06/2011,18,595.00,Revenue,INFORMATION COMMISSIONER
,No FE Detail,Payroll Summary Account,Fund Balances,Funded by Other grants & contr,Advances- Chqs Drawn,07/06/2011,19,516.26,Revenue,REDACTED
Cultural Env Reg&Plan Services,Open Spaces,Wimbledon Tennis Fortnight,Customer and client receipts,Charges,Misc Exps Recovered X,08/06/2011,20,"3,700.00",Revenue,REDACTED
Central Services,Fully rechargeable Overheads,Payroll,Supplies and Services,Expenses,Compensation Payments,10/06/2011,21,"15,000.00",Revenue,HAYS SPECIALIST RECRUITMENT LT
,No FE Detail,Payroll Summary Account,Fund Balances,Funded by Other grants & contr,Salary Sacrifice,10/06/2011,22,586.45,Revenue,ACCOR SERVICES
,No FE Detail,Payroll Summary Account,Fund Balances,Funded by Other grants & contr,Salary Sacrifice,10/06/2011,23,"10,662.67",Revenue,ACCOR SERVICES
Central Services,Fully rechargeable Overheads,Legal Services,Supplies and Services,Services,Court Fees,10/06/2011,24,"2,225.00",Revenue,REDACTED
,No FE Detail,Annual Season Ticket Loans,Fund Balances,,Payments X,10/06/2011,25,"2,012.00",Revenue,SOUTH WEST TRAINS
Housing Services,Homelessness,Homelessness Prevention,Transfer Payments,Housing Benefits,Sanctuary Scheme Rent Rescue,13/06/2011,26,"1,100.00",Revenue,REDACTED
Housing Services,Homelessness,Homelessness Prevention,Transfer Payments,Housing Benefits,Rent Deposits,13/06/2011,27,824.98,Revenue,REDACTED
Housing Services,Homelessness,Homelessness Prevention,Transfer Payments,Housing Benefits,Sanctuary Scheme Rent Rescue,13/06/2011,28,"1,043.45",Revenue,MERTON PRIORY HOMES
Housing Services,Homelessness,Homelessness Prevention,Transfer Payments,Housing Benefits,Sanctuary Scheme Rent Rescue,13/06/2011,29,"2,288.23",Revenue,DRAKESFIELD ESTATES LTD
Housing Services,Homelessness,Homelessness Prevention,Transfer Payments,Housing Benefits,Rent Deposits,13/06/2011,30,"1,000.00",Revenue,REDACTED
Housing Services,Homelessness,Overcrowding - Grant,Transfer Payments,Housing Benefits,Under Occupation Payments,15/06/2011,31,595.00,Revenue,FUNNELLS REMOVALS & STORAGE
Adult Social Care,Asylum seekers,AS Child - Discret Pay (Grant),Third Party Payments,Private Contractors,Miscellaneous Agency Services,15/06/2011,32,513.50,Revenue,REDACTED
Childrens & Education Services,Other Ch's & Family Services,CL Setting Up Home Allowance,Third Party Payments,Private Contractors,Miscellaneous Agency Services,15/06/2011,33,"1,464.92",Revenue,REDACTED
,No FE Detail,Bldng Sub-Cntrctrs Tax Acc,Fund Balances,,Payments X,13/06/2011,34,"1,013.00",Revenue,HM REVENUE & CUSTOMS
Highways & Transport Services,Structural Maintenance,Footpath Crossings.,Third Party Payments,Private Contractors,Carriageway/Fway Maint,15/06/2011,35,882.00,Revenue,REDACTED
Childrens & Education Services,Youth Service,Duke of Edinburgh Awrds,Supplies and Services,Expenses,Young Peoples Expenses,15/06/2011,36,750.00,Revenue,REDACTED
Housing Services,Homelessness,Overcrowding - Grant,Transfer Payments,Housing Benefits,Under Occupation Payments,15/06/2011,37,"5,000.00",Revenue,REDACTED
,No FE Detail,Miscellaneous Credits,Fund Balances,,Payments X,15/06/2011,38,"29,812.69",Revenue,BELGRAVIA NURS. & CARE BUREAU
Housing Services,Homelessness,Overcrowding - Grant,Transfer Payments,Housing Benefits,Under Occupation Payments,15/06/2011,39,"1,786.00",Revenue,REDACTED
,No FE Detail,Crossrail BRS,Fund Balances,,Payments X,23/06/2011,40,"186,733.00",Revenue,GREATER LONDON AUTHORITY
CS -Oth Operating Inc & Expend,Precepts and Levies,Lee Valley Regional Park,Corporate Items,,Expenditure,17/06/2011,41,"18,350.46",Revenue,LEE VALLEY REGIONAL PARK AUTH.
CS -Oth Operating Inc & Expend,Precepts and Levies,London Pens Fund Auth,Corporate Items,,Expenditure,23/06/2011,42,"25,433.20",Revenue,LONDON PENSIONS FUND AUTHORITY
CS -Oth Operating Inc & Expend,Precepts and Levies,WPCC,Corporate Items,,Expenditure,23/06/2011,43,"26,664.74",Revenue,WPCC
,No FE Detail,Precepts,Fund Balances,,Greate London Authority S,23/06/2011,44,"2,359,782.25",Revenue,GREATER LONDON AUTHORITY
Central Services,Retiremt Benefit -Curtailments,Pension and Redundancy Costs,Employees,Indirect Employee Expenses,Severance-Creditors,17/06/2011,45,"24,000.00",Revenue,REDACTED
Childrens & Education Services,Pre-School Ed (inc Nursery),GSSG Central Administration,Employees,Indirect Employee Expenses,Severance-Creditors,22/06/2011,46,"13,000.00",Revenue,ORMERODS SOLICITORS
,No FE Detail,REDACTED,Fund Balances,,Payments X,22/06/2011,47,756.00,Revenue,BELLA DONNA
Childrens & Education Services,Other Ch's & Family Services,CL Setting Up Home Allowance,Third Party Payments,Private Contractors,Miscellaneous Agency Services,22/06/2011,48,"1,338.17",Revenue,REDACTED
Housing Services,Homelessness,Homelessness Prevention,Transfer Payments,Housing Benefits,Rent Deposits,20/06/2011,49,824.98,Revenue,HARRINGTON PROP MGNT & SALES
,No FE Detail,Disabled Facilities Grant DCLG,Other Capital Expenditure,Grants,Grants,20/06/2011,50,"3,530.00",Capital,ASCENDIT LIFTS LTD
,No FE Detail,Payroll Summary Account,Fund Balances,Funded by Other grants & contr,Advances- Chqs Drawn,20/06/2011,51,529.54,Revenue,REDACTED
,No FE Detail,Miscellaneous Credits,Fund Balances,,Payments X,22/06/2011,52,"3,156.74",Revenue,PLAN PERSONNEL
Adult Social Care,Older People 65&Over inc OP-MH,OP East - Home Care External,Third Party Payments,Private Contractors,Miscellaneous Agency Services,22/06/2011,53,"6,568.71",Revenue,PLAN PERSONNEL
,No FE Detail,K.Djaba t/a Gold Coast TK hair,Fund Balances,,Normal Repayments   X,22/06/2011,54,715.80,Revenue,REDACTED
Cultural Env Reg&Plan Services,SMSS (Cult),Leisure Dev  Service Support,Supplies and Services,Equip Furniture/Materials,Memorial seats - purchase,22/06/2011,55,"1,707.98",Revenue,REDACTED
Adult Social Care,Adlt u65 Learning Disabilities,LD Comm -Home Care-Campus Hm,Third Party Payments,Private Contractors,Miscellaneous Agency Services,23/06/2011,56,"-87,056.78",Revenue,CHOICE SUPPORT
Housing Services,Homelessness,Homelessness Prevention,Transfer Payments,Housing Benefits,Rent Deposits,22/06/2011,57,650.00,Revenue,HEDGES HOMES
Adult Social Care,Adult u65 Mental Health Needs,MH ResidentialCare Ext-Morden,Third Party Payments,Private Contractors,Miscellaneous Agency Services,22/06/2011,58,"1,799.84",Revenue,ROSEDALE REST HOME
Housing Services,Repairs and Maintenance,Disrepair cases (non repairs),Supplies and Services,,Compensation Payments,29/06/2011,59,"13,541.02",Revenue,BATTERSEA LAW CENTRE
Housing Services,Repairs and Maintenance,Disrepair cases (non repairs),Supplies and Services,,Compensation Payments,29/06/2011,60,"37,000.00",Revenue,ANTHONY GOLD SOLICITORS
Cultural Env Reg&Plan Services,Planning Policy,Spatial Policy,Supplies and Services,Comms and Computing,Data Preparation,24/06/2011,61,500.00,Revenue,GREATER LONDON AUTHORITY
Housing Services,Homelessness,Homelessness Prevention,Transfer Payments,Housing Benefits,Rent Deposits,29/06/2011,62,800.00,Revenue,REDACTED
,No FE Detail,Payroll Summary Account,Fund Balances,Funded by Other grants & contr,Salary Sacrifice,27/06/2011,63,"1,799.00",Revenue,ACCOR SERVICES
Childrens & Education Services,Adult Education,AE-additional learner SF,Supplies and Services,Services,Miscellaneous Fees,29/06/2011,64,"1,021.00",Revenue,BUMBLE BEES'S DAY NURSERY
,No FE Detail,Payroll Summary Account,Fund Balances,Funded by Other grants & contr,Salary Sacrifice,27/06/2011,65,770.99,Revenue,ACCOR SERVICES
,No FE Detail,Payroll Summary Account,Fund Balances,Funded by Other grants & contr,Salary Sacrifice,27/06/2011,66,"14,018.00",Revenue,ACCOR SERVICES
Central Services,Retiremt Benefit -Curtailments,Pension and Redundancy Costs,Employees,Indirect Employee Expenses,Severance-Creditors,27/06/2011,67,"6,777.96",Revenue,TEACHERS PENSION
,No FE Detail,Annual Season Ticket Loans,Fund Balances,,Payments X,29/06/2011,68,912.00,Revenue,LONDON UNDERGROUND LTD
Childrens & Education Services,Other Ch's & Family Services,CL Setting Up Home Allowance,Third Party Payments,Private Contractors,Miscellaneous Agency Services,29/06/2011,69,"1,570.43",Revenue,REDACTED
,No FE Detail,REDACTED,Fund Balances,,Payments X,29/06/2011,70,731.38,Revenue,WIMBLEDON PARK GOLF CLUB
CS -Oth Operating Inc & Expend,Precepts and Levies,Flood Defence,Corporate Items,,Expenditure,28/06/2011,71,"36,648.00",Revenue,ENVIRONMENT AGENCY
,No FE Detail,Alley Gating Scheme - Fly Tip,Other Capital Expenditure,Grants,Grants,28/06/2011,72,"1,321.99",Capital,MITCHAM COMMON CONSERVATORS
Housing Services,Homelessness,Homelessness Prevention,Transfer Payments,Housing Benefits,Rent Deposits,30/06/2011,73,824.98,Revenue,"M"" AD INTERIN"" LTD"
Housing Services,Homelessness,Homelessness Prevention,Transfer Payments,Housing Benefits,Sanctuary Scheme Rent Rescue,30/06/2011,74,"3,895.95",Revenue,REDACTED
Childrens & Education Services,Other Ch's & Family Services,CL Leaving Care/Supp Lodgings,Third Party Payments,Private Contractors,Miscellaneous Agency Services,30/06/2011,75,800.00,Revenue,REDACTED
Central Services,Fully rechargeable Overheads,Legal Services,Supplies and Services,Services,Court Fees,30/06/2011,76,"2,225.00",Revenue,REDACTED
Central Services,Fully rechargeable Overheads,Legal Services,Supplies and Services,Services,Court Fees,30/06/2011,77,"2,225.00",Revenue,REDACTED
Central Services,Fully rechargeable Overheads,Legal Services,Supplies and Services,Services,Court Fees,30/06/2011,78,"2,225.00",Revenue,REDACTED
Childrens & Education Services,Other Ch's & Family Services,CL Leaving Care/Supp Lodgings,Third Party Payments,Private Contractors,Private Tenant/Landlord,24/06/2011,79,"1,310.00",Revenue,TOWNENDS LETTING MANAGEMENT
Adult Social Care,Older People 65&Over inc OP-MH,OP West -Direct Payment Scheme,Third Party Payments,Private Contractors,Direct Payments,24/06/2011,80,"26,982.18",Revenue,REDACTED
Childrens & Education Services,Other Ch's & Family Services,CL Leaving Care/Supp Lodgings,Third Party Payments,Private Contractors,Private Tenant/Landlord,24/06/2011,81,"2,480.00",Revenue,TOWNENDS LETTING MANAGEMENT
,No FE Detail,Crossrail BRS,Fund Balances,,Payments X,16/06/2011,82,"186,733.00",Revenue,GREATER LONDON AUTHORITY
,No FE Detail,Tiffin Boys,Fund Balances,,Other Deductions,24/06/2011,83,"98,519.21",Revenue,THE COLLECTOR OF TAXES
,No FE Detail,Ursuline  - Payroll Contract,Fund Balances,,Other Deductions,24/06/2011,84,"118,650.40",Revenue,THE COLLECTOR OF TAXES
,No FE Detail,Payroll Summary Account,Fund Balances,Funded by Other grants & contr,Extl Payees Monthly,24/06/2011,85,"3,447,543.91",Revenue,THE COLLECTOR OF TAXES
,No FE Detail,Superannuation creditors,Fund Balances,,Payments X,22/06/2011,86,"6,600.24",Revenue,REDACTED
Childrens & Education Services,Children Looked After (24hrs+),CL Independent Fostering,Supplies and Services,Services,Long Term Fostering,09/06/2011,87,"-6,272.49",Revenue,ETHELBERT SPECIALIST HOMES LTD
Childrens & Education Services,Children Looked After (24hrs+),CL Independent Fostering,Supplies and Services,Services,Long Term Fostering,09/06/2011,88,"3,180.79",Revenue,ETHELBERT SPECIALIST HOMES LTD
Adult Social Care,Older People 65&Over inc OP-MH,OP West - Nursing Care,Third Party Payments,Private Contractors,Miscellaneous Agency Services,01/06/2011,89,"2,134.60",Revenue,KELSTONE COURT NURSING HOME
Adult Social Care,Older People 65&Over inc OP-MH,OP Hosp - Nursing Care,Third Party Payments,Private Contractors,Miscellaneous Agency Services,01/06/2011,90,"2,341.84",Revenue,KELSTONE COURT NURSING HOME
Adult Social Care,Older People 65&Over inc OP-MH,OP Hosp - Nursing Care,Third Party Payments,Private Contractors,Miscellaneous Agency Services,01/06/2011,91,"2,380.00",Revenue,KELSTONE COURT NURSING HOME
Adult Social Care,Older People 65&Over inc OP-MH,OP West - Nursing Care,Third Party Payments,Private Contractors,Miscellaneous Agency Services,01/06/2011,92,"2,173.96",Revenue,KELSTONE COURT NURSING HOME
Adult Social Care,Older People 65&Over inc OP-MH,OP Hosp - Nursing Care,Third Party Payments,Private Contractors,Miscellaneous Agency Services,01/06/2011,93,"2,341.84",Revenue,KELSTONE COURT NURSING HOME
Adult Social Care,Older People 65&Over inc OP-MH,OP East - Nursing Care,Third Party Payments,Private Contractors,Miscellaneous Agency Services,01/06/2011,94,"2,341.84",Revenue,KELSTONE COURT NURSING HOME
Adult Social Care,Older People 65&Over inc OP-MH,OP Hosp - Nursing Care,Third Party Payments,Private Contractors,Miscellaneous Agency Services,01/06/2011,95,"2,341.84",Revenue,KELSTONE COURT NURSING HOME
Adult Social Care,Older People 65&Over inc OP-MH,OP Morden - Nursing Care,Third Party Payments,Private Contractors,Miscellaneous Agency Services,01/06/2011,96,"2,341.84",Revenue,KELSTONE COURT NURSING HOME
Adult Social Care,Older People 65&Over inc OP-MH,OP West - Nursing Care,Third Party Payments,Private Contractors,Miscellaneous Agency Services,01/06/2011,97,"2,341.84",Revenue,KELSTONE COURT NURSING HOME
Adult Social Care,Older People 65&Over inc OP-MH,OP Morden - Nursing Care,Third Party Payments,Private Contractors,Miscellaneous Agency Services,01/06/2011,98,"2,341.84",Revenue,KELSTONE COURT NURSING HOME
Adult Social Care,Older People 65&Over inc OP-MH,OP East - Nursing Care,Third Party Payments,Private Contractors,Miscellaneous Agency Services,01/06/2011,99,"2,334.52",Revenue,THE CROFT NURSING HOME
Adult Social Care,Adult u65 Phys/Sensory Impair,PD EAST TEAM-Nursing,Third Party Payments,Private Contractors,Miscellaneous Agency Services,01/06/2011,100,"3,237.64",Revenue,BRITISH HOME
Adult Social Care,Adlt u65 Learning Disabilities,LD Residential Care External,Third Party Payments,Private Contractors,Miscellaneous Agency Services,01/06/2011,101,"3,400.00",Revenue,BURGH HEATH LODGE
Adult Social Care,Older People 65&Over inc OP-MH,OP Hosp - Nursing Care,Third Party Payments,Private Contractors,Miscellaneous Agency Services,01/06/2011,102,"2,967.01",Revenue,CARE UK
Adult Social Care,Adlt u65 Learning Disabilities,LD Residential Care External,Third Party Payments,Private Contractors,Miscellaneous Agency Services,01/06/2011,103,"4,707.48",Revenue,THE CHESTNUTS LIMITED
Adult Social Care,Adlt u65 Learning Disabilities,LD Residential Care External,Third Party Payments,Private Contractors,Miscellaneous Agency Services,01/06/2011,104,"7,308.00",Revenue,INDEPENDENCE HOMES LTD
Adult Social Care,Adlt u65 Learning Disabilities,LD Residential Care External,Customer and client receipts,Charges,Bd&Acc-contrib coll by home X,01/06/2011,105,-716.70,Revenue,METROPOLITAN SUPPORT TRUST
Adult Social Care,Adlt u65 Learning Disabilities,LD Residential Care External,Third Party Payments,Private Contractors,Miscellaneous Agency Services,01/06/2011,106,"14,971.20",Revenue,METROPOLITAN SUPPORT TRUST
Adult Social Care,Older People 65&Over inc OP-MH,OP East - Residential Care Ext,Third Party Payments,Private Contractors,Miscellaneous Agency Services,01/06/2011,107,"2,860.56",Revenue,SOUTHPARK RESIDENTIAL HOME
Adult Social Care,Older People 65&Over inc OP-MH,OP East - Residential Care Ext,Third Party Payments,Private Contractors,Miscellaneous Agency Services,01/06/2011,108,"1,907.04",Revenue,SOUTHPARK RESIDENTIAL HOME
Adult Social Care,Adlt u65 Learning Disabilities,LD Home Care External,Third Party Payments,Private Contractors,Miscellaneous Agency Services,01/06/2011,109,713.38,Revenue,BEECH HOME CARE SERVICES
Adult Social Care,Adult u65 Phys/Sensory Impair,PD WEST TEAM-Homecare,Third Party Payments,Private Contractors,Miscellaneous Agency Services,01/06/2011,110,850.00,Revenue,BELGRAVIA NURS. & CARE BUREAU
Adult Social Care,Adlt u65 Learning Disabilities,LD Day Care Agency,Third Party Payments,Private Contractors,Miscellaneous Agency Services,01/06/2011,111,648.96,Revenue,ELIZABETH FITZROY HOMES
Adult Social Care,Adlt u65 Learning Disabilities,LD Home Care External,Third Party Payments,Private Contractors,Miscellaneous Agency Services,01/06/2011,112,"2,488.48",Revenue,ELIZABETH FITZROY HOMES
Adult Social Care,Adlt u65 Learning Disabilities,LD Day Care Agency,Third Party Payments,Private Contractors,Miscellaneous Agency Services,01/06/2011,113,648.96,Revenue,ELIZABETH FITZROY HOMES
Adult Social Care,Adlt u65 Learning Disabilities,LD Home Care External,Third Party Payments,Private Contractors,Miscellaneous Agency Services,01/06/2011,114,"2,488.48",Revenue,ELIZABETH FITZROY HOMES
Adult Social Care,Adult u65 Phys/Sensory Impair,PD EAST TEAM-Homecare,Third Party Payments,Private Contractors,Miscellaneous Agency Services,01/06/2011,115,867.60,Revenue,RNIB REDHILL COLLEGE
Adult Social Care,Adult u65 Mental Health Needs,MH Home Care External - Wim,Third Party Payments,Private Contractors,Miscellaneous Agency Services,01/06/2011,116,"1,966.80",Revenue,RNIB REDHILL COLLEGE
Adult Social Care,Adult u65 Phys/Sensory Impair,PD EAST TEAM-Homecare,Third Party Payments,Private Contractors,Miscellaneous Agency Services,01/06/2011,117,800.00,Revenue,RNIB REDHILL COLLEGE
Adult Social Care,Adult u65 Mental Health Needs,MH Hostels/B & B - NRTPF,Third Party Payments,Private Contractors,Miscellaneous Agency Services,01/06/2011,118,"1,380.40",Revenue,ASTRA HOMES
Adult Social Care,Adult u65 Mental Health Needs,MH Hostels/B & B - NRTPF,Third Party Payments,Private Contractors,Miscellaneous Agency Services,01/06/2011,119,"1,380.40",Revenue,ASTRA HOMES
Adult Social Care,Adult u65 Mental Health Needs,MH Hostels/B & B- Mitcham West,Third Party Payments,Private Contractors,Miscellaneous Agency Services,01/06/2011,120,785.71,Revenue,ASTRA HOMES
Adult Social Care,Adult u65 Mental Health Needs,MH Hostels/ B & B - Wim,Third Party Payments,Private Contractors,Miscellaneous Agency Services,01/06/2011,121,"1,222.04",Revenue,ASTRA HOMES
Adult Social Care,Adult u65 Phys/Sensory Impair,PD WEST TEAM-Nursing,Customer and client receipts,Charges,Miscellaneous Charges X,01/06/2011,122,-893.80,Revenue,BRITISH HOME
Adult Social Care,Adult u65 Phys/Sensory Impair,PD WEST TEAM-Nursing,Third Party Payments,Private Contractors,Miscellaneous Agency Services,01/06/2011,123,"2,775.76",Revenue,BRITISH HOME
Adult Social Care,Adlt u65 Learning Disabilities,LD Residential Care External,Third Party Payments,Private Contractors,Miscellaneous Agency Services,01/06/2011,124,"6,865.71",Revenue,CARRICKS BROOK
Adult Social Care,Older People 65&Over inc OP-MH,OP West - Nursing Care,Third Party Payments,Private Contractors,Miscellaneous Agency Services,01/06/2011,125,"7,057.14",Revenue,BUPA CARE HOMES
Adult Social Care,Adlt u65 Learning Disabilities,LD Residential Care External,Third Party Payments,Private Contractors,Miscellaneous Agency Services,01/06/2011,126,"2,352.24",Revenue,COTTISBRAINE HOUSE
Adult Social Care,Older People 65&Over inc OP-MH,OP Hosp - Residential Care Ext,Third Party Payments,Private Contractors,Miscellaneous Agency Services,01/06/2011,127,"1,800.00",Revenue,EDMUND HOUSE
Adult Social Care,Older People 65&Over inc OP-MH,OP East - Nursing Care,Third Party Payments,Private Contractors,Miscellaneous Agency Services,01/06/2011,128,"2,332.36",Revenue,ELMWOOD
Adult Social Care,Older People 65&Over inc OP-MH,OP East - Residential Care Ext,Third Party Payments,Private Contractors,Miscellaneous Agency Services,01/06/2011,129,"1,692.40",Revenue,GENESIS CARE HOME
Adult Social Care,Older People 65&Over inc OP-MH,OP East - Nursing Care,Third Party Payments,Private Contractors,Miscellaneous Agency Services,01/06/2011,130,"2,176.64",Revenue,GGIBSON LODGE NURSING HOME
Adult Social Care,Adult u65 Phys/Sensory Impair,PD EAST TEAM-Nursing,Third Party Payments,Private Contractors,Miscellaneous Agency Services,01/06/2011,131,"3,800.00",Revenue,QUEEN ALEXANDRA HOSPITAL HOME
Adult Social Care,Adult u65 Phys/Sensory Impair,PD EAST TEAM-Nursing,Third Party Payments,Private Contractors,Miscellaneous Agency Services,01/06/2011,132,"3,800.00",Revenue,QUEEN ALEXANDRA HOSPITAL HOME
Adult Social Care,Adlt u65 Learning Disabilities,LD Residential Care External,Third Party Payments,Private Contractors,Miscellaneous Agency Services,01/06/2011,133,"4,429.48",Revenue,THE REGARD PARTNERSHIP LTD
Adult Social Care,Adlt u65 Learning Disabilities,LD Residential Care External,Third Party Payments,Private Contractors,Miscellaneous Agency Services,01/06/2011,134,"4,429.48",Revenue,THE REGARD PARTNERSHIP LTD
Adult Social Care,Other Adult Services,MH Residential Care Ext - SM&D,Third Party Payments,Private Contractors,Miscellaneous Agency Services,01/06/2011,135,"1,590.67",Revenue,WESTERN COUNSELLING SERVICES
Adult Social Care,Adult u65 Phys/Sensory Impair,PD EAST TEAM-Other Services,Third Party Payments,Private Contractors,Miscellaneous Agency Services,01/06/2011,136,692.28,Revenue,JOHN JOSEPH PROPERTY SERVICES
Adult Social Care,Adult u65 Phys/Sensory Impair,PS Other Serv - NRTPF,Third Party Payments,Private Contractors,Miscellaneous Agency Services,01/06/2011,137,"1,384.56",Revenue,JOHN JOSEPH PROPERTY SERVICES
Adult Social Care,Older People 65&Over inc OP-MH,OP East - Daycare,Third Party Payments,Private Contractors,Miscellaneous Agency Services,01/06/2011,138,"6,368.11",Revenue,WOODLANDS
Adult Social Care,Asylum seekers,AS Child-Discret Pay (NoGrant),Third Party Payments,Private Contractors,Miscellaneous Agency Services,01/06/2011,139,607.00,Revenue,REDACTED
Childrens & Education Services,Family Support Services,CS Referral & Assessment Sec17,Transfer Payments,Adult Soc Servs Clients,Childr Act 1989 S17,01/06/2011,140,"1,700.00",Revenue,THE NEW LEVEL OF LIFE
Childrens & Education Services,Children Looked After (24hrs+),CL Independent Fostering,Supplies and Services,Services,Task Based Fostering,01/06/2011,141,"1,569.26",Revenue,CORNERWAYS FOSTERING SERV.LTD
Childrens & Education Services,Other Ch's & Family Services,CL Leaving Care/Supp Lodgings,Third Party Payments,Private Contractors,Supported Lodgings,01/06/2011,142,600.00,Revenue,REDACTED
Adult Social Care,Adlt u65 Learning Disabilities,LD Residential Care External,Third Party Payments,Private Contractors,Miscellaneous Agency Services,01/06/2011,143,"45,000.00",Revenue,DIMENSIONS (UK) LTD.
Adult Social Care,Adlt u65 Learning Disabilities,LD Day Care Agency,Third Party Payments,Private Contractors,Miscellaneous Agency Services,01/06/2011,144,"2,953.44",Revenue,ACT TOO
Adult Social Care,Adult u65 Phys/Sensory Impair,PD EAST TEAM-Homecare,Third Party Payments,Private Contractors,Miscellaneous Agency Services,01/06/2011,145,664.62,Revenue,BELGRAVIA NURS. & CARE BUREAU
Adult Social Care,Older People 65&Over inc OP-MH,OP - Hosp - Daycare,Third Party Payments,Private Contractors,Miscellaneous Agency Services,01/06/2011,146,658.77,Revenue,WOODLANDS
Childrens & Education Services,Children Looked After (24hrs+),CL Fostering Services,Supplies and Services,Services,Task Based Fostering,01/06/2011,147,523.50,Revenue,REDACTED
Childrens & Education Services,Children Looked After (24hrs+),CL Fostering Services,Supplies and Services,Services,Task Based Fostering,01/06/2011,148,"1,560.88",Revenue,REDACTED
Childrens & Education Services,Children Looked After (24hrs+),CL Fostering Services,Supplies and Services,Services,Task Based Fostering,01/06/2011,149,"1,502.66",Revenue,REDACTED
Childrens & Education Services,Children Looked After (24hrs+),CL Fostering Services,Supplies and Services,Services,Task Based Fostering,01/06/2011,150,739.20,Revenue,REDACTED
Childrens & Education Services,Children Looked After (24hrs+),CL Fostering Services,Supplies and Services,Services,Task Based Fostering,01/06/2011,151,"2,300.08",Revenue,REDACTED
Childrens & Education Services,Children Looked After (24hrs+),CL Fostering Services,Supplies and Services,Services,Task Based Fostering,01/06/2011,152,"2,266.12",Revenue,REDACTED
Childrens & Education Services,Children Looked After (24hrs+),CL Fostering Services,Supplies and Services,Services,Task Based Fostering,01/06/2011,153,"1,519.64",Revenue,REDACTED
Childrens & Education Services,Children Looked After (24hrs+),CL Fostering Services,Supplies and Services,Services,Task Based Fostering,01/06/2011,154,"2,324.34",Revenue,REDACTED
Childrens & Education Services,Children Looked After (24hrs+),CL Fostering Services,Supplies and Services,Services,Task Based Fostering,01/06/2011,155,"1,543.90",Revenue,REDACTED
Childrens & Education Services,Children Looked After (24hrs+),CL Fostering Services,Supplies and Services,Services,Task Based Fostering,01/06/2011,156,"2,651.54",Revenue,REDACTED
Childrens & Education Services,Children Looked After (24hrs+),CL Fostering Services,Supplies and Services,Services,Task Based Fostering,01/06/2011,157,"3,269.36",Revenue,REDACTED
Childrens & Education Services,Children Looked After (24hrs+),CL Fostering Services,Supplies and Services,Services,Task Based Fostering,01/06/2011,158,"1,560.88",Revenue,REDACTED
Childrens & Education Services,Children Looked After (24hrs+),CL Fostering Services,Supplies and Services,Services,Task Based Fostering,01/06/2011,159,"1,502.66",Revenue,REDACTED
Childrens & Education Services,Children Looked After (24hrs+),CL Fostering Services,Supplies and Services,Services,Task Based Fostering,01/06/2011,160,739.20,Revenue,REDACTED
Childrens & Education Services,Children Looked After (24hrs+),CL Fostering Services,Supplies and Services,Services,Task Based Fostering,01/06/2011,161,"1,801.88",Revenue,REDACTED
Childrens & Education Services,Children Looked After (24hrs+),CL Fostering Services,Supplies and Services,Services,Task Based Fostering,01/06/2011,162,739.20,Revenue,REDACTED
Childrens & Education Services,Children Looked After (24hrs+),CL Fostering Services,Supplies and Services,Services,Task Based Fostering,01/06/2011,163,"1,478.40",Revenue,REDACTED
Childrens & Education Services,Children Looked After (24hrs+),CL Fostering Services,Supplies and Services,Services,Task Based Fostering,01/06/2011,164,780.44,Revenue,REDACTED
Childrens & Education Services,Children Looked After (24hrs+),CL Fostering Services,Supplies and Services,Services,Task Based Fostering,01/06/2011,165,"1,502.66",Revenue,REDACTED
Childrens & Education Services,Children Looked After (24hrs+),CL Fostering Services,Supplies and Services,Services,Task Based Fostering,01/06/2011,166,780.44,Revenue,REDACTED
Childrens & Education Services,Children Looked After (24hrs+),CL Fostering Services,Supplies and Services,Services,Task Based Fostering,01/06/2011,167,739.20,Revenue,REDACTED
Childrens & Education Services,Children Looked After (24hrs+),CL Fostering Services,Supplies and Services,Services,Task Based Fostering,01/06/2011,168,"2,241.86",Revenue,REDACTED
Childrens & Education Services,Children Looked After (24hrs+),CL Fostering Services,Supplies and Services,Services,Task Based Fostering,01/06/2011,169,874.96,Revenue,REDACTED
Childrens & Education Services,Children Looked After (24hrs+),CL Fostering Services,Supplies and Services,Services,Task Based Fostering,01/06/2011,170,745.82,Revenue,REDACTED
Adult Social Care,Adult u65 Phys/Sensory Impair,PD EAST TEAM-Day Care,Third Party Payments,Private Contractors,Miscellaneous Agency Services,03/06/2011,171,"1,066.40",Revenue,ACTION FOR BLIND PEOPLE
Adult Social Care,Adlt u65 Learning Disabilities,LD Home Care External,Third Party Payments,Private Contractors,Miscellaneous Agency Services,02/06/2011,172,713.38,Revenue,BEECH HOME CARE SERVICES
Adult Social Care,Adult u65 Mental Health Needs,MH Home Care External - Wim,Third Party Payments,Private Contractors,Miscellaneous Agency Services,02/06/2011,173,539.10,Revenue,NAS SERVICES LIMITED
Adult Social Care,Adlt u65 Learning Disabilities,LD Home Care External,Third Party Payments,Private Contractors,Miscellaneous Agency Services,02/06/2011,174,"4,186.88",Revenue,THE REGARD PARTNERSHIP LTD
Adult Social Care,Adult u65 Mental Health Needs,MH Other Servs - Mitcham West,Third Party Payments,Private Contractors,Miscellaneous Agency Services,02/06/2011,175,553.88,Revenue,MATRIX PROPERTIES SERVICES LTD
Childrens & Education Services,Family Support Services,CS Referral & Assessment Sec17,Transfer Payments,Adult Soc Servs Clients,Childr Act 1989 S17,02/06/2011,176,728.45,Revenue,ADMINLAND LTD
Adult Social Care,Adult u65 Phys/Sensory Impair,PD EAST TEAM-Direct Payment,Third Party Payments,Private Contractors,Direct Payments,02/06/2011,177,"1,660.27",Revenue,REDACTED
Adult Social Care,Adult u65 Mental Health Needs,MH Hostels/B & B- Mitcham West,Third Party Payments,Private Contractors,Miscellaneous Agency Services,02/06/2011,178,"1,000.00",Revenue,ASTRA HOMES
Adult Social Care,Adult u65 Mental Health Needs,MH Hostels/B & B- Mitcham West,Third Party Payments,Private Contractors,Miscellaneous Agency Services,02/06/2011,179,"1,000.00",Revenue,ASTRA HOMES
Adult Social Care,Adult u65 Mental Health Needs,MH Hostels/ B & B - Wim,Third Party Payments,Private Contractors,Miscellaneous Agency Services,02/06/2011,180,"1,222.04",Revenue,ASTRA HOMES
Adult Social Care,Adult u65 Mental Health Needs,MH Hostels/ B & B - Wim,Third Party Payments,Private Contractors,Miscellaneous Agency Services,02/06/2011,181,763.24,Revenue,ASTRA HOMES
Adult Social Care,Adult u65 Mental Health Needs,MH Hostels/ B & B - Wim,Third Party Payments,Private Contractors,Miscellaneous Agency Services,02/06/2011,182,763.24,Revenue,ASTRA HOMES
Adult Social Care,Adult u65 Mental Health Needs,MH Res Care Ext- Mitcham West,Third Party Payments,Private Contractors,Miscellaneous Agency Services,02/06/2011,183,"2,074.72",Revenue,ASTRA HOMES
Adult Social Care,Adult u65 Mental Health Needs,MH Res Care Ext- Mitcham West,Third Party Payments,Private Contractors,Miscellaneous Agency Services,02/06/2011,184,"2,074.72",Revenue,ASTRA HOMES
Adult Social Care,Adlt u65 Learning Disabilities,LD Supported Housing,Third Party Payments,Private Contractors,Miscellaneous Agency Services,02/06/2011,185,965.68,Revenue,ASTRA HOMES
Adult Social Care,Adlt u65 Learning Disabilities,LD Supported Housing,Third Party Payments,Private Contractors,Miscellaneous Agency Services,02/06/2011,186,965.68,Revenue,ASTRA HOMES
Adult Social Care,Adlt u65 Learning Disabilities,LD Supported Housing,Third Party Payments,Private Contractors,Miscellaneous Agency Services,02/06/2011,187,"1,287.68",Revenue,ASTRA HOMES
Adult Social Care,Adlt u65 Learning Disabilities,LD Supported Housing,Third Party Payments,Private Contractors,Miscellaneous Agency Services,02/06/2011,188,"1,287.68",Revenue,ASTRA HOMES
Adult Social Care,Older People 65&Over inc OP-MH,OP West - Nursing Care,Third Party Payments,Private Contractors,Miscellaneous Agency Services,02/06/2011,189,"2,478.06",Revenue,LONDON RESIDENTIAL H/CARE LTD
Adult Social Care,Adult u65 Mental Health Needs,MH ResidentialCare Ext-Morden,Third Party Payments,Private Contractors,Miscellaneous Agency Services,02/06/2011,190,"6,117.00",Revenue,BROOKDALE HEALTH CARE
Adult Social Care,Adult u65 Mental Health Needs,MH ResidentialCare Ext-Morden,Third Party Payments,Private Contractors,Miscellaneous Agency Services,03/06/2011,191,"3,518.32",Revenue,ENNIS REST HOME
Adult Social Care,Adult u65 Mental Health Needs,MH Res Care Ext- Mitcham West,Third Party Payments,Private Contractors,Miscellaneous Agency Services,03/06/2011,192,"2,994.08",Revenue,ENNIS REST HOME
Adult Social Care,Older People 65&Over inc OP-MH,OP Hosp - Residential Care Ext,Third Party Payments,Private Contractors,Miscellaneous Agency Services,02/06/2011,193,"1,800.00",Revenue,GABLE LODGE
Adult Social Care,Older People 65&Over inc OP-MH,OP West - Residential Care Ext,Third Party Payments,Private Contractors,Miscellaneous Agency Services,02/06/2011,194,"1,636.20",Revenue,LYNCROFT RESIDENTIAL HOME
Adult Social Care,Adlt u65 Learning Disabilities,LD Residential Care External,Third Party Payments,Private Contractors,Miscellaneous Agency Services,02/06/2011,195,"4,160.00",Revenue,THE REGARD PARTNERSHIP LTD
Adult Social Care,Adult u65 Phys/Sensory Impair,PD WEST TEAM-Residential Care,Third Party Payments,Private Contractors,Miscellaneous Agency Services,02/06/2011,196,"3,311.36",Revenue,SCOPE
Adult Social Care,Older People 65&Over inc OP-MH,OP Hosp - Residential Care Ext,Third Party Payments,Private Contractors,Miscellaneous Agency Services,02/06/2011,197,"1,878.52",Revenue,SOUTHERN CROSS HEALTHCARE LTD
Adult Social Care,Older People 65&Over inc OP-MH,OP East - Residential Care Ext,Third Party Payments,Private Contractors,Miscellaneous Agency Services,02/06/2011,198,"1,878.52",Revenue,SOUTHERN CROSS HEALTHCARE LTD
Adult Social Care,Older People 65&Over inc OP-MH,OP Hosp - Residential Care Ext,Third Party Payments,Private Contractors,Miscellaneous Agency Services,02/06/2011,199,"1,878.52",Revenue,SOUTHERN CROSS HEALTHCARE LTD
Adult Social Care,Adult u65 Phys/Sensory Impair,PD EAST TEAM-Nursing,Third Party Payments,Private Contractors,Miscellaneous Agency Services,02/06/2011,200,"3,096.00",Revenue,SOUTHERN CROSS HEALTHCARE LTD
Adult Social Care,Older People 65&Over inc OP-MH,OP East - Nursing Care,Third Party Payments,Private Contractors,Miscellaneous Agency Services,02/06/2011,201,"2,842.00",Revenue,SOUTHERN CROSS HEALTHCARE LTD
Adult Social Care,Older People 65&Over inc OP-MH,OP East - Residential Care Ext,Third Party Payments,Private Contractors,Miscellaneous Agency Services,02/06/2011,202,"1,878.52",Revenue,SOUTHERN CROSS HEALTHCARE LTD
Adult Social Care,Older People 65&Over inc OP-MH,OP East - Nursing Care,Third Party Payments,Private Contractors,Miscellaneous Agency Services,02/06/2011,203,"2,237.64",Revenue,SOUTHERN CROSS HEALTHCARE LTD
Adult Social Care,Older People 65&Over inc OP-MH,OP East - Residential Care Ext,Third Party Payments,Private Contractors,Miscellaneous Agency Services,02/06/2011,204,"1,878.52",Revenue,SOUTHERN CROSS HEALTHCARE LTD
Adult Social Care,Older People 65&Over inc OP-MH,OP Hosp - Residential Care Ext,Third Party Payments,Private Contractors,Miscellaneous Agency Services,02/06/2011,205,"2,840.00",Revenue,SOUTHERN CROSS HEALTHCARE LTD
Adult Social Care,Older People 65&Over inc OP-MH,OP Hosp - Residential Care Ext,Third Party Payments,Private Contractors,Miscellaneous Agency Services,02/06/2011,206,"1,878.52",Revenue,SOUTHERN CROSS HEALTHCARE LTD
Adult Social Care,Older People 65&Over inc OP-MH,OP East - Residential Care Ext,Third Party Payments,Private Contractors,Miscellaneous Agency Services,02/06/2011,207,"1,878.52",Revenue,SOUTHERN CROSS HEALTHCARE LTD
Adult Social Care,Older People 65&Over inc OP-MH,OP Hosp - Residential Care Ext,Third Party Payments,Private Contractors,Miscellaneous Agency Services,02/06/2011,208,"1,878.52",Revenue,SOUTHERN CROSS HEALTHCARE LTD
Adult Social Care,Older People 65&Over inc OP-MH,OP East - Nursing Care,Third Party Payments,Private Contractors,Miscellaneous Agency Services,02/06/2011,209,"2,237.64",Revenue,SOUTHERN CROSS HEALTHCARE LTD
Adult Social Care,Older People 65&Over inc OP-MH,OP East - Residential Care Ext,Third Party Payments,Private Contractors,Miscellaneous Agency Services,02/06/2011,210,"1,878.52",Revenue,SOUTHERN CROSS HEALTHCARE LTD
Adult Social Care,Older People 65&Over inc OP-MH,OP Hosp - Residential Care Ext,Third Party Payments,Private Contractors,Miscellaneous Agency Services,02/06/2011,211,"1,878.52",Revenue,SOUTHERN CROSS HEALTHCARE LTD
Adult Social Care,Older People 65&Over inc OP-MH,OP East - Nursing Care,Third Party Payments,Private Contractors,Miscellaneous Agency Services,02/06/2011,212,"2,237.64",Revenue,SOUTHERN CROSS HEALTHCARE LTD
Adult Social Care,Older People 65&Over inc OP-MH,OP West - Residential Care Ext,Third Party Payments,Private Contractors,Miscellaneous Agency Services,02/06/2011,213,"1,812.40",Revenue,SOUTHPARK RESIDENTIAL HOME
Adult Social Care,Older People 65&Over inc OP-MH,OP East - Residential Care Ext,Third Party Payments,Private Contractors,Miscellaneous Agency Services,02/06/2011,214,"1,703.44",Revenue,SOUTHPARK RESIDENTIAL HOME
Adult Social Care,Adlt u65 Learning Disabilities,LD Residential Care External,Third Party Payments,Private Contractors,Miscellaneous Agency Services,02/06/2011,215,"5,022.82",Revenue,SURREY & BORDERS PARTNERSHIP
Adult Social Care,Adlt u65 Learning Disabilities,LD Residential Care External,Third Party Payments,Private Contractors,Miscellaneous Agency Services,02/06/2011,216,"4,843.43",Revenue,SURREY & BORDERS PARTNERSHIP
Childrens & Education Services,Other Ch's & Family Services,CL Leaving Care/Supp Lodgings,Third Party Payments,Private Contractors,Supported Lodgings,02/06/2011,217,"1,001.52",Revenue,REDACTED
Childrens & Education Services,Family Support Services,CS Day Care CWD,Third Party Payments,Private Contractors,Miscellaneous Agency Services,03/06/2011,218,"1,444.98",Revenue,COMPLETE CARE CENTRE
Childrens & Education Services,Family Support Services,CS Day Care CWD,Third Party Payments,Private Contractors,Miscellaneous Agency Services,03/06/2011,219,"1,499.91",Revenue,COMPLETE CARE CENTRE
Childrens & Education Services,Family Support Services,CS Day Care CWD,Third Party Payments,Private Contractors,Miscellaneous Agency Services,03/06/2011,220,755.96,Revenue,COMPLETE CARE CENTRE
Childrens & Education Services,Family Support Services,CS Day Care CWD,Third Party Payments,Private Contractors,Miscellaneous Agency Services,03/06/2011,221,638.72,Revenue,COMPLETE CARE CENTRE
Childrens & Education Services,Family Support Services,CS Day Care CWD,Third Party Payments,Private Contractors,Miscellaneous Agency Services,03/06/2011,222,"2,207.70",Revenue,COMPLETE CARE CENTRE
Childrens & Education Services,Family Support Services,CS Day Care CWD,Third Party Payments,Private Contractors,Miscellaneous Agency Services,03/06/2011,223,548.24,Revenue,COMPLETE CARE CENTRE
Childrens & Education Services,Family Support Services,CS Day Care CWD,Third Party Payments,Private Contractors,Miscellaneous Agency Services,03/06/2011,224,"2,349.27",Revenue,COMPLETE CARE CENTRE
Childrens & Education Services,Family Support Services,CS Day Care CWD,Third Party Payments,Private Contractors,Miscellaneous Agency Services,03/06/2011,225,"2,354.18",Revenue,COMPLETE CARE CENTRE
Childrens & Education Services,Family Support Services,CS Day Care CWD,Third Party Payments,Private Contractors,Miscellaneous Agency Services,03/06/2011,226,"1,375.66",Revenue,COMPLETE CARE CENTRE
Childrens & Education Services,Family Support Services,CS DayCare Facilities Children,Third Party Payments,Private Contractors,Playscheme,03/06/2011,227,544.00,Revenue,LITTLE CATERPILLARS PLAYGROUP
Childrens & Education Services,Other Ch's & Family Services,CL Adoption Allowances,Transfer Payments,Adult Soc Servs Clients,Adodption Allowances,03/06/2011,228,562.88,Revenue,REDACTED
Childrens & Education Services,Other Ch's & Family Services,CL Adoption Allowances,Transfer Payments,Adult Soc Servs Clients,Adodption Allowances,03/06/2011,229,607.08,Revenue,REDACTED
Childrens & Education Services,Family Support Services,CL Residence Orders,Supplies and Services,Grants and Subscriptions,Residence Orders,03/06/2011,230,606.90,Revenue,REDACTED
Childrens & Education Services,Other Ch's & Family Services,CL Adoption Allowances,Transfer Payments,Adult Soc Servs Clients,Adodption Allowances,03/06/2011,231,912.40,Revenue,REDACTED
Childrens & Education Services,Family Support Services,CL Residence Orders,Supplies and Services,Grants and Subscriptions,Residence Orders,03/06/2011,232,879.02,Revenue,REDACTED
Adult Social Care,Adlt u65 Learning Disabilities,LD Home Care External,Third Party Payments,Private Contractors,Miscellaneous Agency Services,03/06/2011,233,"2,120.96",Revenue,ROYAL MENCAP SOCIETY
Adult Social Care,Adlt u65 Learning Disabilities,LD Home Care External,Third Party Payments,Private Contractors,Miscellaneous Agency Services,03/06/2011,234,"1,906.56",Revenue,ROYAL MENCAP SOCIETY
Adult Social Care,Adlt u65 Learning Disabilities,LD Home Care External,Third Party Payments,Private Contractors,Miscellaneous Agency Services,03/06/2011,235,"1,835.12",Revenue,ROYAL MENCAP SOCIETY
Adult Social Care,Older People 65&Over inc OP-MH,OP East - Home Care External,Third Party Payments,Private Contractors,Miscellaneous Agency Services,03/06/2011,236,960.80,Revenue,ROYAL MENCAP SOCIETY
Adult Social Care,Older People 65&Over inc OP-MH,OP East - Residential Care Ext,Third Party Payments,Private Contractors,Miscellaneous Agency Services,03/06/2011,237,"1,992.84",Revenue,CHASE HOUSE REST HOME
Adult Social Care,Older People 65&Over inc OP-MH,OP East - Residential Care Ext,Third Party Payments,Private Contractors,Miscellaneous Agency Services,03/06/2011,238,"2,086.84",Revenue,CHURCH FARM RESIDENTIAL HOME
Adult Social Care,Adlt u65 Learning Disabilities,LD Residential Care External,Third Party Payments,Private Contractors,Miscellaneous Agency Services,03/06/2011,239,"4,460.92",Revenue,REDACTED
Adult Social Care,Adult u65 Phys/Sensory Impair,PD EAST TEAM-Residential,Third Party Payments,Private Contractors,Miscellaneous Agency Services,03/06/2011,240,"4,226.28",Revenue,THE DISABILITIES TRUST
Adult Social Care,Adult u65 Phys/Sensory Impair,PD EAST TEAM-Residential,Third Party Payments,Private Contractors,Miscellaneous Agency Services,03/06/2011,241,"4,226.28",Revenue,THE DISABILITIES TRUST
Adult Social Care,Adlt u65 Learning Disabilities,LD Residential Care External,Third Party Payments,Private Contractors,Miscellaneous Agency Services,03/06/2011,242,"3,521.24",Revenue,HAYDON PARK LODGE
Adult Social Care,Adlt u65 Learning Disabilities,LD Residential Care External,Third Party Payments,Private Contractors,Miscellaneous Agency Services,03/06/2011,243,"2,719.32",Revenue,HAYDON PARK LODGE
Adult Social Care,Adlt u65 Learning Disabilities,LD Residential Care External,Third Party Payments,Private Contractors,Miscellaneous Agency Services,03/06/2011,244,"1,975.24",Revenue,HAYDON PARK LODGE
Adult Social Care,Adlt u65 Learning Disabilities,LD Residential Care External,Third Party Payments,Private Contractors,Miscellaneous Agency Services,03/06/2011,245,"3,600.00",Revenue,HAYDON PARK LODGE
Adult Social Care,Adlt u65 Learning Disabilities,LD Residential Care External,Third Party Payments,Private Contractors,Miscellaneous Agency Services,03/06/2011,246,"2,458.36",Revenue,HAYDON PARK LODGE
Adult Social Care,Adlt u65 Learning Disabilities,LD Residential Care External,Third Party Payments,Private Contractors,Miscellaneous Agency Services,03/06/2011,247,"2,816.00",Revenue,HAYDON PARK LODGE
Adult Social Care,Adlt u65 Learning Disabilities,LD Residential Care External,Third Party Payments,Private Contractors,Miscellaneous Agency Services,03/06/2011,248,"3,532.48",Revenue,HAYDON PARK LODGE
Adult Social Care,Adlt u65 Learning Disabilities,LD Residential Care External,Third Party Payments,Private Contractors,Miscellaneous Agency Services,03/06/2011,249,"3,451.00",Revenue,HAYDON PARK LODGE
Adult Social Care,Older People 65&Over inc OP-MH,OP West - Nursing Care,Third Party Payments,Private Contractors,Miscellaneous Agency Services,03/06/2011,250,"2,457.76",Revenue,LYNWOOD NURSING HOME
Adult Social Care,Adlt u65 Learning Disabilities,LD Home Care External,Third Party Payments,Private Contractors,Miscellaneous Agency Services,03/06/2011,251,"4,186.88",Revenue,ROYAL MENCAP SOCIETY
Adult Social Care,Adlt u65 Learning Disabilities,LD Residential Care External,Third Party Payments,Private Contractors,Miscellaneous Agency Services,03/06/2011,252,"3,180.44",Revenue,ODYSSEY CARE SOLUTIONS
Adult Social Care,Adlt u65 Learning Disabilities,LD Residential Care External,Third Party Payments,Private Contractors,Miscellaneous Agency Services,03/06/2011,253,"4,984.60",Revenue,ODYSSEY CARE SOLUTIONS
Adult Social Care,Older People 65&Over inc OP-MH,OP Hosp - Nursing Care,Third Party Payments,Private Contractors,Miscellaneous Agency Services,03/06/2011,254,"2,237.64",Revenue,SOUTHERN CROSS HEALTHCARE LTD
Adult Social Care,Older People 65&Over inc OP-MH,OP Mitcham - Nursing Care,Third Party Payments,Private Contractors,Miscellaneous Agency Services,03/06/2011,255,"2,237.64",Revenue,SOUTHERN CROSS HEALTHCARE LTD
Adult Social Care,Older People 65&Over inc OP-MH,OP West - Nursing Care,Third Party Payments,Private Contractors,Miscellaneous Agency Services,03/06/2011,256,"11,188.20",Revenue,SOUTHERN CROSS HEALTHCARE LTD
Adult Social Care,Older People 65&Over inc OP-MH,OP East - Nursing Care,Third Party Payments,Private Contractors,Miscellaneous Agency Services,03/06/2011,257,"12,466.85",Revenue,SOUTHERN CROSS HEALTHCARE LTD
Adult Social Care,Older People 65&Over inc OP-MH,OP Hosp - Nursing Care,Third Party Payments,Private Contractors,Miscellaneous Agency Services,03/06/2011,258,"2,237.64",Revenue,SOUTHERN CROSS HEALTHCARE LTD
Adult Social Care,Older People 65&Over inc OP-MH,OP Hosp - Residential Care Ext,Third Party Payments,Private Contractors,Miscellaneous Agency Services,03/06/2011,259,"-19,187.74",Revenue,SOUTHERN CROSS HEALTHCARE LTD
Adult Social Care,Older People 65&Over inc OP-MH,OP West - Residential Care Ext,Third Party Payments,Private Contractors,Miscellaneous Agency Services,03/06/2011,260,"3,757.04",Revenue,SOUTHERN CROSS HEALTHCARE LTD
Adult Social Care,Older People 65&Over inc OP-MH,OP East - Residential Care Ext,Third Party Payments,Private Contractors,Miscellaneous Agency Services,03/06/2011,261,"22,542.24",Revenue,SOUTHERN CROSS HEALTHCARE LTD
Adult Social Care,Older People 65&Over inc OP-MH,OP Mitcham-Residential CareExt,Third Party Payments,Private Contractors,Miscellaneous Agency Services,03/06/2011,262,"26,701.82",Revenue,SOUTHERN CROSS HEALTHCARE LTD
Adult Social Care,Older People 65&Over inc OP-MH,OP West - Residential Care Ext,Third Party Payments,Private Contractors,Miscellaneous Agency Services,03/06/2011,263,"1,784.20",Revenue,SOUTHPARK RESIDENTIAL HOME
Adult Social Care,Adlt u65 Learning Disabilities,LD Residential Care External,Third Party Payments,Private Contractors,Miscellaneous Agency Services,03/06/2011,264,"14,600.00",Revenue,ST LUKE'S HOSPITAL- OLD LEIGH
Adult Social Care,Adlt u65 Learning Disabilities,LD Residential Care External,Third Party Payments,Private Contractors,Miscellaneous Agency Services,03/06/2011,265,"23,905.28",Revenue,ST LUKE'S HOSPITAL- OLD LEIGH
Adult Social Care,Older People 65&Over inc OP-MH,OP Hosp - Nursing Care,Third Party Payments,Private Contractors,Miscellaneous Agency Services,03/06/2011,266,"2,007.29",Revenue,WIMBLEDON GUILD
Adult Social Care,Older People 65&Over inc OP-MH,OP Hosp - Nursing Care,Third Party Payments,Private Contractors,Miscellaneous Agency Services,03/06/2011,267,"2,341.84",Revenue,WIMBLEDON GUILD
Adult Social Care,Adlt u65 Learning Disabilities,LD Nursing Care,Third Party Payments,Private Contractors,Miscellaneous Agency Services,03/06/2011,268,"5,121.84",Revenue,WINGREACH LIMITED
Childrens & Education Services,Other Ch's & Family Services,CL Leaving Care/Supp Lodgings,Third Party Payments,Private Contractors,Supported Lodgings,06/06/2011,269,600.00,Revenue,REDACTED
Adult Social Care,Older People 65&Over inc OP-MH,OP West - Residential Care Ext,Third Party Payments,Private Contractors,Miscellaneous Agency Services,06/06/2011,270,"1,907.04",Revenue,ABBEYFIELD PEABODY S.LOND.LTD
Adult Social Care,Older People 65&Over inc OP-MH,OP Hosp - Residential Care Ext,Third Party Payments,Private Contractors,Miscellaneous Agency Services,06/06/2011,271,"2,094.40",Revenue,ABBEYFIELD PEABODY S.LOND.LTD
Adult Social Care,Older People 65&Over inc OP-MH,OP West - Residential Care Ext,Third Party Payments,Private Contractors,Miscellaneous Agency Services,06/06/2011,272,"1,904.00",Revenue,ABBEYFIELD PEABODY S.LOND.LTD
Adult Social Care,Older People 65&Over inc OP-MH,OP East - Residential Care Ext,Third Party Payments,Private Contractors,Miscellaneous Agency Services,06/06/2011,273,"1,812.40",Revenue,ABBEYFIELD PEABODY S.LOND.LTD
Adult Social Care,Older People 65&Over inc OP-MH,OP East - Residential Care Ext,Third Party Payments,Private Contractors,Miscellaneous Agency Services,06/06/2011,274,"1,884.24",Revenue,ABBEYFIELD PEABODY S.LOND.LTD
Adult Social Care,Older People 65&Over inc OP-MH,OP East - Residential Care Ext,Third Party Payments,Private Contractors,Miscellaneous Agency Services,06/06/2011,275,"1,887.90",Revenue,ABBEYGATE RESIDENTIAL HOME
Adult Social Care,Older People 65&Over inc OP-MH,OP East - Residential Care Ext,Third Party Payments,Private Contractors,Miscellaneous Agency Services,06/06/2011,276,"1,827.00",Revenue,ABBEYGATE RESIDENTIAL HOME
Adult Social Care,Older People 65&Over inc OP-MH,OP West - Residential Care Ext,Third Party Payments,Private Contractors,Miscellaneous Agency Services,06/06/2011,277,"1,380.00",Revenue,ASHMOUNT RESIDENTIAL & NURSING
Adult Social Care,Adult u65 Phys/Sensory Impair,PD EAST TEAM-Nursing,Third Party Payments,Private Contractors,Miscellaneous Agency Services,06/06/2011,278,"2,819.80",Revenue,BUPA CARE HOMES
Adult Social Care,Older People 65&Over inc OP-MH,OP West - Residential Care Ext,Third Party Payments,Private Contractors,Miscellaneous Agency Services,06/06/2011,279,"3,995.00",Revenue,BUPA CARE HOMES
Adult Social Care,Older People 65&Over inc OP-MH,OP Hosp - Residential Care Ext,Third Party Payments,Private Contractors,Miscellaneous Agency Services,06/06/2011,280,"10,077.96",Revenue,BUPA CARE HOMES
Adult Social Care,Older People 65&Over inc OP-MH,OP Hosp - Nursing Care,Third Party Payments,Private Contractors,Miscellaneous Agency Services,06/06/2011,281,"14,855.20",Revenue,BUPA CARE HOMES
Adult Social Care,Older People 65&Over inc OP-MH,OP East - Residential Care Ext,Third Party Payments,Private Contractors,Miscellaneous Agency Services,06/06/2011,282,"19,794.08",Revenue,BUPA CARE HOMES
Adult Social Care,Older People 65&Over inc OP-MH,OP East - Nursing Care,Third Party Payments,Private Contractors,Miscellaneous Agency Services,06/06/2011,283,"20,885.85",Revenue,BUPA CARE HOMES
Adult Social Care,Older People 65&Over inc OP-MH,OP East - Nursing Care,Third Party Payments,Private Contractors,Miscellaneous Agency Services,06/06/2011,284,"2,805.19",Revenue,CARE UK
Adult Social Care,Older People 65&Over inc OP-MH,OP Hosp - Nursing Care,Third Party Payments,Private Contractors,Miscellaneous Agency Services,06/06/2011,285,"2,805.19",Revenue,CARE UK
Adult Social Care,Older People 65&Over inc OP-MH,OP Hosp - Nursing Care,Third Party Payments,Private Contractors,Miscellaneous Agency Services,06/06/2011,286,"2,746.40",Revenue,CHELSTON PARK
Adult Social Care,Older People 65&Over inc OP-MH,OP East - Nursing Care,Customer and client receipts,Charges,Miscellaneous Charges X,08/06/2011,287,-652.20,Revenue,CLAREMONT CARE SVS LTD
Adult Social Care,Older People 65&Over inc OP-MH,OP East - Nursing Care,Third Party Payments,Private Contractors,Miscellaneous Agency Services,08/06/2011,288,"2,756.66",Revenue,CLAREMONT CARE SVS LTD
Adult Social Care,Older People 65&Over inc OP-MH,OP Hosp - Nursing Care,Customer and client receipts,Charges,Miscellaneous Charges X,08/06/2011,289,-652.20,Revenue,CLAREMONT CARE SVS LTD
Adult Social Care,Older People 65&Over inc OP-MH,OP Hosp - Nursing Care,Third Party Payments,Private Contractors,Miscellaneous Agency Services,08/06/2011,290,"2,588.07",Revenue,CLAREMONT CARE SVS LTD
Adult Social Care,Older People 65&Over inc OP-MH,OP Hosp - Nursing Care,Third Party Payments,Private Contractors,Miscellaneous Agency Services,06/06/2011,291,"2,337.20",Revenue,CLARENDON LS
Adult Social Care,Older People 65&Over inc OP-MH,OP East - Residential Care Ext,Third Party Payments,Private Contractors,Miscellaneous Agency Services,06/06/2011,292,"1,812.20",Revenue,GRANGE COTTAGE LIMITED
Adult Social Care,Older People 65&Over inc OP-MH,OP West - Residential Care Ext,Third Party Payments,Private Contractors,Miscellaneous Agency Services,06/06/2011,293,"3,612.76",Revenue,GRANGE COTTAGE LIMITED
Adult Social Care,Adult u65 Phys/Sensory Impair,PD EAST TEAM-Residential,Third Party Payments,Private Contractors,Miscellaneous Agency Services,06/06/2011,294,"4,602.28",Revenue,GRANGE COTTAGE LIMITED
Adult Social Care,Older People 65&Over inc OP-MH,OP East - Residential Care Ext,Third Party Payments,Private Contractors,Miscellaneous Agency Services,06/06/2011,295,"1,522.36",Revenue,CHICHESTER HALL CARE HOME LTD
Adult Social Care,Older People 65&Over inc OP-MH,OP East - Residential Care Ext,Third Party Payments,Private Contractors,Miscellaneous Agency Services,06/06/2011,296,"1,522.36",Revenue,CHICHESTER HALL CARE HOME LTD
Adult Social Care,Adult u65 Phys/Sensory Impair,PD WEST TEAM-Nursing,Third Party Payments,Private Contractors,Miscellaneous Agency Services,06/06/2011,297,"4,800.00",Revenue,HAVERING COURT NURSING HOME
Adult Social Care,Adlt u65 Learning Disabilities,LD Nursing Care,Third Party Payments,Private Contractors,Miscellaneous Agency Services,06/06/2011,298,"5,405.68",Revenue,HIGH HURLANDS HOMES
Adult Social Care,Adlt u65 Learning Disabilities,LD Residential Care External,Third Party Payments,Private Contractors,Miscellaneous Agency Services,06/06/2011,299,"2,000.00",Revenue,LINK HOUSE
Adult Social Care,Adult u65 Mental Health Needs,MH ResidentialCare Ext - Wim,Third Party Payments,Private Contractors,Miscellaneous Agency Services,06/06/2011,300,"2,247.52",Revenue,QUALITY CARE CHOICE LTD
Adult Social Care,Adlt u65 Learning Disabilities,LD Residential Care External,Customer and client receipts,Charges,Miscellaneous Charges X,06/06/2011,301,"-1,639.00",Revenue,UNITED RESPONSE
Adult Social Care,Adlt u65 Learning Disabilities,LD Residential Care External,Third Party Payments,Private Contractors,Miscellaneous Agency Services,06/06/2011,302,"26,279.04",Revenue,UNITED RESPONSE
Adult Social Care,Adlt u65 Learning Disabilities,LD Residential Care External,Third Party Payments,Private Contractors,Miscellaneous Agency Services,06/06/2011,303,"2,074.68",Revenue,EL-SHADDAI
Adult Social Care,Adlt u65 Learning Disabilities,LD Residential Care External,Third Party Payments,Private Contractors,Miscellaneous Agency Services,06/06/2011,304,"1,438.44",Revenue,EL-SHADDAI
Adult Social Care,Older People 65&Over inc OP-MH,OP East - Residential Care Ext,Third Party Payments,Private Contractors,Miscellaneous Agency Services,06/06/2011,305,"1,386.08",Revenue,EL-SHADDAI
Adult Social Care,Adlt u65 Learning Disabilities,LD Residential Care External,Third Party Payments,Private Contractors,Miscellaneous Agency Services,06/06/2011,306,"1,438.44",Revenue,EL-SHADDAI
Adult Social Care,Older People 65&Over inc OP-MH,OP Hosp - Nursing Care,Third Party Payments,Private Contractors,Miscellaneous Agency Services,06/06/2011,307,"3,440.00",Revenue,WIMBLEDON GUILD
Adult Social Care,Older People 65&Over inc OP-MH,OP West - Nursing Care,Third Party Payments,Private Contractors,Miscellaneous Agency Services,06/06/2011,308,"3,440.00",Revenue,WIMBLEDON GUILD
Adult Social Care,Older People 65&Over inc OP-MH,OP West - Nursing Care,Third Party Payments,Private Contractors,Miscellaneous Agency Services,06/06/2011,309,"2,996.00",Revenue,WIMBLEDON GUILD
Adult Social Care,Older People 65&Over inc OP-MH,OP West - Nursing Care,Third Party Payments,Private Contractors,Miscellaneous Agency Services,06/06/2011,310,"2,255.16",Revenue,WIMBLEDON GUILD
Adult Social Care,Older People 65&Over inc OP-MH,OP West - Nursing Care,Third Party Payments,Private Contractors,Miscellaneous Agency Services,06/06/2011,311,"2,996.00",Revenue,WIMBLEDON GUILD
Adult Social Care,Older People 65&Over inc OP-MH,OP R/Park-Residential Care Ext,Third Party Payments,Private Contractors,Miscellaneous Agency Services,06/06/2011,312,"2,044.56",Revenue,WIMBLEDON GUILD
Adult Social Care,Older People 65&Over inc OP-MH,OP West - Nursing Care,Third Party Payments,Private Contractors,Miscellaneous Agency Services,06/06/2011,313,"3,085.60",Revenue,WIMBLEDON GUILD
Adult Social Care,Adult u65 Mental Health Needs,MH Res Care Ext- Mitcham West,Third Party Payments,Private Contractors,Miscellaneous Agency Services,06/06/2011,314,"7,071.60",Revenue,BIBBY FACTORS SLOUGH LTD
Adult Social Care,Adlt u65 Learning Disabilities,LD Day Care Agency,Third Party Payments,Private Contractors,Miscellaneous Agency Services,06/06/2011,315,954.08,Revenue,BRIGSTOCK ACTIVITY CENTRE
Adult Social Care,Adult u65 Phys/Sensory Impair,PD EAST TEAM-Day Care,Third Party Payments,Private Contractors,Miscellaneous Agency Services,06/06/2011,316,574.00,Revenue,THE GARWOOD FOUNDATION
Adult Social Care,Adult u65 Phys/Sensory Impair,PD WEST TEAM-Day Care,Third Party Payments,Private Contractors,Miscellaneous Agency Services,06/06/2011,317,574.00,Revenue,THE GARWOOD FOUNDATION
Adult Social Care,Adlt u65 Learning Disabilities,LD Day Care Agency,Third Party Payments,Private Contractors,Miscellaneous Agency Services,06/06/2011,318,618.20,Revenue,HIGH HURLANDS HOMES
Adult Social Care,Adult u65 Phys/Sensory Impair,PD EAST TEAM-Homecare,Third Party Payments,Private Contractors,Miscellaneous Agency Services,06/06/2011,319,840.00,Revenue,REDACTED
Adult Social Care,Other Adult Services,Fixed & Variable Client Paymen,Third Party Payments,Private Contractors,Miscellaneous Agency Services,06/06/2011,320,"37,839.24",Revenue,ABILITY HOUSING ASSOCIATION
Adult Social Care,Other Adult Services,Fixed & Variable Client Paymen,Third Party Payments,Private Contractors,Miscellaneous Agency Services,06/06/2011,321,"2,631.13",Revenue,ANCHOR SP PAYMENT FROM SEP'03
Adult Social Care,Other Adult Services,Fixed & Variable Client Paymen,Third Party Payments,Private Contractors,Miscellaneous Agency Services,06/06/2011,322,"1,522.50",Revenue,ASIAN ELDERLY GROUP OF MERTON
Adult Social Care,Other Adult Services,Fixed & Variable Client Paymen,Third Party Payments,Private Contractors,Miscellaneous Agency Services,06/06/2011,323,"1,324.09",Revenue,CENTRAL & CECIL HOUSING TRUST
Adult Social Care,Other Adult Services,Fixed & Variable Client Paymen,Third Party Payments,Private Contractors,Miscellaneous Agency Services,06/06/2011,324,"1,973.30",Revenue,CROYDON CHURCHES HOUSING ASSOC
Adult Social Care,Other Adult Services,Fixed & Variable Client Paymen,Third Party Payments,Private Contractors,Miscellaneous Agency Services,06/06/2011,325,"10,150.58",Revenue,EQUINOX
Adult Social Care,Other Adult Services,Fixed & Variable Client Paymen,Third Party Payments,Private Contractors,Miscellaneous Agency Services,06/06/2011,326,"12,458.43",Revenue,FAMILY HOUSING ASSOCIATION
Adult Social Care,Other Adult Services,Fixed & Variable Client Paymen,Third Party Payments,Private Contractors,Miscellaneous Agency Services,06/06/2011,327,"21,671.75",Revenue,GRENFELL HOUSING ASSOCIATION
Adult Social Care,Other Adult Services,Fixed & Variable Client Paymen,Third Party Payments,Private Contractors,Miscellaneous Agency Services,06/06/2011,328,"1,152.00",Revenue,HANOVER HOUSING ASSOCIATION
Adult Social Care,Other Adult Services,Fixed & Variable Client Paymen,Third Party Payments,Private Contractors,Miscellaneous Agency Services,06/06/2011,329,"10,749.99",Revenue,HESTIA HOUSING AND SUPPORT
Adult Social Care,Other Adult Services,Fixed & Variable Client Paymen,Third Party Payments,Private Contractors,Miscellaneous Agency Services,06/06/2011,330,"1,558.40",Revenue,AMICUS HORIZON
Adult Social Care,Other Adult Services,Fixed & Variable Client Paymen,Third Party Payments,Private Contractors,Miscellaneous Agency Services,06/06/2011,331,"1,031.76",Revenue,HOUSING21
Adult Social Care,Other Adult Services,Fixed & Variable Client Paymen,Third Party Payments,Private Contractors,Miscellaneous Agency Services,06/06/2011,332,600.42,Revenue,KINGSTON CHURCHES ACTION ON HO
Adult Social Care,Other Adult Services,Fixed & Variable Client Paymen,Third Party Payments,Private Contractors,Miscellaneous Agency Services,06/06/2011,333,"12,060.41",Revenue,MERTON ACT.FOR SINGLE HOMELESS
Adult Social Care,Other Adult Services,Fixed & Variable Client Paymen,Third Party Payments,Private Contractors,Miscellaneous Agency Services,06/06/2011,334,"8,589.60",Revenue,MERTON REFUGE
Adult Social Care,Other Adult Services,Fixed & Variable Client Paymen,Third Party Payments,Private Contractors,Miscellaneous Agency Services,06/06/2011,335,"4,958.58",Revenue,MERTON PRIORY HOMES
Adult Social Care,Other Adult Services,Fixed & Variable Client Paymen,Third Party Payments,Private Contractors,Miscellaneous Agency Services,06/06/2011,336,"1,990.31",Revenue,MERTON PRIORY HOMES
Adult Social Care,Other Adult Services,Fixed & Variable Client Paymen,Third Party Payments,Private Contractors,Miscellaneous Agency Services,06/06/2011,337,"1,395.18",Revenue,METROPOLITAN SUPPORT TRUST
Adult Social Care,Other Adult Services,Fixed & Variable Client Paymen,Third Party Payments,Private Contractors,Miscellaneous Agency Services,06/06/2011,338,"6,080.43",Revenue,NOTTING HILL HOUSING
Adult Social Care,Other Adult Services,Fixed & Variable Client Paymen,Third Party Payments,Private Contractors,Miscellaneous Agency Services,06/06/2011,339,"4,916.21",Revenue,SANCTUARY CARE
Adult Social Care,Other Adult Services,Fixed & Variable Client Paymen,Third Party Payments,Private Contractors,Miscellaneous Agency Services,06/06/2011,340,"8,781.99",Revenue,SERVITE HOUSES
Adult Social Care,Other Adult Services,Fixed & Variable Client Paymen,Third Party Payments,Private Contractors,Miscellaneous Agency Services,06/06/2011,341,"26,886.55",Revenue,COMFORT CARE SERVICES (UK) LTD
Adult Social Care,Other Adult Services,Fixed & Variable Client Paymen,Third Party Payments,Private Contractors,Miscellaneous Agency Services,06/06/2011,342,576.70,Revenue,SHAFTESBURY HOUSING ASSOC.
Adult Social Care,Other Adult Services,Fixed & Variable Client Paymen,Third Party Payments,Private Contractors,Miscellaneous Agency Services,06/06/2011,343,"1,676.32",Revenue,REDACTED
Adult Social Care,Other Adult Services,Fixed & Variable Client Paymen,Third Party Payments,Private Contractors,Miscellaneous Agency Services,06/06/2011,344,709.45,Revenue,THRESHOLD CENTRE LTD
Adult Social Care,Other Adult Services,Fixed & Variable Client Paymen,Third Party Payments,Private Contractors,Miscellaneous Agency Services,06/06/2011,345,"19,895.20",Revenue,WANDLE HOUSING ASSOCIATION LTD
Adult Social Care,Other Adult Services,Fixed & Variable Client Paymen,Third Party Payments,Private Contractors,Miscellaneous Agency Services,06/06/2011,346,"33,899.28",Revenue,WIMBLEDON & DISTRICT YMCA
Adult Social Care,Adlt u65 Learning Disabilities,LD Residential Care External,Third Party Payments,Private Contractors,Miscellaneous Agency Services,07/06/2011,347,"4,992.52",Revenue,ASHBROOK HOUSE
Adult Social Care,Adlt u65 Learning Disabilities,LD Residential Care External,Third Party Payments,Private Contractors,Miscellaneous Agency Services,07/06/2011,348,"4,939.16",Revenue,ASHTEAD HOUSE LIMITED
Adult Social Care,Older People 65&Over inc OP-MH,OP West - Nursing Care,Third Party Payments,Private Contractors,Miscellaneous Agency Services,07/06/2011,349,"2,294.12",Revenue,BEACH LAWNS
Adult Social Care,Older People 65&Over inc OP-MH,OP East - Residential Care Ext,Third Party Payments,Private Contractors,Miscellaneous Agency Services,07/06/2011,350,"1,680.00",Revenue,BELL MEMORIAL HOME
Adult Social Care,Older People 65&Over inc OP-MH,OP West - Residential Care Ext,Third Party Payments,Private Contractors,Miscellaneous Agency Services,07/06/2011,351,"2,200.00",Revenue,CARTER HOUSE
Adult Social Care,Older People 65&Over inc OP-MH,OP Hosp - Nursing Care,Third Party Payments,Private Contractors,Miscellaneous Agency Services,07/06/2011,352,"2,552.88",Revenue,CARTER HOUSE
Adult Social Care,Older People 65&Over inc OP-MH,OP Hosp - Residential Care Ext,Third Party Payments,Private Contractors,Miscellaneous Agency Services,07/06/2011,353,"2,200.00",Revenue,CARTER HOUSE
Adult Social Care,Older People 65&Over inc OP-MH,OP West - Residential Care Ext,Third Party Payments,Private Contractors,Miscellaneous Agency Services,07/06/2011,354,"2,000.00",Revenue,CARTER HOUSE
Adult Social Care,Older People 65&Over inc OP-MH,OP East - Residential Care Ext,Third Party Payments,Private Contractors,Miscellaneous Agency Services,08/06/2011,355,"1,767.08",Revenue,CENTRAL & CECIL
Adult Social Care,Older People 65&Over inc OP-MH,OP East - Residential Care Ext,Third Party Payments,Private Contractors,Miscellaneous Agency Services,07/06/2011,356,"1,928.56",Revenue,CHASE HOUSE REST HOME
Adult Social Care,Older People 65&Over inc OP-MH,OP Hosp - Nursing Care,Third Party Payments,Private Contractors,Miscellaneous Agency Services,07/06/2011,357,"4,683.68",Revenue,CRNH LTD
Adult Social Care,Older People 65&Over inc OP-MH,OP Hosp - Residential Care Ext,Third Party Payments,Private Contractors,Miscellaneous Agency Services,07/06/2011,358,"2,614.29",Revenue,AVERY HOMES LEEDS
Adult Social Care,Older People 65&Over inc OP-MH,OP East - Nursing Care,Customer and client receipts,Charges,Miscellaneous Charges X,07/06/2011,359,-869.60,Revenue,GGIBSON LODGE NURSING HOME
Adult Social Care,Older People 65&Over inc OP-MH,OP East - Nursing Care,Third Party Payments,Private Contractors,Miscellaneous Agency Services,07/06/2011,360,"4,353.28",Revenue,GGIBSON LODGE NURSING HOME
Adult Social Care,Adlt u65 Learning Disabilities,LD Residential Care External,Third Party Payments,Private Contractors,Miscellaneous Agency Services,08/06/2011,361,"4,330.44",Revenue,HUNTERS' LODGE
Adult Social Care,Older People 65&Over inc OP-MH,OP West - Residential Care Ext,Third Party Payments,Private Contractors,Miscellaneous Agency Services,08/06/2011,362,"1,694.23",Revenue,NIGHTINGALE HOUSE
Adult Social Care,Older People 65&Over inc OP-MH,OP East - Nursing Care,Third Party Payments,Private Contractors,Miscellaneous Agency Services,07/06/2011,363,"2,552.00",Revenue,PRIORY COURT CARE HOME
Adult Social Care,Older People 65&Over inc OP-MH,OP Hosp - Nursing Care,Third Party Payments,Private Contractors,Miscellaneous Agency Services,07/06/2011,364,"2,341.84",Revenue,PRIORY COURT CARE HOME
Adult Social Care,Older People 65&Over inc OP-MH,OP East - Nursing Care,Third Party Payments,Private Contractors,Miscellaneous Agency Services,07/06/2011,365,"2,341.84",Revenue,ST JOHNS NURSING HOME
Adult Social Care,Older People 65&Over inc OP-MH,OP West - Nursing Care,Third Party Payments,Private Contractors,Miscellaneous Agency Services,07/06/2011,366,"2,341.84",Revenue,SUTTON COURT CARE CENTRE
Adult Social Care,Older People 65&Over inc OP-MH,OP Hosp - Nursing Care,Third Party Payments,Private Contractors,Miscellaneous Agency Services,07/06/2011,367,"2,341.84",Revenue,SUTTON COURT CARE CENTRE
Adult Social Care,Older People 65&Over inc OP-MH,OP Hosp - Nursing Care,Third Party Payments,Private Contractors,Miscellaneous Agency Services,07/06/2011,368,"2,341.84",Revenue,SUTTON COURT CARE CENTRE
Adult Social Care,Older People 65&Over inc OP-MH,OP Hosp - Nursing Care,Third Party Payments,Private Contractors,Miscellaneous Agency Services,07/06/2011,369,"2,341.84",Revenue,SUTTON COURT CARE CENTRE
Adult Social Care,Older People 65&Over inc OP-MH,OP Hosp - Nursing Care,Third Party Payments,Private Contractors,Miscellaneous Agency Services,07/06/2011,370,"2,757.44",Revenue,SUTTON COURT CARE CENTRE
Adult Social Care,Older People 65&Over inc OP-MH,OP Hosp - Nursing Care,Third Party Payments,Private Contractors,Miscellaneous Agency Services,07/06/2011,371,"2,341.84",Revenue,SUTTON COURT CARE CENTRE
Adult Social Care,Older People 65&Over inc OP-MH,OP West - Nursing Care,Third Party Payments,Private Contractors,Miscellaneous Agency Services,07/06/2011,372,"2,341.84",Revenue,SUTTON COURT CARE CENTRE
Adult Social Care,Older People 65&Over inc OP-MH,OP West - Nursing Care,Third Party Payments,Private Contractors,Miscellaneous Agency Services,07/06/2011,373,"2,341.84",Revenue,SUTTON COURT CARE CENTRE
Adult Social Care,Older People 65&Over inc OP-MH,OP East - Nursing Care,Third Party Payments,Private Contractors,Miscellaneous Agency Services,07/06/2011,374,"2,552.88",Revenue,SUTTON COURT CARE CENTRE
Adult Social Care,Older People 65&Over inc OP-MH,OP West - Nursing Care,Third Party Payments,Private Contractors,Miscellaneous Agency Services,07/06/2011,375,"2,341.84",Revenue,SUTTON COURT CARE CENTRE
Adult Social Care,Adult u65 Phys/Sensory Impair,PS Nursing Care - NRTPF,Third Party Payments,Private Contractors,Miscellaneous Agency Services,07/06/2011,376,"2,341.84",Revenue,SUTTON COURT CARE CENTRE
Adult Social Care,Older People 65&Over inc OP-MH,OP West - Nursing Care,Third Party Payments,Private Contractors,Miscellaneous Agency Services,07/06/2011,377,"2,341.84",Revenue,SUTTON COURT CARE CENTRE
Adult Social Care,Older People 65&Over inc OP-MH,OP East - Nursing Care,Third Party Payments,Private Contractors,Miscellaneous Agency Services,07/06/2011,378,"2,341.84",Revenue,SUTTON COURT CARE CENTRE
Adult Social Care,Older People 65&Over inc OP-MH,OP Hosp - Nursing Care,Third Party Payments,Private Contractors,Miscellaneous Agency Services,07/06/2011,379,"2,341.84",Revenue,SUTTON COURT CARE CENTRE
Adult Social Care,Older People 65&Over inc OP-MH,OP Hosp - Nursing Care,Third Party Payments,Private Contractors,Miscellaneous Agency Services,07/06/2011,380,"2,341.84",Revenue,SUTTON COURT CARE CENTRE
Adult Social Care,Older People 65&Over inc OP-MH,OP Hosp - Nursing Care,Third Party Payments,Private Contractors,Miscellaneous Agency Services,07/06/2011,381,"2,341.84",Revenue,SUTTON COURT CARE CENTRE
Adult Social Care,Older People 65&Over inc OP-MH,OP Hosp - Nursing Care,Third Party Payments,Private Contractors,Miscellaneous Agency Services,07/06/2011,382,"2,341.84",Revenue,SUTTON COURT CARE CENTRE
Adult Social Care,Adlt u65 Learning Disabilities,LD Residential Care External,Third Party Payments,Private Contractors,Miscellaneous Agency Services,07/06/2011,383,"5,828.72",Revenue,WALSINGHAM
Adult Social Care,Older People 65&Over inc OP-MH,OP West - Nursing Care,Third Party Payments,Private Contractors,Miscellaneous Agency Services,07/06/2011,384,"2,312.36",Revenue,WESTMINSTER HEALTHCARE LTD
Adult Social Care,Older People 65&Over inc OP-MH,OP West - Nursing Care,Third Party Payments,Private Contractors,Miscellaneous Agency Services,07/06/2011,385,"2,552.88",Revenue,WESTMINSTER HEALTHCARE LTD
Adult Social Care,Older People 65&Over inc OP-MH,OP West - Residential Care Ext,Third Party Payments,Private Contractors,Miscellaneous Agency Services,07/06/2011,386,"2,552.88",Revenue,WESTMINSTER HEALTHCARE LTD
Childrens & Education Services,Children Looked After (24hrs+),CL Independent Fostering,Supplies and Services,Services,Task Based Fostering,07/06/2011,387,"6,232.24",Revenue,THE NATIONAL FOSTERING AGENCY
Childrens & Education Services,Children Looked After (24hrs+),CL Fostering Services,Supplies and Services,Services,Task Based Fostering,07/06/2011,388,763.46,Revenue,REDACTED
Childrens & Education Services,Children Looked After (24hrs+),CL Fostering Services,Supplies and Services,Services,Task Based Fostering,07/06/2011,389,"1,534.20",Revenue,REDACTED
Childrens & Education Services,Children Looked After (24hrs+),CL Fostering Services,Supplies and Services,Services,Task Based Fostering,07/06/2011,390,"1,502.66",Revenue,REDACTED
Childrens & Education Services,Children Looked After (24hrs+),CL Fostering Services,Supplies and Services,Services,Task Based Fostering,07/06/2011,391,739.20,Revenue,REDACTED
Childrens & Education Services,Children Looked After (24hrs+),CL Fostering Services,Supplies and Services,Services,Task Based Fostering,07/06/2011,392,"2,300.08",Revenue,REDACTED
Childrens & Education Services,Children Looked After (24hrs+),CL Fostering Services,Supplies and Services,Services,Task Based Fostering,07/06/2011,393,"2,266.12",Revenue,REDACTED
Childrens & Education Services,Children Looked After (24hrs+),CL Fostering Services,Supplies and Services,Services,Task Based Fostering,07/06/2011,394,"1,519.64",Revenue,REDACTED
Childrens & Education Services,Children Looked After (24hrs+),CL Fostering Services,Supplies and Services,Services,Task Based Fostering,07/06/2011,395,780.44,Revenue,REDACTED
Childrens & Education Services,Children Looked After (24hrs+),CL Fostering Services,Supplies and Services,Services,Task Based Fostering,07/06/2011,396,"2,324.34",Revenue,REDACTED
Childrens & Education Services,Children Looked After (24hrs+),CL Fostering Services,Supplies and Services,Services,Task Based Fostering,07/06/2011,397,"1,543.90",Revenue,REDACTED
Childrens & Education Services,Children Looked After (24hrs+),CL Fostering Services,Supplies and Services,Services,Task Based Fostering,07/06/2011,398,"1,320.92",Revenue,REDACTED
Childrens & Education Services,Children Looked After (24hrs+),CL Fostering Services,Supplies and Services,Services,Task Based Fostering,07/06/2011,399,"2,307.36",Revenue,REDACTED
Childrens & Education Services,Children Looked After (24hrs+),CL Fostering Services,Supplies and Services,Services,Task Based Fostering,07/06/2011,400,"1,560.88",Revenue,REDACTED
Childrens & Education Services,Children Looked After (24hrs+),CL Fostering Services,Supplies and Services,Services,Task Based Fostering,07/06/2011,401,"1,502.66",Revenue,REDACTED
Childrens & Education Services,Children Looked After (24hrs+),CL Fostering Services,Supplies and Services,Services,Task Based Fostering,07/06/2011,402,739.20,Revenue,REDACTED
Childrens & Education Services,Children Looked After (24hrs+),CL Fostering Services,Supplies and Services,Services,Task Based Fostering,07/06/2011,403,739.20,Revenue,REDACTED
Childrens & Education Services,Children Looked After (24hrs+),CL Fostering Services,Supplies and Services,Services,Task Based Fostering,07/06/2011,404,"1,478.40",Revenue,REDACTED
Childrens & Education Services,Children Looked After (24hrs+),CL Fostering Services,Supplies and Services,Services,Task Based Fostering,07/06/2011,405,780.44,Revenue,REDACTED
Childrens & Education Services,Children Looked After (24hrs+),CL Fostering Services,Supplies and Services,Services,Task Based Fostering,07/06/2011,406,"1,502.66",Revenue,REDACTED
Childrens & Education Services,Children Looked After (24hrs+),CL Fostering Services,Supplies and Services,Services,Task Based Fostering,07/06/2011,407,780.44,Revenue,REDACTED
Childrens & Education Services,Children Looked After (24hrs+),CL Fostering Services,Supplies and Services,Services,Task Based Fostering,07/06/2011,408,739.20,Revenue,REDACTED
Childrens & Education Services,Children Looked After (24hrs+),CL Fostering Services,Supplies and Services,Services,Task Based Fostering,07/06/2011,409,"2,241.86",Revenue,REDACTED
Childrens & Education Services,Children Looked After (24hrs+),CL Fostering Services,Supplies and Services,Services,Task Based Fostering,07/06/2011,410,"1,543.90",Revenue,REDACTED
Adult Social Care,Older People 65&Over inc OP-MH,OP East -Direct Payment Scheme,Third Party Payments,Private Contractors,Direct Payments,08/06/2011,411,549.30,Revenue,REDACTED
Childrens & Education Services,Other Ch's & Family Services,CL Leaving Care/Supp Lodgings,Third Party Payments,Private Contractors,Miscellaneous Agency Services,30/06/2011,412,"12,259.00",Revenue,THE ARTEMIS TEAM LIMITED
Adult Social Care,Asylum seekers,AS Child Res Care  (No Grant),Third Party Payments,Private Contractors,Private Tenant/Landlord,08/06/2011,413,600.00,Revenue,REDACTED
Adult Social Care,Adult u65 Phys/Sensory Impair,PD WEST TEAM-Homecare,Third Party Payments,Private Contractors,Miscellaneous Agency Services,08/06/2011,414,850.00,Revenue,BELGRAVIA NURS. & CARE BUREAU
Adult Social Care,Adult u65 Phys/Sensory Impair,PD EAST TEAM-Homecare,Third Party Payments,Private Contractors,Miscellaneous Agency Services,08/06/2011,415,664.62,Revenue,BELGRAVIA NURS. & CARE BUREAU
Adult Social Care,Adlt u65 Learning Disabilities,LD Day Care Agency,Third Party Payments,Private Contractors,Miscellaneous Agency Services,08/06/2011,416,986.20,Revenue,THE SHEILING TRUST
Adult Social Care,Adlt u65 Learning Disabilities,LD Home Care External,Third Party Payments,Private Contractors,Miscellaneous Agency Services,08/06/2011,417,-635.88,Revenue,UNITED RESPONSE
Adult Social Care,Adlt u65 Learning Disabilities,LD Comm -Home Care-Orch Hill,Third Party Payments,Private Contractors,Miscellaneous Agency Services,08/06/2011,418,"1,483.93",Revenue,UNITED RESPONSE
Adult Social Care,Adlt u65 Learning Disabilities,LD Day Care Agency,Third Party Payments,Private Contractors,Miscellaneous Agency Services,08/06/2011,419,708.00,Revenue,WORKSHOP 305
Adult Social Care,Adult u65 Mental Health Needs,MH Adult Placement Cont-Wim,Third Party Payments,Private Contractors,Accommodation Based Support,08/06/2011,420,"2,000.00",Revenue,REDACTED
Adult Social Care,Adult u65 Mental Health Needs,MH Adult PlacementCont-MitWest,Third Party Payments,Private Contractors,Accommodation Based Support,08/06/2011,421,"1,000.00",Revenue,REDACTED
Adult Social Care,Adult u65 Mental Health Needs,MH ResidentialCare Ext - Wim,Third Party Payments,Private Contractors,Miscellaneous Agency Services,08/06/2011,422,"1,524.76",Revenue,ALDWICK RESIDENTIAL CARE HOME
Adult Social Care,Older People 65&Over inc OP-MH,OP East - Residential Care Ext,Third Party Payments,Private Contractors,Miscellaneous Agency Services,08/06/2011,423,"3,860.00",Revenue,ATHOL HOUSE
Adult Social Care,Older People 65&Over inc OP-MH,OP East - Nursing Care,Third Party Payments,Private Contractors,Miscellaneous Agency Services,08/06/2011,424,"2,254.92",Revenue,BEVERLEY LODGE NURSING HOME
Adult Social Care,Older People 65&Over inc OP-MH,OP Hosp - Residential Care Ext,Third Party Payments,Private Contractors,Miscellaneous Agency Services,08/06/2011,425,"2,440.00",Revenue,BROOKVALE LAWN CARE HOME
Adult Social Care,Adlt u65 Learning Disabilities,LD Residential Care External,Third Party Payments,Private Contractors,Miscellaneous Agency Services,08/06/2011,426,"2,471.60",Revenue,CANTERBURY OAST TRUST LTD
Adult Social Care,Adlt u65 Learning Disabilities,LD Residential Care External,Third Party Payments,Private Contractors,Miscellaneous Agency Services,08/06/2011,427,"4,760.00",Revenue,CARE MANAGEMENT GROUP
Adult Social Care,Older People 65&Over inc OP-MH,OP East - Residential Care Ext,Third Party Payments,Private Contractors,Miscellaneous Agency Services,08/06/2011,428,"1,812.40",Revenue,GRASMERE RESIDENTIAL HOME
Adult Social Care,Adlt u65 Learning Disabilities,LD Residential Care External,Third Party Payments,Private Contractors,Miscellaneous Agency Services,08/06/2011,429,"6,997.00",Revenue,CHHG LTD T/A GRETTON HOMES
Adult Social Care,Older People 65&Over inc OP-MH,OP West - Nursing Care,Third Party Payments,Private Contractors,Miscellaneous Agency Services,08/06/2011,430,"3,200.00",Revenue,HEADINGTON NURSING HOME
Adult Social Care,Adult u65 Phys/Sensory Impair,PD EAST TEAM-Residential,Third Party Payments,Private Contractors,Miscellaneous Agency Services,08/06/2011,431,"5,142.60",Revenue,HIGHVIEW CARE SERVICES LTD
Adult Social Care,Adlt u65 Learning Disabilities,LD Home Care External,Third Party Payments,Private Contractors,Miscellaneous Agency Services,08/06/2011,432,"3,234.96",Revenue,H F TRUST LTD
Adult Social Care,Adlt u65 Learning Disabilities,LD Residential Care External,Third Party Payments,Private Contractors,Miscellaneous Agency Services,08/06/2011,433,"3,256.32",Revenue,L'ARCHE
Adult Social Care,Adult u65 Phys/Sensory Impair,PD WEST TEAM-Nursing,Third Party Payments,Private Contractors,Miscellaneous Agency Services,08/06/2011,434,"2,801.40",Revenue,MEADBANK NURSING CENTRE
Adult Social Care,Adult u65 Mental Health Needs,MH ResidentialCare Ext - Wim,Customer and client receipts,Charges,Miscellaneous Charges X,08/06/2011,435,-590.00,Revenue,MENTAL HEALTH CARE (UK) LTD
Adult Social Care,Adult u65 Mental Health Needs,MH ResidentialCare Ext - Wim,Third Party Payments,Private Contractors,Miscellaneous Agency Services,08/06/2011,436,"3,171.08",Revenue,MENTAL HEALTH CARE (UK) LTD
Adult Social Care,Older People 65&Over inc OP-MH,OP East - Nursing Care,Third Party Payments,Private Contractors,Miscellaneous Agency Services,08/06/2011,437,"2,074.50",Revenue,NIGHTINGALE HOUSE
Adult Social Care,Adlt u65 Learning Disabilities,LD Residential Care External,Third Party Payments,Private Contractors,Miscellaneous Agency Services,08/06/2011,438,"4,984.60",Revenue,ODYSSEY CARE SOLUTIONS
Adult Social Care,Adlt u65 Learning Disabilities,LD Comm -Residential-Orch Hill,Third Party Payments,Private Contractors,Miscellaneous Agency Services,08/06/2011,439,"5,984.08",Revenue,PROSPECT HOUSING & SUPPORT SER
Adult Social Care,Older People 65&Over inc OP-MH,OP East - Residential Care Ext,Third Party Payments,Private Contractors,Miscellaneous Agency Services,08/06/2011,440,"3,308.92",Revenue,RNID
Adult Social Care,Older People 65&Over inc OP-MH,OP East - Residential Care Ext,Third Party Payments,Private Contractors,Miscellaneous Agency Services,08/06/2011,441,"3,308.92",Revenue,RNID
Adult Social Care,Older People 65&Over inc OP-MH,OP Hosp - Nursing Care,Third Party Payments,Private Contractors,Miscellaneous Agency Services,08/06/2011,442,"1,421.83",Revenue,SUTTON COURT CARE CENTRE
Adult Social Care,Older People 65&Over inc OP-MH,OP West - Residential Care Ext,Third Party Payments,Private Contractors,Miscellaneous Agency Services,08/06/2011,443,"2,100.00",Revenue,THE DEVONSHIRE RESID CARE HOME
Adult Social Care,Adlt u65 Learning Disabilities,LD Nursing Care,Third Party Payments,Private Contractors,Miscellaneous Agency Services,08/06/2011,444,"10,243.68",Revenue,WINGREACH LIMITED
Adult Social Care,Adult u65 Mental Health Needs,HS Adult Placements,Third Party Payments,Private Contractors,Accommodation Based Support,09/06/2011,445,"2,055.04",Revenue,TRISWIT LIMITED
Adult Social Care,Adult u65 Mental Health Needs,HS Adult Placements,Third Party Payments,Private Contractors,Accommodation Based Support,09/06/2011,446,"1,167.60",Revenue,REDACTED
Adult Social Care,Adult u65 Mental Health Needs,HS Adult Placements,Third Party Payments,Private Contractors,Accommodation Based Support,10/06/2011,447,"1,556.80",Revenue,REDACTED
Adult Social Care,Adult u65 Mental Health Needs,HS Adult Placements,Third Party Payments,Private Contractors,Accommodation Based Support,09/06/2011,448,636.72,Revenue,REDACTED
Adult Social Care,Adult u65 Mental Health Needs,HS Adult Placements,Third Party Payments,Private Contractors,Accommodation Based Support,10/06/2011,449,"2,911.73",Revenue,REDACTED
Adult Social Care,Adlt u65 Learning Disabilities,LD Adult Placements - HST,Third Party Payments,Private Contractors,Accommodation Based Support,09/06/2011,450,"1,758.56",Revenue,REDACTED
Adult Social Care,Adult u65 Mental Health Needs,HS Adult Placements,Third Party Payments,Private Contractors,Accommodation Based Support,09/06/2011,451,"1,432.76",Revenue,REDACTED
Adult Social Care,Adlt u65 Learning Disabilities,LD Home Care External,Third Party Payments,Private Contractors,Miscellaneous Agency Services,09/06/2011,452,655.30,Revenue,BEECH HOME CARE SERVICES
Adult Social Care,Adult u65 Phys/Sensory Impair,PD WEST TEAM-Homecare,Third Party Payments,Private Contractors,Miscellaneous Agency Services,09/06/2011,453,850.00,Revenue,BELGRAVIA NURS. & CARE BUREAU
Adult Social Care,Older People 65&Over inc OP-MH,OP West - Home Care External,Third Party Payments,Private Contractors,Miscellaneous Agency Services,09/06/2011,454,555.32,Revenue,COMPASSIONATE CARING AGENCY UK
Adult Social Care,Older People 65&Over inc OP-MH,OP East - Home Care External,Third Party Payments,Private Contractors,Miscellaneous Agency Services,09/06/2011,455,736.39,Revenue,COMPASSIONATE CARING AGENCY UK
Adult Social Care,Adult u65 Phys/Sensory Impair,PD WEST TEAM-Homecare,Third Party Payments,Private Contractors,Miscellaneous Agency Services,09/06/2011,456,"1,611.44",Revenue,COMPASSIONATE CARING AGENCY UK
Adult Social Care,Adult u65 Phys/Sensory Impair,PD EAST TEAM-Homecare,Third Party Payments,Private Contractors,Miscellaneous Agency Services,09/06/2011,457,"1,874.94",Revenue,COMPASSIONATE CARING AGENCY UK
Adult Social Care,Older People 65&Over inc OP-MH,OP West - Home Care External,Third Party Payments,Private Contractors,Miscellaneous Agency Services,09/06/2011,458,"2,655.44",Revenue,COMPASSIONATE CARING AGENCY UK
Adult Social Care,Older People 65&Over inc OP-MH,OP West - Home Care External,Third Party Payments,Private Contractors,Miscellaneous Agency Services,09/06/2011,459,900.38,Revenue,COMPASSIONATE CARING AGENCY UK
Adult Social Care,Older People 65&Over inc OP-MH,OP West - Home Care External,Third Party Payments,Private Contractors,Miscellaneous Agency Services,09/06/2011,460,"2,202.78",Revenue,COMPASSIONATE CARING AGENCY UK
Adult Social Care,Older People 65&Over inc OP-MH,OP East - Home Care External,Third Party Payments,Private Contractors,Miscellaneous Agency Services,09/06/2011,461,535.36,Revenue,COMPASSIONATE CARING AGENCY UK
Adult Social Care,Adult u65 Phys/Sensory Impair,PD EAST TEAM-Homecare,Third Party Payments,Private Contractors,Miscellaneous Agency Services,09/06/2011,462,"2,235.95",Revenue,COMPASSIONATE CARING AGENCY UK
Adult Social Care,Older People 65&Over inc OP-MH,OP East - Home Care External,Third Party Payments,Private Contractors,Miscellaneous Agency Services,09/06/2011,463,"2,116.04",Revenue,COMPASSIONATE CARING AGENCY UK
Adult Social Care,Older People 65&Over inc OP-MH,OP West - Home Care External,Third Party Payments,Private Contractors,Miscellaneous Agency Services,09/06/2011,464,"2,194.74",Revenue,COMPASSIONATE CARING AGENCY UK
Adult Social Care,Older People 65&Over inc OP-MH,OP East - Home Care External,Third Party Payments,Private Contractors,Miscellaneous Agency Services,09/06/2011,465,"1,976.76",Revenue,COMPASSIONATE CARING AGENCY UK
Adult Social Care,Older People 65&Over inc OP-MH,OP East - Home Care External,Third Party Payments,Private Contractors,Miscellaneous Agency Services,09/06/2011,466,"2,636.36",Revenue,COMPASSIONATE CARING AGENCY UK
Adult Social Care,Adult u65 Phys/Sensory Impair,PD EAST TEAM-Homecare,Third Party Payments,Private Contractors,Miscellaneous Agency Services,09/06/2011,467,"3,714.92",Revenue,HOMECARE SERVICES LTD
Adult Social Care,Adlt u65 Learning Disabilities,LD Day Care Agency,Third Party Payments,Private Contractors,Miscellaneous Agency Services,09/06/2011,468,646.56,Revenue,UNITED RESPONSE
Childrens & Education Services,Children Looked After (24hrs+),CL Residential Care Homes CLA,Third Party Payments,Private Contractors,Miscellaneous Agency Services,09/06/2011,469,"45,747.00",Revenue,REDACTED
Childrens & Education Services,Children Looked After (24hrs+),CL Residential Care Homes CLA,Third Party Payments,Private Contractors,Miscellaneous Agency Services,09/06/2011,470,"45,747.00",Revenue,REDACTED
Childrens & Education Services,Children Looked After (24hrs+),CL Residential Care Homes CLA,Third Party Payments,Private Contractors,Miscellaneous Agency Services,09/06/2011,471,"12,073.60",Revenue,REDACTED
Childrens & Education Services,Children Looked After (24hrs+),CL Mother&BabyAssessment-Court,Third Party Payments,Private Contractors,Miscellaneous Agency Services,09/06/2011,472,"12,880.00",Revenue,REDACTED
Childrens & Education Services,Children Looked After (24hrs+),CL Residential Care Homes CLA,Third Party Payments,Private Contractors,Miscellaneous Agency Services,09/06/2011,473,"12,478.07",Revenue,REDACTED
Childrens & Education Services,Children Looked After (24hrs+),CL Residential Care Homes CLA,Third Party Payments,Private Contractors,Miscellaneous Agency Services,09/06/2011,474,"16,221.55",Revenue,REDACTED
Childrens & Education Services,Children Looked After (24hrs+),CL Independent Fostering,Supplies and Services,Services,Task Based Fostering,09/06/2011,475,"6,900.00",Revenue,CHILDREN OF COLOUR
Childrens & Education Services,Children Looked After (24hrs+),CL Independent Fostering,Supplies and Services,Services,Task Based Fostering,09/06/2011,476,"8,200.00",Revenue,CHILDREN OF COLOUR
Childrens & Education Services,Children Looked After (24hrs+),CL Independent Fostering,Supplies and Services,Services,Task Based Fostering,09/06/2011,477,"3,296.64",Revenue,CROHAM SERV.FOR CHILDREN LTD
Childrens & Education Services,Children Looked After (24hrs+),CL Independent Fostering,Supplies and Services,Services,Task Based Fostering,09/06/2011,478,"3,296.64",Revenue,CROHAM SERV.FOR CHILDREN LTD
Childrens & Education Services,Children Looked After (24hrs+),CL Independent Fostering,Supplies and Services,Services,Long Term Fostering,09/06/2011,479,"4,638.65",Revenue,ETHELBERT SPECIALIST HOMES LTD
Childrens & Education Services,Children Looked After (24hrs+),CL Independent Fostering,Supplies and Services,Services,Long Term Fostering,09/06/2011,480,"2,905.01",Revenue,FOSTER CARE ASSOCIATES LTD
Childrens & Education Services,Children Looked After (24hrs+),CL Independent Fostering,Supplies and Services,Services,Task Based Fostering,10/06/2011,481,"14,861.28",Revenue,HEATH FARM FAMILY SVS LTD.
Childrens & Education Services,Children Looked After (24hrs+),CL Independent Fostering,Supplies and Services,Services,Task Based Fostering,09/06/2011,482,"6,913.62",Revenue,HILLCREST CARE LTD
Childrens & Education Services,Children Looked After (24hrs+),CL Independent Fostering,Supplies and Services,Services,Task Based Fostering,09/06/2011,483,"7,185.80",Revenue,HILLCREST CARE LTD
Childrens & Education Services,Children Looked After (24hrs+),CL Independent Fostering,Supplies and Services,Services,Task Based Fostering,09/06/2011,484,"6,913.62",Revenue,HILLCREST CARE LTD
Childrens & Education Services,Children Looked After (24hrs+),CL Independent Fostering,Supplies and Services,Services,Long Term Fostering,09/06/2011,485,"3,126.04",Revenue,KINDERCARE FOSTERING
Childrens & Education Services,Children Looked After (24hrs+),CL Independent Fostering,Supplies and Services,Services,Task Based Fostering,09/06/2011,486,"6,609.82",Revenue,KINDERCARE FOSTERING
Childrens & Education Services,Children Looked After (24hrs+),CL Independent Fostering,Supplies and Services,Services,Task Based Fostering,09/06/2011,487,"6,946.48",Revenue,KINDERCARE FOSTERING
Childrens & Education Services,Children Looked After (24hrs+),CL Independent Fostering,Supplies and Services,Services,Long Term Fostering,09/06/2011,488,"3,473.24",Revenue,KINDERCARE FOSTERING
Childrens & Education Services,Children Looked After (24hrs+),CL Independent Fostering,Supplies and Services,Services,Task Based Fostering,09/06/2011,489,"6,252.08",Revenue,KINDERCARE FOSTERING
Childrens & Education Services,Children Looked After (24hrs+),CL Independent Fostering,Supplies and Services,Services,Task Based Fostering,10/06/2011,490,"12,000.00",Revenue,NEXT STEP FOSTERING SERV'S LTD
Childrens & Education Services,Children Looked After (24hrs+),CL Independent Fostering,Supplies and Services,Services,Long Term Fostering,09/06/2011,491,"4,800.00",Revenue,SANKOFA CARE LTD
Childrens & Education Services,Children Looked After (24hrs+),CL Independent Fostering,Supplies and Services,Services,Task Based Fostering,09/06/2011,492,"6,737.14",Revenue,ST CHRISTOPHERS FELLOWSHIP
Adult Social Care,Adlt u65 Learning Disabilities,LD Residential Care External,Third Party Payments,Private Contractors,Miscellaneous Agency Services,09/06/2011,493,"4,157.24",Revenue,ASHINGTON HOUSE
Adult Social Care,Older People 65&Over inc OP-MH,OP East - Nursing Care,Third Party Payments,Private Contractors,Miscellaneous Agency Services,09/06/2011,494,"3,353.84",Revenue,BRENDON CARE FOUNDATION
Adult Social Care,Older People 65&Over inc OP-MH,OP Mitcham-Residential CareExt,Third Party Payments,Private Contractors,Miscellaneous Agency Services,09/06/2011,495,"2,000.00",Revenue,BROOK CARE HOMES LTD
Adult Social Care,Older People 65&Over inc OP-MH,OP Mitcham-Residential CareExt,Third Party Payments,Private Contractors,Miscellaneous Agency Services,09/06/2011,496,"2,000.00",Revenue,BROOK CARE HOMES LTD
Adult Social Care,Older People 65&Over inc OP-MH,OP Mitcham-Residential CareExt,Third Party Payments,Private Contractors,Miscellaneous Agency Services,09/06/2011,497,"2,000.00",Revenue,BROOK CARE HOMES LTD
Adult Social Care,Adult u65 Phys/Sensory Impair,PD EAST TEAM-Nursing,Third Party Payments,Private Contractors,Miscellaneous Agency Services,09/06/2011,498,"5,800.00",Revenue,BUPA CARE HOMES
Adult Social Care,Older People 65&Over inc OP-MH,OP Hosp - Residential Care Ext,Third Party Payments,Private Contractors,Miscellaneous Agency Services,10/06/2011,499,"1,424.03",Revenue,CLOYDA REST HOME
Adult Social Care,Older People 65&Over inc OP-MH,OP Hosp - Residential Care Ext,Third Party Payments,Private Contractors,Miscellaneous Agency Services,10/06/2011,500,"1,768.88",Revenue,CLOYDA REST HOME
Adult Social Care,Older People 65&Over inc OP-MH,OP West - Residential Care Ext,Third Party Payments,Private Contractors,Miscellaneous Agency Services,10/06/2011,501,"1,960.00",Revenue,CLOYDA REST HOME
Adult Social Care,Adlt u65 Learning Disabilities,LD Residential Care External,Third Party Payments,Private Contractors,Miscellaneous Agency Services,09/06/2011,502,"5,380.00",Revenue,CARE MANAGEMENT GROUP
Adult Social Care,Adlt u65 Learning Disabilities,LD Residential Care External,Third Party Payments,Private Contractors,Miscellaneous Agency Services,09/06/2011,503,"5,981.20",Revenue,CARE MANAGEMENT GROUP
Adult Social Care,Adult u65 Mental Health Needs,MH ResidentialCare Ext - Wim,Third Party Payments,Private Contractors,Miscellaneous Agency Services,09/06/2011,504,"3,632.00",Revenue,CARE MANAGEMENT GROUP
Adult Social Care,Adult u65 Phys/Sensory Impair,PD WEST TEAM-Homecare,Third Party Payments,Private Contractors,Miscellaneous Agency Services,09/06/2011,505,"5,520.00",Revenue,CARE MANAGEMENT GROUP
Adult Social Care,Adlt u65 Learning Disabilities,LD Residential Care External,Third Party Payments,Private Contractors,Miscellaneous Agency Services,09/06/2011,506,"5,044.00",Revenue,CARE MANAGEMENT GROUP
Adult Social Care,Adlt u65 Learning Disabilities,LD Residential Care External,Third Party Payments,Private Contractors,Miscellaneous Agency Services,09/06/2011,507,"3,336.00",Revenue,CARE MANAGEMENT GROUP
Adult Social Care,Adult u65 Mental Health Needs,MH Res Care Ext- Mitcham West,Third Party Payments,Private Contractors,Miscellaneous Agency Services,09/06/2011,508,"3,900.00",Revenue,COMMUNITY HOUSING & THERAPY
Adult Social Care,Adult u65 Mental Health Needs,MH ResidentialCare Ext - Wim,Third Party Payments,Private Contractors,Miscellaneous Agency Services,09/06/2011,509,"3,552.52",Revenue,COMMUNITY HOUSING & THERAPY
Adult Social Care,Adult u65 Phys/Sensory Impair,PS Residential Care External,Third Party Payments,Private Contractors,Miscellaneous Agency Services,09/06/2011,510,"-4,628.57",Revenue,HIGHVIEW CARE SERVICES LTD
Adult Social Care,Adult u65 Phys/Sensory Impair,PD EAST TEAM-Residential,Third Party Payments,Private Contractors,Miscellaneous Agency Services,09/06/2011,511,"9,771.17",Revenue,HIGHVIEW CARE SERVICES LTD
Adult Social Care,Adlt u65 Learning Disabilities,LD Residential Care External,Third Party Payments,Private Contractors,Miscellaneous Agency Services,10/06/2011,512,"5,288.83",Revenue,KENT AUTISTIC TRUST
Adult Social Care,Adlt u65 Learning Disabilities,LD Nursing Care,Third Party Payments,Private Contractors,Miscellaneous Agency Services,10/06/2011,513,"5,884.32",Revenue,SUSSEX HEALTH CARE
Adult Social Care,Adlt u65 Learning Disabilities,LD Residential Care External,Third Party Payments,Private Contractors,Miscellaneous Agency Services,10/06/2011,514,"6,552.00",Revenue,SUSSEX HEALTH CARE
Adult Social Care,Adlt u65 Learning Disabilities,LD Residential Care External,Third Party Payments,Private Contractors,Miscellaneous Agency Services,10/06/2011,515,"3,256.32",Revenue,L'ARCHE
Adult Social Care,Adlt u65 Learning Disabilities,LD Residential Care External,Third Party Payments,Private Contractors,Miscellaneous Agency Services,10/06/2011,516,"3,256.32",Revenue,L'ARCHE
Adult Social Care,Adult u65 Phys/Sensory Impair,PD WEST TEAM-Nursing,Customer and client receipts,Charges,Miscellaneous Charges X,09/06/2011,517,-786.00,Revenue,REDACTED
Adult Social Care,Adult u65 Phys/Sensory Impair,PD WEST TEAM-Nursing,Third Party Payments,Private Contractors,Miscellaneous Agency Services,09/06/2011,518,"4,254.28",Revenue,REDACTED
Adult Social Care,Older People 65&Over inc OP-MH,OP Hosp - Residential Care Ext,Third Party Payments,Private Contractors,Miscellaneous Agency Services,10/06/2011,519,"1,800.00",Revenue,REDACTED
Adult Social Care,Older People 65&Over inc OP-MH,OP West - Nursing Care,Third Party Payments,Private Contractors,Miscellaneous Agency Services,09/06/2011,520,"2,233.00",Revenue,MOWBRAY NURSING HOME
Adult Social Care,Adlt u65 Learning Disabilities,LD Residential Care External,Third Party Payments,Private Contractors,Miscellaneous Agency Services,09/06/2011,521,"3,180.44",Revenue,ODYSSEY CARE SOLUTIONS
Adult Social Care,Adult u65 Phys/Sensory Impair,PD EAST TEAM-Residential,Third Party Payments,Private Contractors,Miscellaneous Agency Services,09/06/2011,522,"5,068.72",Revenue,RNIB REDHILL COLLEGE
Adult Social Care,Older People 65&Over inc OP-MH,OP Hosp - Residential Care Ext,Third Party Payments,Private Contractors,Miscellaneous Agency Services,09/06/2011,523,"2,100.00",Revenue,ROYAL CAMBRIDGE HOME
Adult Social Care,Older People 65&Over inc OP-MH,OP Morden-Residential Care Ext,Third Party Payments,Private Contractors,Miscellaneous Agency Services,09/06/2011,524,"-4,633.00",Revenue,SUNRISE SENIOR LIVING RES.HOME
Adult Social Care,Older People 65&Over inc OP-MH,OP East - Residential Care Ext,Third Party Payments,Private Contractors,Miscellaneous Agency Services,09/06/2011,525,"7,797.00",Revenue,SUNRISE SENIOR LIVING RES.HOME
Adult Social Care,Adlt u65 Learning Disabilities,LD Residential Care External,Third Party Payments,Private Contractors,Miscellaneous Agency Services,09/06/2011,526,"5,678.20",Revenue,SUSSEX AUTISTIC COMMUNITY TRUS
Adult Social Care,Adlt u65 Learning Disabilities,LD Residential Care External,Third Party Payments,Private Contractors,Miscellaneous Agency Services,09/06/2011,527,"5,678.20",Revenue,SUSSEX AUTISTIC COMMUNITY TRUS
Adult Social Care,Adult u65 Mental Health Needs,MH ResidentialCare Ext-Morden,Third Party Payments,Private Contractors,Miscellaneous Agency Services,10/06/2011,528,"4,260.99",Revenue,BROOKDALE HEALTH CARE
Adult Social Care,Older People 65&Over inc OP-MH,OP Hosp - Residential Care Ext,Third Party Payments,Private Contractors,Miscellaneous Agency Services,10/06/2011,529,"2,380.00",Revenue,EASTERLEA REST HOME
Adult Social Care,Older People 65&Over inc OP-MH,OP Hosp - Residential Care Ext,Third Party Payments,Private Contractors,Miscellaneous Agency Services,10/06/2011,530,"2,380.00",Revenue,EASTERLEA REST HOME
Adult Social Care,Older People 65&Over inc OP-MH,OP West - Nursing Care,Third Party Payments,Private Contractors,Miscellaneous Agency Services,10/06/2011,531,"2,153.91",Revenue,GARTH HOUSE NURSING HOME
Adult Social Care,Older People 65&Over inc OP-MH,OP Hosp - Residential Care Ext,Third Party Payments,Private Contractors,Miscellaneous Agency Services,10/06/2011,532,"2,200.00",Revenue,HASLINGTON RESIDENTIAL HOME
Adult Social Care,Older People 65&Over inc OP-MH,OP Hosp - Nursing Care,Third Party Payments,Private Contractors,Miscellaneous Agency Services,10/06/2011,533,"2,341.84",Revenue,HOME CLOSE
Adult Social Care,Older People 65&Over inc OP-MH,OP West - Residential Care Ext,Third Party Payments,Private Contractors,Miscellaneous Agency Services,10/06/2011,534,"2,730.00",Revenue,LINK HOUSE
Adult Social Care,Older People 65&Over inc OP-MH,OP Hosp - Residential Care Ext,Third Party Payments,Private Contractors,Miscellaneous Agency Services,10/06/2011,535,"2,000.00",Revenue,LINK HOUSE
Adult Social Care,Older People 65&Over inc OP-MH,OP East - Nursing Care,Third Party Payments,Private Contractors,Miscellaneous Agency Services,10/06/2011,536,920.01,Revenue,FAMILY STAR LTD
Adult Social Care,Older People 65&Over inc OP-MH,OP Hosp - Residential Care Ext,Third Party Payments,Private Contractors,Miscellaneous Agency Services,10/06/2011,537,"2,459.68",Revenue,ST MARY'S LODGE
Adult Social Care,Older People 65&Over inc OP-MH,OP West - Nursing Care,Third Party Payments,Private Contractors,Miscellaneous Agency Services,10/06/2011,538,"2,258.20",Revenue,SUTTON COURT CARE CENTRE
Adult Social Care,Older People 65&Over inc OP-MH,OP East - Nursing Care,Third Party Payments,Private Contractors,Miscellaneous Agency Services,10/06/2011,539,"2,341.84",Revenue,SUTTON COURT CARE CENTRE
Adult Social Care,Older People 65&Over inc OP-MH,OP Hosp - Nursing Care,Third Party Payments,Private Contractors,Miscellaneous Agency Services,10/06/2011,540,"2,341.84",Revenue,SUTTON COURT CARE CENTRE
Adult Social Care,Older People 65&Over inc OP-MH,OP Hosp - Nursing Care,Third Party Payments,Private Contractors,Miscellaneous Agency Services,10/06/2011,541,"1,907.04",Revenue,SUTTON COURT CARE CENTRE
Adult Social Care,Older People 65&Over inc OP-MH,OP West - Nursing Care,Third Party Payments,Private Contractors,Miscellaneous Agency Services,10/06/2011,542,"2,864.64",Revenue,WIMBLEDON GUILD
Adult Social Care,Older People 65&Over inc OP-MH,OP East - Residential Care Ext,Third Party Payments,Private Contractors,Miscellaneous Agency Services,10/06/2011,543,"2,000.00",Revenue,WOODLANDS
Adult Social Care,Older People 65&Over inc OP-MH,OP West - Residential Care Ext,Third Party Payments,Private Contractors,Miscellaneous Agency Services,10/06/2011,544,"2,000.00",Revenue,WOODLANDS
Adult Social Care,Older People 65&Over inc OP-MH,OP West - Residential Care Ext,Third Party Payments,Private Contractors,Miscellaneous Agency Services,10/06/2011,545,"2,044.56",Revenue,WOODLANDS
Adult Social Care,Older People 65&Over inc OP-MH,OP East - Nursing Care,Third Party Payments,Private Contractors,Miscellaneous Agency Services,10/06/2011,546,"2,552.88",Revenue,WOODLANDS
Adult Social Care,Adult u65 Phys/Sensory Impair,PD WEST TEAM-Homecare,Third Party Payments,Private Contractors,Miscellaneous Agency Services,10/06/2011,547,614.17,Revenue,ACCESS CARE LTD
Adult Social Care,Older People 65&Over inc OP-MH,OP West - Daycare,Third Party Payments,Private Contractors,Miscellaneous Agency Services,10/06/2011,548,740.62,Revenue,ENTERPRISE CARE SUPPORT LTD
Adult Social Care,Older People 65&Over inc OP-MH,OP East - Daycare,Third Party Payments,Private Contractors,Miscellaneous Agency Services,10/06/2011,549,740.62,Revenue,ENTERPRISE CARE SUPPORT LTD
Adult Social Care,Older People 65&Over inc OP-MH,OP East - Daycare,Third Party Payments,Private Contractors,Miscellaneous Agency Services,10/06/2011,550,584.70,Revenue,ENTERPRISE CARE SUPPORT LTD
Adult Social Care,Adlt u65 Learning Disabilities,LD Comm -Home Care-Campus Hm,Third Party Payments,Private Contractors,Miscellaneous Agency Services,13/06/2011,551,"11,547.84",Revenue,CHOICE SUPPORT
Adult Social Care,Adlt u65 Learning Disabilities,LD Comm -Home Care-Campus Hm,Third Party Payments,Private Contractors,Miscellaneous Agency Services,13/06/2011,552,"11,547.84",Revenue,CHOICE SUPPORT
Adult Social Care,Older People 65&Over inc OP-MH,OP East - Carer Services,Third Party Payments,Private Contractors,Miscellaneous Agency Services,15/06/2011,553,516.15,Revenue,CLASSIC HOME CARE SERVICES
Adult Social Care,Older People 65&Over inc OP-MH,OP East - Daycare,Third Party Payments,Private Contractors,Miscellaneous Agency Services,13/06/2011,554,740.62,Revenue,ENTERPRISE CARE SUPPORT LTD
Adult Social Care,Older People 65&Over inc OP-MH,OP West - Daycare,Third Party Payments,Private Contractors,Miscellaneous Agency Services,13/06/2011,555,740.62,Revenue,ENTERPRISE CARE SUPPORT LTD
Adult Social Care,Adult u65 Mental Health Needs,MH Day Care - Morden,Third Party Payments,Private Contractors,Miscellaneous Agency Services,13/06/2011,556,623.68,Revenue,ENTERPRISE CARE SUPPORT LTD
Adult Social Care,Older People 65&Over inc OP-MH,OP East - Daycare,Third Party Payments,Private Contractors,Miscellaneous Agency Services,13/06/2011,557,740.62,Revenue,ENTERPRISE CARE SUPPORT LTD
Adult Social Care,Older People 65&Over inc OP-MH,OP East - Daycare,Third Party Payments,Private Contractors,Miscellaneous Agency Services,13/06/2011,558,740.62,Revenue,ENTERPRISE CARE SUPPORT LTD
Adult Social Care,Adlt u65 Learning Disabilities,LD Direct Payment Scheme,Third Party Payments,Private Contractors,Direct Payments,13/06/2011,559,853.64,Revenue,REDACTED
Adult Social Care,Adult u65 Phys/Sensory Impair,PD WEST TEAM-Direct Payment,Third Party Payments,Private Contractors,Direct Payments,13/06/2011,560,"1,278.00",Revenue,REDACTED
Adult Social Care,Adlt u65 Learning Disabilities,LD Direct Payment Scheme,Third Party Payments,Private Contractors,Direct Payments,13/06/2011,561,566.16,Revenue,REDACTED
Childrens & Education Services,Children Looked After (24hrs+),CL Independent Fostering,Supplies and Services,Services,Task Based Fostering,13/06/2011,562,"8,000.00",Revenue,CHILDREN OF COLOUR
Childrens & Education Services,Other Ch's & Family Services,CL Leaving Care/Supp Lodgings,Third Party Payments,Private Contractors,Private Tenant/Landlord,13/06/2011,563,"1,008.78",Revenue,REDACTED
Childrens & Education Services,Other Ch's & Family Services,CL Leaving Care/Supp Lodgings,Third Party Payments,Private Contractors,Supported Lodgings,13/06/2011,564,600.00,Revenue,REDACTED
Childrens & Education Services,Children Looked After (24hrs+),CL Independent Fostering,Supplies and Services,Services,Task Based Fostering,13/06/2011,565,"1,569.26",Revenue,CORNERWAYS FOSTERING SERV.LTD
Childrens & Education Services,Children Looked After (24hrs+),CL Independent Fostering,Supplies and Services,Services,Task Based Fostering,13/06/2011,566,"1,569.26",Revenue,CORNERWAYS FOSTERING SERV.LTD
Childrens & Education Services,Children Looked After (24hrs+),CL Independent Fostering,Supplies and Services,Services,Task Based Fostering,13/06/2011,567,"1,569.26",Revenue,CORNERWAYS FOSTERING SERV.LTD
Childrens & Education Services,Children Looked After (24hrs+),CL Independent Fostering,Supplies and Services,Services,Task Based Fostering,13/06/2011,568,"6,719.02",Revenue,SAFEHOUSES
Adult Social Care,Adult u65 Mental Health Needs,MH Other Servs - Mitcham West,Third Party Payments,Private Contractors,Miscellaneous Agency Services,13/06/2011,569,"3,750.00",Revenue,DEEPDENE CARE LIMITED
Adult Social Care,Older People 65&Over inc OP-MH,OP East -Direct Payment Scheme,Third Party Payments,Private Contractors,Direct Payments,13/06/2011,570,"1,960.41",Revenue,REDACTED
Adult Social Care,Adult u65 Mental Health Needs,HS Adult Placements,Third Party Payments,Private Contractors,Accommodation Based Support,20/06/2011,571,778.40,Revenue,REDACTED
Adult Social Care,Adult u65 Mental Health Needs,MH Adult Placement Cont- NRTPF,Third Party Payments,Private Contractors,Accommodation Based Support,20/06/2011,572,"2,574.80",Revenue,REDACTED
Adult Social Care,Adult u65 Mental Health Needs,HS Adult Placements,Third Party Payments,Private Contractors,Accommodation Based Support,22/06/2011,573,806.20,Revenue,REDACTED
Adult Social Care,Adult u65 Mental Health Needs,HS Adult Placements,Third Party Payments,Private Contractors,Accommodation Based Support,20/06/2011,574,973.00,Revenue,REDACTED
Adult Social Care,Older People 65&Over inc OP-MH,OP Hosp - Nursing Care,Third Party Payments,Private Contractors,Miscellaneous Agency Services,15/06/2011,575,"2,341.84",Revenue,REDACTED
Adult Social Care,Older People 65&Over inc OP-MH,OP Hosp - Nursing Care,Third Party Payments,Private Contractors,Miscellaneous Agency Services,15/06/2011,576,"2,341.84",Revenue,REDACTED
Adult Social Care,Older People 65&Over inc OP-MH,OP East - Nursing Care,Third Party Payments,Private Contractors,Miscellaneous Agency Services,15/06/2011,577,"2,221.84",Revenue,REDACTED
Adult Social Care,Adlt u65 Learning Disabilities,LD Residential Care External,Third Party Payments,Private Contractors,Miscellaneous Agency Services,13/06/2011,578,"5,500.00",Revenue,CARE MANAGEMENT GROUP
Adult Social Care,Adult u65 Mental Health Needs,MH ResidentialCare Ext-Morden,Customer and client receipts,Charges,Miscellaneous Charges X,13/06/2011,579,-918.00,Revenue,REDACTED
Adult Social Care,Adult u65 Mental Health Needs,MH ResidentialCare Ext-Morden,Third Party Payments,Private Contractors,Miscellaneous Agency Services,13/06/2011,580,"2,851.12",Revenue,REDACTED
Adult Social Care,Adlt u65 Learning Disabilities,LD Residential Care External,Third Party Payments,Private Contractors,Miscellaneous Agency Services,13/06/2011,581,"2,697.04",Revenue,REDACTED
Adult Social Care,Adult u65 Phys/Sensory Impair,PD EAST TEAM-Residential,Third Party Payments,Private Contractors,Miscellaneous Agency Services,13/06/2011,582,"8,384.84",Revenue,RNID
Adult Social Care,Adult u65 Phys/Sensory Impair,PD EAST TEAM-Residential,Third Party Payments,Private Contractors,Miscellaneous Agency Services,13/06/2011,583,"8,384.84",Revenue,RNID
Adult Social Care,Older People 65&Over inc OP-MH,OP Hosp - Residential Care Ext,Third Party Payments,Private Contractors,Miscellaneous Agency Services,15/06/2011,584,"1,812.40",Revenue,ST MARY'S LODGE
Adult Social Care,Older People 65&Over inc OP-MH,OP Hosp - Residential Care Ext,Third Party Payments,Private Contractors,Miscellaneous Agency Services,15/06/2011,585,"1,812.40",Revenue,ST MARY'S LODGE
Adult Social Care,Older People 65&Over inc OP-MH,OP East - Residential Care Ext,Third Party Payments,Private Contractors,Miscellaneous Agency Services,15/06/2011,586,"1,812.40",Revenue,ST MARY'S LODGE
Adult Social Care,Older People 65&Over inc OP-MH,OP Hosp - Residential Care Ext,Third Party Payments,Private Contractors,Miscellaneous Agency Services,15/06/2011,587,"1,812.40",Revenue,ST MARY'S LODGE
Adult Social Care,Adlt u65 Learning Disabilities,LD Residential Care External,Third Party Payments,Private Contractors,Miscellaneous Agency Services,14/06/2011,588,"6,159.00",Revenue,BROADHAM CARE LTD
Adult Social Care,Adlt u65 Learning Disabilities,LD Residential Care External,Third Party Payments,Private Contractors,Miscellaneous Agency Services,14/06/2011,589,"8,212.00",Revenue,BROADHAM CARE LTD
Adult Social Care,Adlt u65 Learning Disabilities,LD Residential Care External,Third Party Payments,Private Contractors,Miscellaneous Agency Services,14/06/2011,590,"8,212.00",Revenue,BROADHAM CARE LTD
Adult Social Care,Adult u65 Phys/Sensory Impair,PD EAST TEAM-Residential,Third Party Payments,Private Contractors,Miscellaneous Agency Services,14/06/2011,591,"6,428.70",Revenue,BRAMBLEDOWN CARE HOME
Adult Social Care,Older People 65&Over inc OP-MH,OP East - Residential Care Ext,Third Party Payments,Private Contractors,Miscellaneous Agency Services,14/06/2011,592,-885.41,Revenue,BUPA CARE HOMES
Adult Social Care,Older People 65&Over inc OP-MH,OP Hosp - Nursing Care,Third Party Payments,Private Contractors,Miscellaneous Agency Services,14/06/2011,593,"3,523.95",Revenue,BUPA CARE HOMES
Adult Social Care,Older People 65&Over inc OP-MH,OP West - Nursing Care,Third Party Payments,Private Contractors,Miscellaneous Agency Services,14/06/2011,594,"2,406.60",Revenue,BUPA CARE HOMES
Adult Social Care,Older People 65&Over inc OP-MH,OP Hosp - Residential Care Ext,Third Party Payments,Private Contractors,Miscellaneous Agency Services,14/06/2011,595,"1,571.51",Revenue,CRNH LTD
Adult Social Care,Older People 65&Over inc OP-MH,OP Hosp - Nursing Care,Third Party Payments,Private Contractors,Miscellaneous Agency Services,14/06/2011,596,"2,341.84",Revenue,CRNH LTD
Adult Social Care,Older People 65&Over inc OP-MH,OP Hosp - Nursing Care,Third Party Payments,Private Contractors,Miscellaneous Agency Services,14/06/2011,597,"3,021.43",Revenue,GALSWORTHY HOUSE NURSING HOME
Adult Social Care,Adlt u65 Learning Disabilities,LD Residential Care External,Third Party Payments,Private Contractors,Miscellaneous Agency Services,14/06/2011,598,"3,800.00",Revenue,ST GEORGES RES. CARE HOME
Adult Social Care,Older People 65&Over inc OP-MH,OP Hosp - Nursing Care,Third Party Payments,Private Contractors,Miscellaneous Agency Services,14/06/2011,599,"2,341.84",Revenue,HOME CLOSE
Adult Social Care,Adult u65 Mental Health Needs,MH ResidentialCare Ext-Morden,Third Party Payments,Private Contractors,Miscellaneous Agency Services,14/06/2011,600,"2,839.00",Revenue,REDACTED
Adult Social Care,Older People 65&Over inc OP-MH,OP West - Nursing Care,Third Party Payments,Private Contractors,Miscellaneous Agency Services,14/06/2011,601,"2,007.29",Revenue,KELSTONE COURT NURSING HOME
Adult Social Care,Adlt u65 Learning Disabilities,LD Residential Care External,Third Party Payments,Private Contractors,Miscellaneous Agency Services,15/06/2011,602,"5,931.68",Revenue,THE LEO TRUST
Adult Social Care,Older People 65&Over inc OP-MH,OP East - Residential Care Ext,Third Party Payments,Private Contractors,Miscellaneous Agency Services,14/06/2011,603,"1,827.00",Revenue,MEDIHANDS CLIFTON CARE HOME
Adult Social Care,Older People 65&Over inc OP-MH,OP East - Residential Care Ext,Third Party Payments,Private Contractors,Miscellaneous Agency Services,14/06/2011,604,"1,827.00",Revenue,MEDIHANDS CLIFTON CARE HOME
Adult Social Care,Older People 65&Over inc OP-MH,OP East - Residential Care Ext,Third Party Payments,Private Contractors,Miscellaneous Agency Services,14/06/2011,605,"1,827.00",Revenue,MEDIHANDS CLIFTON CARE HOME
Adult Social Care,Older People 65&Over inc OP-MH,OP West - Residential Care Ext,Third Party Payments,Private Contractors,Miscellaneous Agency Services,14/06/2011,606,"3,710.56",Revenue,PORTELET LODGE
Adult Social Care,Older People 65&Over inc OP-MH,OP East - Residential Care Ext,Third Party Payments,Private Contractors,Miscellaneous Agency Services,14/06/2011,607,"1,776.20",Revenue,VIRIDIAN HOUSING
Adult Social Care,Older People 65&Over inc OP-MH,OP Hosp - Nursing Care,Third Party Payments,Private Contractors,Miscellaneous Agency Services,15/06/2011,608,"2,174.58",Revenue,THE WHITE HOUSE NURSING HOME
Adult Social Care,Older People 65&Over inc OP-MH,OP West - Nursing Care,Third Party Payments,Private Contractors,Miscellaneous Agency Services,15/06/2011,609,"2,173.96",Revenue,THE WHITE HOUSE NURSING HOME
Adult Social Care,Older People 65&Over inc OP-MH,OP West - Nursing Care,Third Party Payments,Private Contractors,Miscellaneous Agency Services,15/06/2011,610,"2,173.96",Revenue,THE WHITE HOUSE NURSING HOME
Adult Social Care,Older People 65&Over inc OP-MH,OP West - Nursing Care,Third Party Payments,Private Contractors,Miscellaneous Agency Services,15/06/2011,611,"2,233.00",Revenue,THE WHITE HOUSE NURSING HOME
Adult Social Care,Older People 65&Over inc OP-MH,OP East - Residential Care Ext,Third Party Payments,Private Contractors,Miscellaneous Agency Services,15/06/2011,612,"1,551.84",Revenue,WILLETT LODGE
Adult Social Care,Adult u65 Phys/Sensory Impair,PD WEST TEAM-Direct Payment,Third Party Payments,Private Contractors,Direct Payments,14/06/2011,613,"1,146.00",Revenue,REDACTED
Adult Social Care,Older People 65&Over inc OP-MH,OP East - Home Care External,Third Party Payments,Private Contractors,Miscellaneous Agency Services,14/06/2011,614,945.00,Revenue,ENTERPRISE CARE SUPPORT LTD
Adult Social Care,Adult u65 Mental Health Needs,MH Day Care - Mitcham West,Third Party Payments,Private Contractors,Miscellaneous Agency Services,14/06/2011,615,"1,305.36",Revenue,NAS SERVICES LIMITED
Adult Social Care,Older People 65&Over inc OP-MH,OP West - Home Care External,Third Party Payments,Private Contractors,Miscellaneous Agency Services,15/06/2011,616,800.00,Revenue,TOTAL PROPERTY SERVICES
Childrens & Education Services,Family Support Services,CS Day Care CWD,Third Party Payments,Private Contractors,Miscellaneous Agency Services,14/06/2011,617,728.76,Revenue,CORE CONNEXIONS
Childrens & Education Services,Children Looked After (24hrs+),CL Independent Fostering,Supplies and Services,Services,Task Based Fostering,14/06/2011,618,"7,702.26",Revenue,THE FOSTER CARE AGENCY
Childrens & Education Services,Other Ch's & Family Services,CL Leaving Care/Supp Lodgings,Third Party Payments,Private Contractors,Supported Lodgings,14/06/2011,619,600.00,Revenue,REDACTED
Childrens & Education Services,Children Looked After (24hrs+),CL Independent Fostering,Supplies and Services,Services,Task Based Fostering,14/06/2011,620,"6,832.00",Revenue,THE NATIONAL FOSTERING AGENCY
Childrens & Education Services,Children Looked After (24hrs+),CL Independent Fostering,Supplies and Services,Services,Task Based Fostering,14/06/2011,621,"6,232.24",Revenue,THE NATIONAL FOSTERING AGENCY
Childrens & Education Services,Children Looked After (24hrs+),CL Independent Fostering,Supplies and Services,Services,Task Based Fostering,14/06/2011,622,"7,542.48",Revenue,ORCHIDS FOSTERING FOR CHILDREN
Childrens & Education Services,Children Looked After (24hrs+),CL Independent Fostering,Supplies and Services,Services,Task Based Fostering,15/06/2011,623,"6,214.88",Revenue,RAINBOW FOSTERING SERVICES LTD
Childrens & Education Services,Children Looked After (24hrs+),CL Independent Fostering,Supplies and Services,Services,Task Based Fostering,15/06/2011,624,"5,943.94",Revenue,RAINBOW FOSTERING SERVICES LTD
Childrens & Education Services,Children Looked After (24hrs+),CL Independent Fostering,Supplies and Services,Services,Task Based Fostering,15/06/2011,625,"5,943.94",Revenue,RAINBOW FOSTERING SERVICES LTD
Childrens & Education Services,Children Looked After (24hrs+),CL Independent Fostering,Supplies and Services,Services,Task Based Fostering,15/06/2011,626,"5,943.94",Revenue,RAINBOW FOSTERING SERVICES LTD
Childrens & Education Services,Children Looked After (24hrs+),CL Independent Fostering,Supplies and Services,Services,Task Based Fostering,15/06/2011,627,"5,943.94",Revenue,RAINBOW FOSTERING SERVICES LTD
Childrens & Education Services,Children Looked After (24hrs+),CL Independent Fostering,Supplies and Services,Services,Task Based Fostering,14/06/2011,628,"1,569.26",Revenue,CORNERWAYS FOSTERING SERV.LTD
Childrens & Education Services,Children Looked After (24hrs+),CL Independent Fostering,Supplies and Services,Services,Task Based Fostering,14/06/2011,629,"6,961.72",Revenue,ST CHRISTOPHERS FELLOWSHIP
Childrens & Education Services,Children Looked After (24hrs+),CL Fostering Services,Supplies and Services,Services,Task Based Fostering,14/06/2011,630,"2,658.82",Revenue,REDACTED
Childrens & Education Services,Children Looked After (24hrs+),CL Fostering Services,Supplies and Services,Services,Task Based Fostering,14/06/2011,631,"1,543.90",Revenue,REDACTED
Childrens & Education Services,Children Looked After (24hrs+),CL Fostering Services,Supplies and Services,Services,Task Based Fostering,14/06/2011,632,"1,502.66",Revenue,REDACTED
Childrens & Education Services,Children Looked After (24hrs+),CL Fostering Services,Supplies and Services,Services,Task Based Fostering,14/06/2011,633,739.20,Revenue,REDACTED
Childrens & Education Services,Children Looked After (24hrs+),CL Fostering Services,Supplies and Services,Services,Task Based Fostering,14/06/2011,634,"2,300.08",Revenue,REDACTED
Childrens & Education Services,Children Looked After (24hrs+),CL Fostering Services,Supplies and Services,Services,Task Based Fostering,14/06/2011,635,"2,266.12",Revenue,REDACTED
Childrens & Education Services,Children Looked After (24hrs+),CL Fostering Services,Supplies and Services,Services,Task Based Fostering,14/06/2011,636,"1,519.64",Revenue,REDACTED
Childrens & Education Services,Children Looked After (24hrs+),CL Fostering Services,Supplies and Services,Services,Task Based Fostering,14/06/2011,637,780.44,Revenue,REDACTED
Childrens & Education Services,Children Looked After (24hrs+),CL Fostering Services,Supplies and Services,Services,Task Based Fostering,14/06/2011,638,"2,324.34",Revenue,REDACTED
Childrens & Education Services,Children Looked After (24hrs+),CL Fostering Services,Supplies and Services,Services,Task Based Fostering,14/06/2011,639,"1,543.90",Revenue,REDACTED
Childrens & Education Services,Children Looked After (24hrs+),CL Fostering Services,Supplies and Services,Services,Task Based Fostering,14/06/2011,640,"1,543.90",Revenue,REDACTED
Childrens & Education Services,Children Looked After (24hrs+),CL Fostering Services,Supplies and Services,Services,Task Based Fostering,14/06/2011,641,"2,307.36",Revenue,REDACTED
Childrens & Education Services,Children Looked After (24hrs+),CL Fostering Services,Supplies and Services,Services,Task Based Fostering,14/06/2011,642,"1,560.88",Revenue,REDACTED
Childrens & Education Services,Children Looked After (24hrs+),CL Fostering Services,Supplies and Services,Services,Task Based Fostering,14/06/2011,643,"1,502.66",Revenue,REDACTED
Childrens & Education Services,Children Looked After (24hrs+),CL Fostering Services,Supplies and Services,Services,Task Based Fostering,14/06/2011,644,739.20,Revenue,REDACTED
Childrens & Education Services,Children Looked After (24hrs+),CL Fostering Services,Supplies and Services,Services,Task Based Fostering,14/06/2011,645,780.44,Revenue,REDACTED
Childrens & Education Services,Children Looked After (24hrs+),CL Fostering Services,Supplies and Services,Services,Task Based Fostering,14/06/2011,646,780.44,Revenue,REDACTED
Childrens & Education Services,Children Looked After (24hrs+),CL Fostering Services,Supplies and Services,Services,Task Based Fostering,14/06/2011,647,"1,478.40",Revenue,REDACTED
Childrens & Education Services,Children Looked After (24hrs+),CL Fostering Services,Supplies and Services,Services,Task Based Fostering,14/06/2011,648,780.44,Revenue,REDACTED
Childrens & Education Services,Children Looked After (24hrs+),CL Fostering Services,Supplies and Services,Services,Task Based Fostering,14/06/2011,649,"1,502.66",Revenue,REDACTED
Childrens & Education Services,Children Looked After (24hrs+),CL Fostering Services,Supplies and Services,Services,Task Based Fostering,14/06/2011,650,780.44,Revenue,REDACTED
Childrens & Education Services,Children Looked After (24hrs+),CL Fostering Services,Supplies and Services,Services,Task Based Fostering,14/06/2011,651,739.20,Revenue,REDACTED
Childrens & Education Services,Children Looked After (24hrs+),CL Fostering Services,Supplies and Services,Services,Task Based Fostering,14/06/2011,652,"2,241.86",Revenue,REDACTED
Childrens & Education Services,Children Looked After (24hrs+),CL Fostering Services,Supplies and Services,Services,Task Based Fostering,14/06/2011,653,"1,543.90",Revenue,REDACTED
Childrens & Education Services,Other Ch's & Family Services,CL Adoption Allowances,Transfer Payments,Adult Soc Servs Clients,Adodption Allowances,15/06/2011,654,562.88,Revenue,REDACTED
Childrens & Education Services,Other Ch's & Family Services,CL Adoption Allowances,Transfer Payments,Adult Soc Servs Clients,Adodption Allowances,15/06/2011,655,607.08,Revenue,REDACTED
Childrens & Education Services,Family Support Services,CL Residence Orders,Supplies and Services,Grants and Subscriptions,Residence Orders,15/06/2011,656,606.90,Revenue,REDACTED
Childrens & Education Services,Other Ch's & Family Services,CL Adoption Allowances,Transfer Payments,Adult Soc Servs Clients,Adodption Allowances,15/06/2011,657,912.40,Revenue,REDACTED
Childrens & Education Services,Family Support Services,CL Residence Orders,Supplies and Services,Grants and Subscriptions,Residence Orders,15/06/2011,658,879.02,Revenue,REDACTED
Childrens & Education Services,Other Ch's & Family Services,CL Adoption Allowances,Transfer Payments,Adult Soc Servs Clients,Adodption Allowances,15/06/2011,659,"3,359.28",Revenue,REDACTED
Adult Social Care,Asylum seekers,AS Child - Res Care (Grant),Third Party Payments,Private Contractors,Miscellaneous Agency Services,15/06/2011,660,"1,250.00",Revenue,LIVINGSTONE SUPPORTED HOUSING
Adult Social Care,Asylum seekers,AS Child - Res Care (Grant),Third Party Payments,Private Contractors,Miscellaneous Agency Services,15/06/2011,661,964.28,Revenue,LIVINGSTONE SUPPORTED HOUSING
Childrens & Education Services,Children Looked After (24hrs+),CL Independent Fostering,Supplies and Services,Services,Task Based Fostering,15/06/2011,662,"4,229.02",Revenue,THE NATIONAL FOSTERING AGENCY
Adult Social Care,Adlt u65 Learning Disabilities,LD Residential Care External,Third Party Payments,Private Contractors,Miscellaneous Agency Services,15/06/2011,663,"5,288.04",Revenue,REDACTED
Adult Social Care,Adlt u65 Learning Disabilities,LD Residential Care External,Third Party Payments,Private Contractors,Miscellaneous Agency Services,15/06/2011,664,"5,535.52",Revenue,THE REGARD PARTNERSHIP LTD
Adult Social Care,Adlt u65 Learning Disabilities,LD Residential Care External,Third Party Payments,Private Contractors,Miscellaneous Agency Services,15/06/2011,665,"5,536.00",Revenue,THE REGARD PARTNERSHIP LTD
Adult Social Care,Adult u65 Phys/Sensory Impair,PD EAST TEAM-Nursing,Third Party Payments,Private Contractors,Miscellaneous Agency Services,15/06/2011,666,"4,696.01",Revenue,ROYAL HOSP FOR NEURO-DISAB
Adult Social Care,Adlt u65 Learning Disabilities,LD Residential Care External,Third Party Payments,Private Contractors,Miscellaneous Agency Services,15/06/2011,667,"3,241.75",Revenue,THE SONS OF DIVINE PROVIDENCE
Adult Social Care,Older People 65&Over inc OP-MH,OP East - Residential Care Ext,Third Party Payments,Private Contractors,Miscellaneous Agency Services,15/06/2011,668,"3,756.92",Revenue,SOUTHERN CROSS HEALTHCARE LTD
Adult Social Care,Older People 65&Over inc OP-MH,OP Hosp - Residential Care Ext,Third Party Payments,Private Contractors,Miscellaneous Agency Services,15/06/2011,669,"5,635.56",Revenue,SOUTHERN CROSS HEALTHCARE LTD
Adult Social Care,Older People 65&Over inc OP-MH,OP West - Nursing Care,Third Party Payments,Private Contractors,Miscellaneous Agency Services,15/06/2011,670,"2,400.00",Revenue,ST TERESA`S HOME FORTHE ELDER
Adult Social Care,Older People 65&Over inc OP-MH,OP West - Residential Care Ext,Third Party Payments,Private Contractors,Miscellaneous Agency Services,15/06/2011,671,"2,341.84",Revenue,ST TERESA`S HOME FORTHE ELDER
Adult Social Care,Older People 65&Over inc OP-MH,OP West - Nursing Care,Third Party Payments,Private Contractors,Miscellaneous Agency Services,15/06/2011,672,"2,199.12",Revenue,ST TERESA`S HOME FORTHE ELDER
Adult Social Care,Older People 65&Over inc OP-MH,OP West - Residential Care Ext,Third Party Payments,Private Contractors,Miscellaneous Agency Services,15/06/2011,673,"1,888.16",Revenue,ST TERESA`S HOME FORTHE ELDER
Adult Social Care,Adlt u65 Learning Disabilities,LD Home Care External,Third Party Payments,Private Contractors,Miscellaneous Agency Services,15/06/2011,674,713.38,Revenue,BEECH HOME CARE SERVICES
Adult Social Care,Adult u65 Phys/Sensory Impair,PD EAST TEAM-Homecare,Third Party Payments,Private Contractors,Miscellaneous Agency Services,15/06/2011,675,"1,172.08",Revenue,BESPOKE CARE SOLUTIONS LTD
Adult Social Care,Adult u65 Phys/Sensory Impair,PD EAST TEAM-Homecare,Third Party Payments,Private Contractors,Miscellaneous Agency Services,15/06/2011,676,"1,172.08",Revenue,BESPOKE CARE SOLUTIONS LTD
Adult Social Care,Adult u65 Phys/Sensory Impair,PD EAST TEAM-Homecare,Third Party Payments,Private Contractors,Miscellaneous Agency Services,15/06/2011,677,"1,172.08",Revenue,BESPOKE CARE SOLUTIONS LTD
Adult Social Care,Adult u65 Phys/Sensory Impair,PD EAST TEAM-Homecare,Third Party Payments,Private Contractors,Miscellaneous Agency Services,15/06/2011,678,"1,109.29",Revenue,BESPOKE CARE SOLUTIONS LTD
Adult Social Care,Older People 65&Over inc OP-MH,OP East - Daycare,Third Party Payments,Private Contractors,Miscellaneous Agency Services,15/06/2011,679,662.66,Revenue,ENTERPRISE CARE SUPPORT LTD
Adult Social Care,Older People 65&Over inc OP-MH,OP West - Daycare,Third Party Payments,Private Contractors,Miscellaneous Agency Services,15/06/2011,680,545.72,Revenue,ENTERPRISE CARE SUPPORT LTD
Adult Social Care,Older People 65&Over inc OP-MH,OP East - Daycare,Third Party Payments,Private Contractors,Miscellaneous Agency Services,15/06/2011,681,662.66,Revenue,ENTERPRISE CARE SUPPORT LTD
Adult Social Care,Older People 65&Over inc OP-MH,OP West - Daycare,Third Party Payments,Private Contractors,Miscellaneous Agency Services,15/06/2011,682,662.66,Revenue,ENTERPRISE CARE SUPPORT LTD
Adult Social Care,Adult u65 Mental Health Needs,MH Day Care - Morden,Third Party Payments,Private Contractors,Miscellaneous Agency Services,15/06/2011,683,584.70,Revenue,ENTERPRISE CARE SUPPORT LTD
Adult Social Care,Older People 65&Over inc OP-MH,OP East - Daycare,Third Party Payments,Private Contractors,Miscellaneous Agency Services,15/06/2011,684,662.66,Revenue,ENTERPRISE CARE SUPPORT LTD
Adult Social Care,Older People 65&Over inc OP-MH,OP East - Daycare,Third Party Payments,Private Contractors,Miscellaneous Agency Services,15/06/2011,685,662.66,Revenue,ENTERPRISE CARE SUPPORT LTD
Adult Social Care,Older People 65&Over inc OP-MH,OP East - Home Care External,Third Party Payments,Private Contractors,Miscellaneous Agency Services,15/06/2011,686,945.00,Revenue,ENTERPRISE CARE SUPPORT LTD
Adult Social Care,Adlt u65 Learning Disabilities,LD Home Care External,Third Party Payments,Private Contractors,Miscellaneous Agency Services,15/06/2011,687,"8,736.00",Revenue,LIFEWAYS COMMUNITY CARE LTD
Adult Social Care,Adult u65 Phys/Sensory Impair,PD WEST TEAM-Day Care,Third Party Payments,Private Contractors,Miscellaneous Agency Services,15/06/2011,688,631.88,Revenue,GENEVA ROAD LIMITED
Adult Social Care,Older People 65&Over inc OP-MH,OP East - Home Care External,Third Party Payments,Private Contractors,Miscellaneous Agency Services,15/06/2011,689,564.50,Revenue,SYNERGY PERSONNEL SOLUTIONS LT
Childrens & Education Services,Other Ch's & Family Services,CL Leaving Care/Supp Lodgings,Third Party Payments,Private Contractors,Supported Lodgings,16/06/2011,690,800.00,Revenue,REDACTED
Adult Social Care,Adult u65 Mental Health Needs,MH ResidentialCare Ext - Wim,Third Party Payments,Private Contractors,Miscellaneous Agency Services,17/06/2011,691,"2,756.36",Revenue,ASRA G.LONDON HOUSING ASS.LTD
Adult Social Care,Older People 65&Over inc OP-MH,OP East - Residential Care Ext,Third Party Payments,Private Contractors,Miscellaneous Agency Services,16/06/2011,692,"3,860.00",Revenue,ATHOL HOUSE
Adult Social Care,Older People 65&Over inc OP-MH,OP East - Nursing Care,Third Party Payments,Private Contractors,Miscellaneous Agency Services,16/06/2011,693,"2,800.00",Revenue,THE BRADBURY CENT.NURSING HOME
Adult Social Care,Adlt u65 Learning Disabilities,LD Residential Care External,Third Party Payments,Private Contractors,Miscellaneous Agency Services,16/06/2011,694,"6,725.24",Revenue,BROADHAM CARE LTD
Adult Social Care,Adlt u65 Learning Disabilities,LD Residential Care External,Third Party Payments,Private Contractors,Miscellaneous Agency Services,16/06/2011,695,"5,680.00",Revenue,BROADHAM CARE LTD
Adult Social Care,Older People 65&Over inc OP-MH,OP West - Nursing Care,Third Party Payments,Private Contractors,Miscellaneous Agency Services,16/06/2011,696,"2,354.80",Revenue,GALLEON CARE HOMES LTD
Adult Social Care,Older People 65&Over inc OP-MH,OP Hosp - Residential Care Ext,Third Party Payments,Private Contractors,Miscellaneous Agency Services,16/06/2011,697,"1,800.00",Revenue,EDMUND HOUSE
Adult Social Care,Adult u65 Phys/Sensory Impair,PD WEST TEAM-Nursing,Third Party Payments,Private Contractors,Miscellaneous Agency Services,16/06/2011,698,"4,254.28",Revenue,REDACTED
Adult Social Care,Older People 65&Over inc OP-MH,OP Hosp - Nursing Care,Third Party Payments,Private Contractors,Miscellaneous Agency Services,16/06/2011,699,"-11,563.75",Revenue,MOWBRAY NURSING HOME
Adult Social Care,Older People 65&Over inc OP-MH,OP West - Nursing Care,Customer and client receipts,Charges,Bd&Acc-contrib coll by home X,16/06/2011,700,"-2,686.44",Revenue,MOWBRAY NURSING HOME
Adult Social Care,Older People 65&Over inc OP-MH,OP Hosp - Nursing Care,Customer and client receipts,Charges,Bd&Acc-contrib coll by home X,16/06/2011,701,"2,251.64",Revenue,MOWBRAY NURSING HOME
Adult Social Care,Older People 65&Over inc OP-MH,OP West - Nursing Care,Third Party Payments,Private Contractors,Miscellaneous Agency Services,16/06/2011,702,"13,796.75",Revenue,MOWBRAY NURSING HOME
Adult Social Care,Adlt u65 Learning Disabilities,LD Residential Care External,Third Party Payments,Private Contractors,Miscellaneous Agency Services,16/06/2011,703,"3,180.44",Revenue,ODYSSEY CARE SOLUTIONS
Adult Social Care,Adlt u65 Learning Disabilities,LD Residential Care External,Third Party Payments,Private Contractors,Miscellaneous Agency Services,16/06/2011,704,"4,984.60",Revenue,ODYSSEY CARE SOLUTIONS
Adult Social Care,Adlt u65 Learning Disabilities,LD Nursing Care,Third Party Payments,Private Contractors,Miscellaneous Agency Services,16/06/2011,705,"3,000.00",Revenue,SUTTON NURSING HOMES LTD
Adult Social Care,Older People 65&Over inc OP-MH,OP West - Nursing Care,Third Party Payments,Private Contractors,Miscellaneous Agency Services,16/06/2011,706,"2,255.16",Revenue,SUTTON NURSING HOMES LTD
Adult Social Care,Older People 65&Over inc OP-MH,OP East - Nursing Care,Third Party Payments,Private Contractors,Miscellaneous Agency Services,16/06/2011,707,"2,341.84",Revenue,SUTTON NURSING HOMES LTD
Adult Social Care,Older People 65&Over inc OP-MH,OP East - Nursing Care,Third Party Payments,Private Contractors,Miscellaneous Agency Services,16/06/2011,708,"2,767.04",Revenue,SUTTON NURSING HOMES LTD
Adult Social Care,Older People 65&Over inc OP-MH,OP Hosp - Nursing Care,Third Party Payments,Private Contractors,Miscellaneous Agency Services,16/06/2011,709,"2,221.84",Revenue,SUTTON NURSING HOMES LTD
Adult Social Care,Adlt u65 Learning Disabilities,LD Residential Care External,Third Party Payments,Private Contractors,Miscellaneous Agency Services,16/06/2011,710,"5,535.52",Revenue,THE REGARD PARTNERSHIP LTD
Adult Social Care,Adlt u65 Learning Disabilities,LD Supported Housing,Third Party Payments,Private Contractors,Miscellaneous Agency Services,16/06/2011,711,"1,035.00",Revenue,THE REGARD PARTNERSHIP LTD
Adult Social Care,Adlt u65 Learning Disabilities,LD Residential Care External,Third Party Payments,Private Contractors,Miscellaneous Agency Services,16/06/2011,712,"5,536.00",Revenue,THE REGARD PARTNERSHIP LTD
Adult Social Care,Adlt u65 Learning Disabilities,LD Residential Care External,Third Party Payments,Private Contractors,Miscellaneous Agency Services,20/06/2011,713,"4,160.00",Revenue,THE REGARD PARTNERSHIP LTD
Adult Social Care,Adlt u65 Learning Disabilities,LD Residential Care External,Third Party Payments,Private Contractors,Miscellaneous Agency Services,16/06/2011,714,"5,200.00",Revenue,THE REGARD PARTNERSHIP LTD
Adult Social Care,Older People 65&Over inc OP-MH,OP Hosp - Residential Care Ext,Third Party Payments,Private Contractors,Miscellaneous Agency Services,16/06/2011,715,"2,142.86",Revenue,RUTLAND HOME
Adult Social Care,Older People 65&Over inc OP-MH,OP West - Residential Care Ext,Third Party Payments,Private Contractors,Miscellaneous Agency Services,16/06/2011,716,"1,785.71",Revenue,SOUTHPARK RESIDENTIAL HOME
Adult Social Care,Adlt u65 Learning Disabilities,LD Residential Care External,Third Party Payments,Private Contractors,Miscellaneous Agency Services,16/06/2011,717,"13,948.00",Revenue,SPRING LAKE CARE HOME LTD
Adult Social Care,Older People 65&Over inc OP-MH,OP East - Residential Care Ext,Third Party Payments,Private Contractors,Miscellaneous Agency Services,17/06/2011,718,"1,632.64",Revenue,LANGLEY HOUSE TRUST
Adult Social Care,Other Adult Services,MH Residential Care Ext- SM&A,Third Party Payments,Private Contractors,Miscellaneous Agency Services,16/06/2011,719,656.93,Revenue,TURNING POINT SERVICES LTD
Adult Social Care,Older People 65&Over inc OP-MH,OP West - Nursing Care,Third Party Payments,Private Contractors,Miscellaneous Agency Services,17/06/2011,720,"2,233.00",Revenue,THE WHITE HOUSE NURSING HOME
Adult Social Care,Adlt u65 Learning Disabilities,LD Direct Payment Scheme,Third Party Payments,Private Contractors,Direct Payments,16/06/2011,721,"1,278.00",Revenue,REDACTED
Adult Social Care,Adult u65 Phys/Sensory Impair,PD EAST TEAM-Direct Payment,Third Party Payments,Private Contractors,Direct Payments,16/06/2011,722,"2,363.00",Revenue,REDACTED
Adult Social Care,Adlt u65 Learning Disabilities,LD Direct Payment Scheme,Third Party Payments,Private Contractors,Direct Payments,16/06/2011,723,852.00,Revenue,REDACTED
Adult Social Care,Older People 65&Over inc OP-MH,OP Hosp -Direct Payment Scheme,Customer and client receipts,Charges,Bd&Acc-contrib coll by home X,16/06/2011,724,-579.08,Revenue,REDACTED
Adult Social Care,Older People 65&Over inc OP-MH,OP Hosp -Direct Payment Scheme,Third Party Payments,Private Contractors,Direct Payments,16/06/2011,725,"2,515.12",Revenue,REDACTED
Adult Social Care,Older People 65&Over inc OP-MH,OP East -Direct Payment Scheme,Customer and client receipts,Charges,Bd&Acc-contrib coll by home X,16/06/2011,726,"-1,198.08",Revenue,REDACTED
Adult Social Care,Older People 65&Over inc OP-MH,OP East -Direct Payment Scheme,Third Party Payments,Private Contractors,Direct Payments,16/06/2011,727,"2,332.32",Revenue,REDACTED
Childrens & Education Services,Family Support Services,CS Direct Payments,Third Party Payments,Private Contractors,Direct Payments,16/06/2011,728,"1,022.40",Revenue,REDACTED
Childrens & Education Services,Family Support Services,CS Direct Payments,Third Party Payments,Private Contractors,Direct Payments,16/06/2011,729,"1,278.00",Revenue,REDACTED
Childrens & Education Services,Family Support Services,CS Direct Payments,Third Party Payments,Private Contractors,Direct Payments,16/06/2011,730,"1,278.00",Revenue,REDACTED
Childrens & Education Services,Family Support Services,CS Direct Payments,Third Party Payments,Private Contractors,Direct Payments,16/06/2011,731,639.00,Revenue,REDACTED
Adult Social Care,Adult u65 Phys/Sensory Impair,PD WEST TEAM-Homecare,Third Party Payments,Private Contractors,Miscellaneous Agency Services,16/06/2011,732,"2,889.60",Revenue,ABLE COMMUNITY CARE
Adult Social Care,Adult u65 Phys/Sensory Impair,PD EAST TEAM-Homecare,Third Party Payments,Private Contractors,Miscellaneous Agency Services,16/06/2011,733,750.12,Revenue,HOME CARE SERVICE PROVIDER
Adult Social Care,Adult u65 Phys/Sensory Impair,PD EAST TEAM-Homecare,Third Party Payments,Private Contractors,Miscellaneous Agency Services,16/06/2011,734,"1,006.74",Revenue,HOME CARE SERVICE PROVIDER
Adult Social Care,Adlt u65 Learning Disabilities,LD Home Care External,Third Party Payments,Private Contractors,Miscellaneous Agency Services,16/06/2011,735,"4,140.00",Revenue,THE REGARD PARTNERSHIP LTD
Adult Social Care,Adlt u65 Learning Disabilities,LD Home Care External,Third Party Payments,Private Contractors,Miscellaneous Agency Services,16/06/2011,736,"4,140.00",Revenue,THE REGARD PARTNERSHIP LTD
Adult Social Care,Adlt u65 Learning Disabilities,LD Comm -Day Care-Surrey Oak,Third Party Payments,Private Contractors,Miscellaneous Agency Services,16/06/2011,737,"1,532.90",Revenue,SURREY & BORDERS PARTNERSHIP
Adult Social Care,Older People 65&Over inc OP-MH,OP East -Direct Payment Scheme,Third Party Payments,Private Contractors,Direct Payments,17/06/2011,738,927.62,Revenue,REDACTED
Adult Social Care,Older People 65&Over inc OP-MH,OP Hosp - Residential Care Ext,Third Party Payments,Private Contractors,Miscellaneous Agency Services,20/06/2011,739,"1,763.16",Revenue,BLAIR HOUSE
Adult Social Care,Adult u65 Phys/Sensory Impair,PD EAST TEAM-Nursing,Third Party Payments,Private Contractors,Miscellaneous Agency Services,17/06/2011,740,"7,561.44",Revenue,BUPA CARE SERVICES BACS RECEIP
Adult Social Care,Older People 65&Over inc OP-MH,OP East - Nursing Care,Third Party Payments,Private Contractors,Miscellaneous Agency Services,17/06/2011,741,"2,714.70",Revenue,CARE UK
Adult Social Care,Older People 65&Over inc OP-MH,OP Hosp - Nursing Care,Third Party Payments,Private Contractors,Miscellaneous Agency Services,17/06/2011,742,"2,714.70",Revenue,CARE UK
Adult Social Care,Older People 65&Over inc OP-MH,OP Hosp - Nursing Care,Third Party Payments,Private Contractors,Miscellaneous Agency Services,17/06/2011,743,"2,871.30",Revenue,CARE UK
Adult Social Care,Adult u65 Mental Health Needs,MH Nursing Care - Morden,Third Party Payments,Private Contractors,Miscellaneous Agency Services,17/06/2011,744,"2,716.52",Revenue,CARE UNLIMITED
Adult Social Care,Older People 65&Over inc OP-MH,OP East - Residential Care Ext,Third Party Payments,Private Contractors,Miscellaneous Agency Services,17/06/2011,745,"1,840.00",Revenue,CHARLTON HOUSE
Adult Social Care,Older People 65&Over inc OP-MH,OP East - Nursing Care,Third Party Payments,Private Contractors,Miscellaneous Agency Services,17/06/2011,746,"2,540.00",Revenue,REDACTED
Adult Social Care,Adult u65 Mental Health Needs,MH Res Care Ext- Mitcham West,Third Party Payments,Private Contractors,Miscellaneous Agency Services,17/06/2011,747,"5,681.56",Revenue,COMMUNITY CARE SOLUTIONS LTD
Adult Social Care,Older People 65&Over inc OP-MH,OP Hosp - Residential Care Ext,Third Party Payments,Private Contractors,Miscellaneous Agency Services,17/06/2011,748,"1,880.00",Revenue,THE ELMS REST HOME LTD
Adult Social Care,Older People 65&Over inc OP-MH,OP Hosp - Residential Care Ext,Third Party Payments,Private Contractors,Miscellaneous Agency Services,17/06/2011,749,"2,194.29",Revenue,THE ELMS REST HOME LTD
Adult Social Care,Older People 65&Over inc OP-MH,OP East - Residential Care Ext,Third Party Payments,Private Contractors,Miscellaneous Agency Services,17/06/2011,750,"1,880.00",Revenue,THE ELMS REST HOME LTD
Adult Social Care,Older People 65&Over inc OP-MH,OP Hosp - Residential Care Ext,Third Party Payments,Private Contractors,Miscellaneous Agency Services,17/06/2011,751,"1,840.00",Revenue,THE ELMS REST HOME LTD
Adult Social Care,Older People 65&Over inc OP-MH,OP East - Residential Care Ext,Third Party Payments,Private Contractors,Miscellaneous Agency Services,17/06/2011,752,"1,880.00",Revenue,THE ELMS REST HOME LTD
Adult Social Care,Adlt u65 Learning Disabilities,LD Residential Care External,Third Party Payments,Private Contractors,Miscellaneous Agency Services,17/06/2011,753,"2,552.84",Revenue,FREEWAYS TRUST LTD
Adult Social Care,Adlt u65 Learning Disabilities,LD Residential Care External,Third Party Payments,Private Contractors,Miscellaneous Agency Services,17/06/2011,754,"4,700.00",Revenue,ST GEORGES RES. CARE HOME
Adult Social Care,Older People 65&Over inc OP-MH,OP Hosp - Nursing Care,Third Party Payments,Private Contractors,Miscellaneous Agency Services,17/06/2011,755,"2,406.60",Revenue,GROSVENOR PARK NURSING HOME
Adult Social Care,Older People 65&Over inc OP-MH,OP West - Nursing Care,Third Party Payments,Private Contractors,Miscellaneous Agency Services,17/06/2011,756,"2,341.84",Revenue,LYNTON HALL NURSING HOME
Adult Social Care,Adult u65 Mental Health Needs,MH Res Care Ext- Mitcham West,Third Party Payments,Private Contractors,Miscellaneous Agency Services,17/06/2011,757,"1,399.96",Revenue,HILLDALE AND NORTHVIEW
Adult Social Care,Older People 65&Over inc OP-MH,OP East - Nursing Care,Third Party Payments,Private Contractors,Miscellaneous Agency Services,17/06/2011,758,"2,927.30",Revenue,HOPELIT UK LTD
Adult Social Care,Older People 65&Over inc OP-MH,OP Hosp - Residential Care Ext,Third Party Payments,Private Contractors,Miscellaneous Agency Services,17/06/2011,759,"1,812.40",Revenue,LINDEN HOUSE
Adult Social Care,Adlt u65 Learning Disabilities,LD Residential Care External,Third Party Payments,Private Contractors,Miscellaneous Agency Services,17/06/2011,760,"2,697.04",Revenue,REDACTED
Adult Social Care,Adlt u65 Learning Disabilities,LD Residential Care External,Customer and client receipts,Charges,Miscellaneous Charges X,17/06/2011,761,-837.20,Revenue,TRACESCENT LIMITED
Adult Social Care,Adlt u65 Learning Disabilities,LD Residential Care External,Third Party Payments,Private Contractors,Miscellaneous Agency Services,17/06/2011,762,"9,350.12",Revenue,TRACESCENT LIMITED
Adult Social Care,Adlt u65 Learning Disabilities,LD Residential Care External,Third Party Payments,Private Contractors,Miscellaneous Agency Services,20/06/2011,763,"5,535.52",Revenue,THE REGARD PARTNERSHIP LTD
Adult Social Care,Adlt u65 Learning Disabilities,LD Residential Care External,Third Party Payments,Private Contractors,Miscellaneous Agency Services,20/06/2011,764,"5,536.00",Revenue,THE REGARD PARTNERSHIP LTD
Adult Social Care,Adlt u65 Learning Disabilities,LD Residential Care External,Third Party Payments,Private Contractors,Miscellaneous Agency Services,20/06/2011,765,"5,200.00",Revenue,THE REGARD PARTNERSHIP LTD
Adult Social Care,Older People 65&Over inc OP-MH,OP West - Nursing Care,Third Party Payments,Private Contractors,Miscellaneous Agency Services,17/06/2011,766,"2,300.00",Revenue,SOUTHDOWN NURSING + RES.HOME
Adult Social Care,Older People 65&Over inc OP-MH,OP East - Residential Care Ext,Third Party Payments,Private Contractors,Miscellaneous Agency Services,17/06/2011,767,"1,806.12",Revenue,THORNTON LODGE
Childrens & Education Services,Family Support Services,CL Residence Orders,Supplies and Services,Grants and Subscriptions,Residence Orders,17/06/2011,768,"4,020.25",Revenue,REDACTED
Childrens & Education Services,Children Looked After (24hrs+),CL Independent Fostering,Supplies and Services,Services,Long Term Fostering,17/06/2011,769,"2,973.52",Revenue,FOSTERPLUS LTD
Childrens & Education Services,Other Ch's & Family Services,CL Leaving Care/Supp Lodgings,Third Party Payments,Private Contractors,Supported Lodgings,17/06/2011,770,"1,001.52",Revenue,REDACTED
Childrens & Education Services,Other Ch's & Family Services,CL Leaving Care/Supp Lodgings,Third Party Payments,Private Contractors,Supported Lodgings,17/06/2011,771,900.00,Revenue,REDACTED
Adult Social Care,Older People 65&Over inc OP-MH,OP East -Direct Payment Scheme,Third Party Payments,Private Contractors,Direct Payments,17/06/2011,772,913.76,Revenue,REDACTED
Adult Social Care,Older People 65&Over inc OP-MH,OP East -Direct Payment Scheme,Third Party Payments,Private Contractors,Direct Payments,17/06/2011,773,"1,326.92",Revenue,REDACTED
Adult Social Care,Adult u65 Phys/Sensory Impair,PD EAST TEAM-Direct Payment,Third Party Payments,Private Contractors,Direct Payments,17/06/2011,774,915.88,Revenue,REDACTED
Adult Social Care,Older People 65&Over inc OP-MH,OP East -Direct Payment Scheme,Third Party Payments,Private Contractors,Direct Payments,17/06/2011,775,"2,103.80",Revenue,REDACTED
Adult Social Care,Older People 65&Over inc OP-MH,OP West -Direct Payment Scheme,Third Party Payments,Private Contractors,Direct Payments,17/06/2011,776,511.20,Revenue,REDACTED
Adult Social Care,Adult u65 Phys/Sensory Impair,PD EAST TEAM-Direct Payment,Third Party Payments,Private Contractors,Direct Payments,17/06/2011,777,532.48,Revenue,REDACTED
Adult Social Care,Adult u65 Mental Health Needs,MH Direct Payment Scheme- West,Third Party Payments,Private Contractors,Direct Payments,17/06/2011,778,718.48,Revenue,REDACTED
Adult Social Care,Adult u65 Phys/Sensory Impair,PD WEST TEAM-Direct Payment,Third Party Payments,Private Contractors,Direct Payments,17/06/2011,779,"1,323.72",Revenue,REDACTED
Adult Social Care,Adult u65 Phys/Sensory Impair,PS Other Serv - NRTPF,Third Party Payments,Private Contractors,Miscellaneous Agency Services,17/06/2011,780,800.00,Revenue,REDACTED
Adult Social Care,Older People 65&Over inc OP-MH,OP West - Misc services,Third Party Payments,Private Contractors,Miscellaneous Agency Services,17/06/2011,781,520.00,Revenue,TOTAL PROPERTY SERVICES
Adult Social Care,Older People 65&Over inc OP-MH,OP East -Direct Payment Scheme,Third Party Payments,Private Contractors,Direct Payments,17/06/2011,782,"1,341.88",Revenue,REDACTED
Adult Social Care,Adult u65 Phys/Sensory Impair,PD EAST TEAM-Homecare,Third Party Payments,Private Contractors,Miscellaneous Agency Services,17/06/2011,783,664.62,Revenue,BELGRAVIA NURS. & CARE BUREAU
Adult Social Care,Adult u65 Phys/Sensory Impair,PD WEST TEAM-Homecare,Third Party Payments,Private Contractors,Miscellaneous Agency Services,17/06/2011,784,850.00,Revenue,BELGRAVIA NURS. & CARE BUREAU
Adult Social Care,Adult u65 Phys/Sensory Impair,PD EAST TEAM-Homecare,Third Party Payments,Private Contractors,Miscellaneous Agency Services,17/06/2011,785,664.42,Revenue,BELGRAVIA NURS. & CARE BUREAU
Adult Social Care,Adlt u65 Learning Disabilities,LD Home Care External,Third Party Payments,Private Contractors,Miscellaneous Agency Services,20/06/2011,786,"4,186.88",Revenue,THE REGARD PARTNERSHIP LTD
Adult Social Care,Adlt u65 Learning Disabilities,LD Home Care External,Third Party Payments,Private Contractors,Miscellaneous Agency Services,20/06/2011,787,"4,140.00",Revenue,THE REGARD PARTNERSHIP LTD
Adult Social Care,Older People 65&Over inc OP-MH,OP Hosp - Nursing Care,Third Party Payments,Private Contractors,Miscellaneous Agency Services,20/06/2011,788,"2,341.84",Revenue,ST AUBYNS NURSING HOME
Adult Social Care,Older People 65&Over inc OP-MH,OP Hosp - Nursing Care,Third Party Payments,Private Contractors,Miscellaneous Agency Services,20/06/2011,789,"2,341.84",Revenue,ST AUBYNS NURSING HOME
Adult Social Care,Older People 65&Over inc OP-MH,OP East - Nursing Care,Third Party Payments,Private Contractors,Miscellaneous Agency Services,20/06/2011,790,"2,074.68",Revenue,BUPA CARE HOMES
Adult Social Care,Adlt u65 Learning Disabilities,LD Residential Care External,Third Party Payments,Private Contractors,Miscellaneous Agency Services,20/06/2011,791,"3,400.00",Revenue,BURGH HEATH LODGE
Adult Social Care,Adlt u65 Learning Disabilities,LD Residential Care External,Third Party Payments,Private Contractors,Miscellaneous Agency Services,20/06/2011,792,"7,368.00",Revenue,CHATSWORTH CARE
Adult Social Care,Older People 65&Over inc OP-MH,OP East - Nursing Care,Third Party Payments,Private Contractors,Miscellaneous Agency Services,22/06/2011,793,"2,561.54",Revenue,CLAREMONT CARE SVS LTD
Adult Social Care,Older People 65&Over inc OP-MH,OP Hosp - Nursing Care,Third Party Payments,Private Contractors,Miscellaneous Agency Services,22/06/2011,794,"2,398.38",Revenue,CLAREMONT CARE SVS LTD
Adult Social Care,Adult u65 Mental Health Needs,MH Hostels/ B & B - EIS,Third Party Payments,Private Contractors,Miscellaneous Agency Services,22/06/2011,795,930.00,Revenue,THE CONQUEST HOTEL
Adult Social Care,Older People 65&Over inc OP-MH,OP West - Residential Care Ext,Third Party Payments,Private Contractors,Miscellaneous Agency Services,20/06/2011,796,"1,825.16",Revenue,DEEPDENE CARE LIMITED
Adult Social Care,Adult u65 Mental Health Needs,MH ResidentialCare Ext - Wim,Third Party Payments,Private Contractors,Miscellaneous Agency Services,20/06/2011,797,"1,825.16",Revenue,DEEPDENE CARE LIMITED
Adult Social Care,Older People 65&Over inc OP-MH,OP Hosp - Residential Care Ext,Third Party Payments,Private Contractors,Miscellaneous Agency Services,20/06/2011,798,"2,200.00",Revenue,HASLINGTON RESIDENTIAL HOME
Adult Social Care,Older People 65&Over inc OP-MH,OP East - Residential Care Ext,Third Party Payments,Private Contractors,Miscellaneous Agency Services,20/06/2011,799,"2,028.00",Revenue,MANOR HOUSE RESIDENTIAL HOME
Adult Social Care,Older People 65&Over inc OP-MH,OP Hosp - Residential Care Ext,Third Party Payments,Private Contractors,Miscellaneous Agency Services,20/06/2011,800,"2,080.00",Revenue,MANOR HOUSE RESIDENTIAL HOME
Adult Social Care,Older People 65&Over inc OP-MH,OP Hosp - Residential Care Ext,Third Party Payments,Private Contractors,Miscellaneous Agency Services,20/06/2011,801,"2,080.00",Revenue,MANOR HOUSE RESIDENTIAL HOME
Adult Social Care,Older People 65&Over inc OP-MH,OP Hosp - Residential Care Ext,Third Party Payments,Private Contractors,Miscellaneous Agency Services,20/06/2011,802,"2,030.00",Revenue,MANOR HOUSE RESIDENTIAL HOME
Adult Social Care,Older People 65&Over inc OP-MH,OP R/Park-Residential Care Ext,Third Party Payments,Private Contractors,Miscellaneous Agency Services,20/06/2011,803,"2,028.00",Revenue,MANOR HOUSE RESIDENTIAL HOME
Adult Social Care,Adlt u65 Learning Disabilities,LD Residential Care External,Third Party Payments,Private Contractors,Miscellaneous Agency Services,20/06/2011,804,"6,757.04",Revenue,SOLAR CARE GROUP LTD - ROBINIA
Adult Social Care,Older People 65&Over inc OP-MH,OP East - Nursing Care,Third Party Payments,Private Contractors,Miscellaneous Agency Services,20/06/2011,805,"2,255.16",Revenue,FAMILY STAR LTD
Adult Social Care,Older People 65&Over inc OP-MH,OP West - Nursing Care,Third Party Payments,Private Contractors,Miscellaneous Agency Services,20/06/2011,806,"2,314.20",Revenue,FAMILY STAR LTD
Adult Social Care,Older People 65&Over inc OP-MH,OP East - Residential Care Ext,Third Party Payments,Private Contractors,Miscellaneous Agency Services,22/06/2011,807,"1,812.40",Revenue,ST MARY'S LODGE
Adult Social Care,Older People 65&Over inc OP-MH,OP East - Residential Care Ext,Third Party Payments,Private Contractors,Miscellaneous Agency Services,22/06/2011,808,"3,042.31",Revenue,ST MARY'S LODGE
Adult Social Care,Older People 65&Over inc OP-MH,OP West - Residential Care Ext,Third Party Payments,Private Contractors,Miscellaneous Agency Services,22/06/2011,809,841.47,Revenue,ST MARY'S LODGE
Adult Social Care,Older People 65&Over inc OP-MH,OP Hosp - Residential Care Ext,Third Party Payments,Private Contractors,Miscellaneous Agency Services,22/06/2011,810,906.20,Revenue,ST MARY'S LODGE
Adult Social Care,Older People 65&Over inc OP-MH,OP West - Nursing Care,Third Party Payments,Private Contractors,Miscellaneous Agency Services,20/06/2011,811,"3,342.86",Revenue,SUTTON COURT CARE CENTRE
Adult Social Care,Older People 65&Over inc OP-MH,OP Hosp - Nursing Care,Third Party Payments,Private Contractors,Miscellaneous Agency Services,20/06/2011,812,"2,090.93",Revenue,SUTTON COURT CARE CENTRE
Adult Social Care,Older People 65&Over inc OP-MH,OP West - Residential Care Ext,Third Party Payments,Private Contractors,Miscellaneous Agency Services,20/06/2011,813,"2,200.00",Revenue,THRESHFIELD CRT NURSING HOME
Adult Social Care,Older People 65&Over inc OP-MH,OP Hosp - Residential Care Ext,Third Party Payments,Private Contractors,Miscellaneous Agency Services,20/06/2011,814,"1,812.40",Revenue,WHITECLIFF RESID. CARE HOME
Adult Social Care,Adlt u65 Learning Disabilities,LD Residential Care External,Third Party Payments,Private Contractors,Miscellaneous Agency Services,20/06/2011,815,"1,438.44",Revenue,EL-SHADDAI
Adult Social Care,Older People 65&Over inc OP-MH,OP East - Residential Care Ext,Third Party Payments,Private Contractors,Miscellaneous Agency Services,20/06/2011,816,"1,386.08",Revenue,EL-SHADDAI
Adult Social Care,Adlt u65 Learning Disabilities,LD Residential Care External,Third Party Payments,Private Contractors,Miscellaneous Agency Services,20/06/2011,817,"1,438.44",Revenue,EL-SHADDAI
Adult Social Care,Older People 65&Over inc OP-MH,OP West -Direct Payment Scheme,Customer and client receipts,Charges,Bd&Acc-contrib coll by home X,20/06/2011,818,-577.20,Revenue,REDACTED
Adult Social Care,Older People 65&Over inc OP-MH,OP West -Direct Payment Scheme,Third Party Payments,Private Contractors,Direct Payments,20/06/2011,819,596.40,Revenue,REDACTED
Adult Social Care,Older People 65&Over inc OP-MH,OP West -Direct Payment Scheme,Third Party Payments,Private Contractors,Direct Payments,20/06/2011,820,502.56,Revenue,REDACTED
Adult Social Care,Older People 65&Over inc OP-MH,OP West -Direct Payment Scheme,Third Party Payments,Private Contractors,Direct Payments,20/06/2011,821,"1,128.88",Revenue,REDACTED
Adult Social Care,Older People 65&Over inc OP-MH,OP East -Direct Payment Scheme,Customer and client receipts,Charges,Bd&Acc-contrib coll by home X,20/06/2011,822,-658.12,Revenue,REDACTED
Adult Social Care,Older People 65&Over inc OP-MH,OP East -Direct Payment Scheme,Third Party Payments,Private Contractors,Direct Payments,20/06/2011,823,756.04,Revenue,REDACTED
Adult Social Care,Adult u65 Mental Health Needs,MH Direct Payment Scheme- West,Third Party Payments,Private Contractors,Direct Payments,20/06/2011,824,838.00,Revenue,REDACTED
Adult Social Care,Adult u65 Phys/Sensory Impair,PD WEST TEAM-Direct Payment,Third Party Payments,Private Contractors,Direct Payments,20/06/2011,825,"1,833.32",Revenue,REDACTED
Adult Social Care,Adult u65 Phys/Sensory Impair,PD EAST TEAM-Direct Payment,Third Party Payments,Private Contractors,Direct Payments,20/06/2011,826,745.48,Revenue,REDACTED
Adult Social Care,Adult u65 Phys/Sensory Impair,PD WEST TEAM-Direct Payment,Third Party Payments,Private Contractors,Direct Payments,20/06/2011,827,711.96,Revenue,REDACTED
Adult Social Care,Older People 65&Over inc OP-MH,OP East -Direct Payment Scheme,Third Party Payments,Private Contractors,Direct Payments,20/06/2011,828,"1,435.44",Revenue,REDACTED
Adult Social Care,Older People 65&Over inc OP-MH,OP East -Direct Payment Scheme,Third Party Payments,Private Contractors,Direct Payments,20/06/2011,829,832.16,Revenue,REDACTED
Adult Social Care,Adult u65 Phys/Sensory Impair,PD EAST TEAM-Direct Payment,Third Party Payments,Private Contractors,Direct Payments,20/06/2011,830,"3,077.48",Revenue,REDACTED
Adult Social Care,Older People 65&Over inc OP-MH,OP East -Direct Payment Scheme,Third Party Payments,Private Contractors,Direct Payments,20/06/2011,831,"1,054.36",Revenue,REDACTED
Adult Social Care,Adult u65 Mental Health Needs,MH Home Care External-MitWest,Third Party Payments,Private Contractors,Miscellaneous Agency Services,20/06/2011,832,540.00,Revenue,ANCHOR CARE
Adult Social Care,Adult u65 Phys/Sensory Impair,PD EAST TEAM-Homecare,Third Party Payments,Private Contractors,Miscellaneous Agency Services,20/06/2011,833,"1,022.19",Revenue,ANCHOR CARE
Adult Social Care,Adult u65 Mental Health Needs,MH Home Care External - Wim,Third Party Payments,Private Contractors,Miscellaneous Agency Services,20/06/2011,834,"1,075.57",Revenue,ANCHOR CARE
Adult Social Care,Adult u65 Phys/Sensory Impair,PD WEST TEAM-Homecare,Third Party Payments,Private Contractors,Miscellaneous Agency Services,20/06/2011,835,"1,567.07",Revenue,ANCHOR CARE
Adult Social Care,Older People 65&Over inc OP-MH,OP East - Carer Services,Third Party Payments,Private Contractors,Miscellaneous Agency Services,20/06/2011,836,"1,714.18",Revenue,ANCHOR CARE
Adult Social Care,Older People 65&Over inc OP-MH,OP West - Home Care External,Third Party Payments,Private Contractors,Miscellaneous Agency Services,20/06/2011,837,"11,085.33",Revenue,ANCHOR CARE
Adult Social Care,Older People 65&Over inc OP-MH,OP East - Home Care External,Third Party Payments,Private Contractors,Miscellaneous Agency Services,20/06/2011,838,"15,173.29",Revenue,ANCHOR CARE
Adult Social Care,Adlt u65 Learning Disabilities,LD Home Care External,Third Party Payments,Private Contractors,Miscellaneous Agency Services,20/06/2011,839,812.24,Revenue,ROYAL MENCAP SOCIETY
Childrens & Education Services,Family Support Services,CS Children in Need Section 17,Transfer Payments,Adult Soc Servs Clients,Childr Act 1989 S17,20/06/2011,840,"3,712.50",Revenue,PARENTING PROFILES LTD
Childrens & Education Services,Other Ch's & Family Services,CL Leaving Care/Supp Lodgings,Third Party Payments,Private Contractors,Miscellaneous Agency Services,20/06/2011,841,"1,360.00",Revenue,RBS INVOICE FINANCE LIMITED
Adult Social Care,Asylum seekers,AS Child - Res Care (Grant),Third Party Payments,Private Contractors,Supported Lodgings,21/06/2011,842,600.00,Revenue,REDACTED
Childrens & Education Services,Other Ch's & Family Services,CL Leaving Care/Supp Lodgings,Third Party Payments,Private Contractors,Supported Lodgings,21/06/2011,843,600.00,Revenue,REDACTED
Childrens & Education Services,Family Support Services,CS Day Care CWD,Third Party Payments,Private Contractors,Playscheme,21/06/2011,844,831.00,Revenue,LONDON BOROUGH OF SUTTON
Childrens & Education Services,Other Ch's & Family Services,CL Leaving Care/Supp Lodgings,Third Party Payments,Private Contractors,Supported Lodgings,21/06/2011,845,700.00,Revenue,REDACTED
Childrens & Education Services,Other Ch's & Family Services,CL Leaving Care/Supp Lodgings,Third Party Payments,Private Contractors,Supported Lodgings,21/06/2011,846,700.00,Revenue,REDACTED
Childrens & Education Services,Other Ch's & Family Services,CL Leaving Care/Supp Lodgings,Third Party Payments,Private Contractors,Supported Lodgings,21/06/2011,847,600.00,Revenue,REDACTED
Childrens & Education Services,Other Ch's & Family Services,CL Leaving Care/Supp Lodgings,Third Party Payments,Private Contractors,Supported Lodgings,21/06/2011,848,600.00,Revenue,REDACTED
Adult Social Care,Adult u65 Mental Health Needs,MH Adult Placement Cont- NRTPF,Third Party Payments,Private Contractors,Accommodation Based Support,22/06/2011,849,878.16,Revenue,REDACTED
Adult Social Care,Adult u65 Mental Health Needs,HS Adult Placements,Third Party Payments,Private Contractors,Accommodation Based Support,21/06/2011,850,"1,591.80",Revenue,REDACTED
Adult Social Care,Adlt u65 Learning Disabilities,LD AdultPlacementCont,Third Party Payments,Private Contractors,Accommodation Based Support,21/06/2011,851,"4,680.00",Revenue,PROVIDENCE CARE UK LTD
Adult Social Care,Adlt u65 Learning Disabilities,LD Adult Placements - HST,Third Party Payments,Private Contractors,Accommodation Based Support,21/06/2011,852,848.96,Revenue,REDACTED
Adult Social Care,Adult u65 Mental Health Needs,MH Adult Placement Cont-Morden,Third Party Payments,Private Contractors,Accommodation Based Support,21/06/2011,853,653.30,Revenue,REDACTED
Adult Social Care,Adult u65 Phys/Sensory Impair,PD WEST TEAM-Residential Care,Third Party Payments,Private Contractors,Miscellaneous Agency Services,21/06/2011,854,"-3,300.00",Revenue,BUPA CARE HOMES
Adult Social Care,Older People 65&Over inc OP-MH,OP East - Nursing Care,Third Party Payments,Private Contractors,Miscellaneous Agency Services,21/06/2011,855,"2,406.60",Revenue,BUPA CARE HOMES
Adult Social Care,Adult u65 Phys/Sensory Impair,PD WEST TEAM-Nursing,Third Party Payments,Private Contractors,Miscellaneous Agency Services,21/06/2011,856,"9,320.00",Revenue,BUPA CARE HOMES
Adult Social Care,Older People 65&Over inc OP-MH,OP Hosp - Nursing Care,Third Party Payments,Private Contractors,Miscellaneous Agency Services,21/06/2011,857,"12,226.40",Revenue,BUPA CARE HOMES
Adult Social Care,Older People 65&Over inc OP-MH,OP West - Nursing Care,Third Party Payments,Private Contractors,Miscellaneous Agency Services,21/06/2011,858,"22,070.92",Revenue,BUPA CARE HOMES
Adult Social Care,Older People 65&Over inc OP-MH,OP Hosp - Nursing Care,Third Party Payments,Private Contractors,Miscellaneous Agency Services,21/06/2011,859,"5,411.69",Revenue,CRNH LTD
Adult Social Care,Adlt u65 Learning Disabilities,LD Residential Care External,Third Party Payments,Private Contractors,Miscellaneous Agency Services,21/06/2011,860,"5,980.00",Revenue,CARE MANAGEMENT GROUP
Adult Social Care,Adult u65 Phys/Sensory Impair,PD EAST TEAM-Homecare,Third Party Payments,Private Contractors,Miscellaneous Agency Services,21/06/2011,861,"4,168.00",Revenue,CARE MANAGEMENT GROUP
Adult Social Care,Adult u65 Mental Health Needs,MH Res Care Ext- Mitcham West,Customer and client receipts,Charges,Miscellaneous Charges X,21/06/2011,862,-590.00,Revenue,COMMUNITY CARE SOLUTIONS LTD
Adult Social Care,Adult u65 Mental Health Needs,MH Res Care Ext- Mitcham West,Third Party Payments,Private Contractors,Miscellaneous Agency Services,21/06/2011,863,"5,691.96",Revenue,COMMUNITY CARE SOLUTIONS LTD
Adult Social Care,Adlt u65 Learning Disabilities,LD Residential Care External,Third Party Payments,Private Contractors,Miscellaneous Agency Services,21/06/2011,864,"3,210.36",Revenue,CRAEGMOOR FACILITIES CO LTD
Adult Social Care,Other Adult Services,MH Residential Care Ext- SM&A,Third Party Payments,Private Contractors,Miscellaneous Agency Services,21/06/2011,865,"2,339.68",Revenue,ASSISI COMMUNITY CARE LTD
Adult Social Care,Older People 65&Over inc OP-MH,OP East - Residential Care Ext,Third Party Payments,Private Contractors,Miscellaneous Agency Services,21/06/2011,866,"1,692.40",Revenue,GENESIS CARE HOME
Adult Social Care,Adlt u65 Learning Disabilities,LD Residential Care External,Third Party Payments,Private Contractors,Miscellaneous Agency Services,21/06/2011,867,"4,780.00",Revenue,GREENFIELD CARE HOMES LTD
Adult Social Care,Adlt u65 Learning Disabilities,LD Residential Care External,Third Party Payments,Private Contractors,Miscellaneous Agency Services,21/06/2011,868,"4,868.00",Revenue,GREENFIELD CARE HOMES LTD
Adult Social Care,Adlt u65 Learning Disabilities,LD Residential Care External,Third Party Payments,Private Contractors,Miscellaneous Agency Services,21/06/2011,869,"4,624.00",Revenue,GREENFIELD CARE HOMES LTD
Adult Social Care,Adlt u65 Learning Disabilities,LD Residential Care External,Third Party Payments,Private Contractors,Miscellaneous Agency Services,21/06/2011,870,"4,732.00",Revenue,GREENFIELD CARE HOMES LTD
Adult Social Care,Adlt u65 Learning Disabilities,LD Residential Care External,Third Party Payments,Private Contractors,Miscellaneous Agency Services,21/06/2011,871,"4,744.00",Revenue,GREENFIELD CARE HOMES LTD
Adult Social Care,Adlt u65 Learning Disabilities,LD Residential Care External,Third Party Payments,Private Contractors,Miscellaneous Agency Services,21/06/2011,872,"4,780.00",Revenue,GREENFIELD CARE HOMES LTD
Adult Social Care,Adlt u65 Learning Disabilities,LD Residential Care External,Third Party Payments,Private Contractors,Miscellaneous Agency Services,21/06/2011,873,"4,780.00",Revenue,GREENFIELD CARE HOMES LTD
Adult Social Care,Adlt u65 Learning Disabilities,LD Residential Care External,Third Party Payments,Private Contractors,Miscellaneous Agency Services,21/06/2011,874,"3,200.00",Revenue,PROVIDENCE CARE UK LTD
Adult Social Care,Adlt u65 Learning Disabilities,LD Residential Care External,Third Party Payments,Private Contractors,Miscellaneous Agency Services,21/06/2011,875,"7,840.00",Revenue,SOLAR CARE GROUP LTD - ROBINIA
Adult Social Care,Older People 65&Over inc OP-MH,OP Hosp - Residential Care Ext,Third Party Payments,Private Contractors,Miscellaneous Agency Services,22/06/2011,876,"1,294.56",Revenue,ST MARY'S LODGE
Adult Social Care,Adlt u65 Learning Disabilities,LD Comm-Residential-Surrey Oak,Third Party Payments,Private Contractors,Miscellaneous Agency Services,21/06/2011,877,"13,553.29",Revenue,LONDON BOROUGH OF SUTTON
Adult Social Care,Older People 65&Over inc OP-MH,OP Hosp - Home Care External,Third Party Payments,Private Contractors,Miscellaneous Agency Services,21/06/2011,878,607.80,Revenue,ALPENBEST LIMITED
Adult Social Care,Adult u65 Phys/Sensory Impair,PD WEST TEAM-Homecare,Third Party Payments,Private Contractors,Miscellaneous Agency Services,21/06/2011,879,878.83,Revenue,ALPENBEST LIMITED
Adult Social Care,Older People 65&Over inc OP-MH,OP East - Home Care External,Third Party Payments,Private Contractors,Miscellaneous Agency Services,21/06/2011,880,"4,244.64",Revenue,ALPENBEST LIMITED
Adult Social Care,Older People 65&Over inc OP-MH,OP West - Home Care External,Third Party Payments,Private Contractors,Miscellaneous Agency Services,21/06/2011,881,"6,961.76",Revenue,ALPENBEST LIMITED
Adult Social Care,Older People 65&Over inc OP-MH,OP Hosp - Home Care External,Third Party Payments,Private Contractors,Miscellaneous Agency Services,21/06/2011,882,607.80,Revenue,ALPENBEST LIMITED
Adult Social Care,Adult u65 Phys/Sensory Impair,PD WEST TEAM-Homecare,Third Party Payments,Private Contractors,Miscellaneous Agency Services,21/06/2011,883,897.53,Revenue,ALPENBEST LIMITED
Adult Social Care,Older People 65&Over inc OP-MH,OP East - Home Care External,Third Party Payments,Private Contractors,Miscellaneous Agency Services,21/06/2011,884,"4,121.80",Revenue,ALPENBEST LIMITED
Adult Social Care,Older People 65&Over inc OP-MH,OP West - Home Care External,Third Party Payments,Private Contractors,Miscellaneous Agency Services,21/06/2011,885,"7,101.29",Revenue,ALPENBEST LIMITED
Adult Social Care,Older People 65&Over inc OP-MH,OP Hosp - Home Care External,Third Party Payments,Private Contractors,Miscellaneous Agency Services,21/06/2011,886,663.46,Revenue,ALPENBEST LIMITED
Adult Social Care,Adult u65 Phys/Sensory Impair,PD WEST TEAM-Homecare,Third Party Payments,Private Contractors,Miscellaneous Agency Services,21/06/2011,887,938.19,Revenue,ALPENBEST LIMITED
Adult Social Care,Older People 65&Over inc OP-MH,OP East - Home Care External,Third Party Payments,Private Contractors,Miscellaneous Agency Services,21/06/2011,888,"4,653.15",Revenue,ALPENBEST LIMITED
Adult Social Care,Older People 65&Over inc OP-MH,OP West - Home Care External,Third Party Payments,Private Contractors,Miscellaneous Agency Services,21/06/2011,889,"7,427.21",Revenue,ALPENBEST LIMITED
Adult Social Care,Older People 65&Over inc OP-MH,OP West - Carer Services,Third Party Payments,Private Contractors,Miscellaneous Agency Services,21/06/2011,890,652.74,Revenue,ALPENBEST LIMITED
Adult Social Care,Older People 65&Over inc OP-MH,OP Hosp - Home Care External,Third Party Payments,Private Contractors,Miscellaneous Agency Services,21/06/2011,891,719.12,Revenue,ALPENBEST LIMITED
Adult Social Care,Adult u65 Phys/Sensory Impair,PD WEST TEAM-Homecare,Third Party Payments,Private Contractors,Miscellaneous Agency Services,21/06/2011,892,"1,026.08",Revenue,ALPENBEST LIMITED
Adult Social Care,Older People 65&Over inc OP-MH,OP East - Home Care External,Third Party Payments,Private Contractors,Miscellaneous Agency Services,21/06/2011,893,"5,060.90",Revenue,ALPENBEST LIMITED
Adult Social Care,Older People 65&Over inc OP-MH,OP West - Home Care External,Third Party Payments,Private Contractors,Miscellaneous Agency Services,21/06/2011,894,"7,606.48",Revenue,ALPENBEST LIMITED
Adult Social Care,Adlt u65 Learning Disabilities,LD Home Care External,Third Party Payments,Private Contractors,Miscellaneous Agency Services,21/06/2011,895,655.30,Revenue,BEECH HOME CARE SERVICES
Adult Social Care,Adult u65 Phys/Sensory Impair,PD EAST TEAM-Homecare,Third Party Payments,Private Contractors,Miscellaneous Agency Services,21/06/2011,896,707.00,Revenue,COMMUNITY HOME CARE PROVIDER
Adult Social Care,Older People 65&Over inc OP-MH,OP East - Carer Services,Third Party Payments,Private Contractors,Miscellaneous Agency Services,21/06/2011,897,728.65,Revenue,COMMUNITY HOME CARE PROVIDER
Adult Social Care,Older People 65&Over inc OP-MH,OP East - Home Care External,Third Party Payments,Private Contractors,Miscellaneous Agency Services,21/06/2011,898,"1,174.17",Revenue,COMMUNITY HOME CARE PROVIDER
Adult Social Care,Older People 65&Over inc OP-MH,OP West - Home Care External,Third Party Payments,Private Contractors,Miscellaneous Agency Services,21/06/2011,899,"3,389.40",Revenue,HOUSING21
Adult Social Care,Adlt u65 Learning Disabilities,LD Home Care External,Third Party Payments,Private Contractors,Miscellaneous Agency Services,21/06/2011,900,"2,178.00",Revenue,LIFEWAYS COMMUNITY CARE LTD
Adult Social Care,Adult u65 Mental Health Needs,MH Home Care External - Wim,Third Party Payments,Private Contractors,Miscellaneous Agency Services,21/06/2011,901,888.75,Revenue,PLAN PERSONNEL
Adult Social Care,Older People 65&Over inc OP-MH,OP Hosp - Home Care External,Third Party Payments,Private Contractors,Miscellaneous Agency Services,21/06/2011,902,"1,206.68",Revenue,PLAN PERSONNEL
Adult Social Care,Adult u65 Phys/Sensory Impair,PD EAST TEAM-Homecare,Third Party Payments,Private Contractors,Miscellaneous Agency Services,21/06/2011,903,"2,072.76",Revenue,PLAN PERSONNEL
Adult Social Care,Adult u65 Phys/Sensory Impair,PD WEST TEAM-Homecare,Third Party Payments,Private Contractors,Miscellaneous Agency Services,21/06/2011,904,"2,661.66",Revenue,PLAN PERSONNEL
Adult Social Care,Adlt u65 Learning Disabilities,LD Home Care External,Third Party Payments,Private Contractors,Miscellaneous Agency Services,21/06/2011,905,"4,814.08",Revenue,PLAN PERSONNEL
Adult Social Care,Older People 65&Over inc OP-MH,OP East - Home Care External,Third Party Payments,Private Contractors,Miscellaneous Agency Services,21/06/2011,906,"16,707.59",Revenue,PLAN PERSONNEL
Adult Social Care,Older People 65&Over inc OP-MH,OP West - Home Care External,Third Party Payments,Private Contractors,Miscellaneous Agency Services,21/06/2011,907,"22,025.52",Revenue,PLAN PERSONNEL
Adult Social Care,Adlt u65 Learning Disabilities,LD Home Care External,Third Party Payments,Private Contractors,Miscellaneous Agency Services,21/06/2011,908,535.12,Revenue,SUPREME CARE SERVICES LIMITED
Adult Social Care,Adult u65 Phys/Sensory Impair,PD WEST TEAM-Homecare,Third Party Payments,Private Contractors,Miscellaneous Agency Services,21/06/2011,909,789.97,Revenue,SUPREME CARE SERVICES LIMITED
Adult Social Care,Adult u65 Mental Health Needs,MH Home Care External-MitWest,Third Party Payments,Private Contractors,Miscellaneous Agency Services,21/06/2011,910,"1,017.27",Revenue,SUPREME CARE SERVICES LIMITED
Adult Social Care,Older People 65&Over inc OP-MH,OP Hosp - Home Care External,Third Party Payments,Private Contractors,Miscellaneous Agency Services,21/06/2011,911,"1,388.98",Revenue,SUPREME CARE SERVICES LIMITED
Adult Social Care,Adult u65 Phys/Sensory Impair,PD EAST TEAM-Homecare,Third Party Payments,Private Contractors,Miscellaneous Agency Services,21/06/2011,912,"1,510.14",Revenue,SUPREME CARE SERVICES LIMITED
Adult Social Care,Older People 65&Over inc OP-MH,OP East - Carer Services,Third Party Payments,Private Contractors,Miscellaneous Agency Services,21/06/2011,913,"1,795.84",Revenue,SUPREME CARE SERVICES LIMITED
Adult Social Care,Older People 65&Over inc OP-MH,OP West - Carer Services,Third Party Payments,Private Contractors,Miscellaneous Agency Services,21/06/2011,914,"3,537.65",Revenue,SUPREME CARE SERVICES LIMITED
Adult Social Care,Older People 65&Over inc OP-MH,OP West - Home Care External,Third Party Payments,Private Contractors,Miscellaneous Agency Services,21/06/2011,915,"14,357.92",Revenue,SUPREME CARE SERVICES LIMITED
Adult Social Care,Older People 65&Over inc OP-MH,OP East - Home Care External,Third Party Payments,Private Contractors,Miscellaneous Agency Services,21/06/2011,916,"24,821.76",Revenue,SUPREME CARE SERVICES LIMITED
Adult Social Care,Older People 65&Over inc OP-MH,OP West - Home Care External,Third Party Payments,Private Contractors,Miscellaneous Agency Services,22/06/2011,917,800.00,Revenue,TOTAL PROPERTY SERVICES
Childrens & Education Services,Children Looked After (24hrs+),CL Fostering Services,Supplies and Services,Services,Task Based Fostering,21/06/2011,918,"1,543.90",Revenue,REDACTED
Childrens & Education Services,Children Looked After (24hrs+),CL Fostering Services,Supplies and Services,Services,Task Based Fostering,21/06/2011,919,"1,543.90",Revenue,REDACTED
Childrens & Education Services,Children Looked After (24hrs+),CL Fostering Services,Supplies and Services,Services,Task Based Fostering,21/06/2011,920,"1,502.66",Revenue,REDACTED
Childrens & Education Services,Children Looked After (24hrs+),CL Fostering Services,Supplies and Services,Services,Task Based Fostering,21/06/2011,921,739.20,Revenue,REDACTED
Childrens & Education Services,Children Looked After (24hrs+),CL Fostering Services,Supplies and Services,Services,Task Based Fostering,21/06/2011,922,"2,300.08",Revenue,REDACTED
Childrens & Education Services,Children Looked After (24hrs+),CL Fostering Services,Supplies and Services,Services,Task Based Fostering,21/06/2011,923,"2,266.12",Revenue,REDACTED
Childrens & Education Services,Children Looked After (24hrs+),CL Fostering Services,Supplies and Services,Services,Task Based Fostering,21/06/2011,924,"1,519.64",Revenue,REDACTED
Childrens & Education Services,Children Looked After (24hrs+),CL Fostering Services,Supplies and Services,Services,Task Based Fostering,21/06/2011,925,891.94,Revenue,REDACTED
Childrens & Education Services,Children Looked After (24hrs+),CL Fostering Services,Supplies and Services,Services,Task Based Fostering,21/06/2011,926,"2,517.86",Revenue,REDACTED
Childrens & Education Services,Children Looked After (24hrs+),CL Fostering Services,Supplies and Services,Services,Task Based Fostering,21/06/2011,927,"3,233.50",Revenue,REDACTED
Childrens & Education Services,Children Looked After (24hrs+),CL Fostering Services,Supplies and Services,Services,Task Based Fostering,21/06/2011,928,"1,737.42",Revenue,REDACTED
Childrens & Education Services,Children Looked After (24hrs+),CL Fostering Services,Supplies and Services,Services,Task Based Fostering,21/06/2011,929,"1,614.30",Revenue,REDACTED
Childrens & Education Services,Children Looked After (24hrs+),CL Fostering Services,Supplies and Services,Services,Task Based Fostering,21/06/2011,930,"3,269.36",Revenue,REDACTED
Childrens & Education Services,Children Looked After (24hrs+),CL Fostering Services,Supplies and Services,Services,Task Based Fostering,21/06/2011,931,"1,560.88",Revenue,REDACTED
Childrens & Education Services,Children Looked After (24hrs+),CL Fostering Services,Supplies and Services,Services,Task Based Fostering,21/06/2011,932,"1,502.66",Revenue,REDACTED
Childrens & Education Services,Children Looked After (24hrs+),CL Fostering Services,Supplies and Services,Services,Task Based Fostering,21/06/2011,933,739.20,Revenue,REDACTED
Childrens & Education Services,Children Looked After (24hrs+),CL Fostering Services,Supplies and Services,Services,Task Based Fostering,21/06/2011,934,780.44,Revenue,REDACTED
Childrens & Education Services,Children Looked After (24hrs+),CL Fostering Services,Supplies and Services,Services,Task Based Fostering,21/06/2011,935,"2,556.42",Revenue,REDACTED
Childrens & Education Services,Children Looked After (24hrs+),CL Fostering Services,Supplies and Services,Services,Task Based Fostering,21/06/2011,936,"1,478.40",Revenue,REDACTED
Childrens & Education Services,Children Looked After (24hrs+),CL Fostering Services,Supplies and Services,Services,Task Based Fostering,21/06/2011,937,780.44,Revenue,REDACTED
Childrens & Education Services,Children Looked After (24hrs+),CL Fostering Services,Supplies and Services,Services,Task Based Fostering,21/06/2011,938,"1,502.66",Revenue,REDACTED
Childrens & Education Services,Children Looked After (24hrs+),CL Fostering Services,Supplies and Services,Services,Task Based Fostering,21/06/2011,939,"2,006.84",Revenue,REDACTED
Childrens & Education Services,Children Looked After (24hrs+),CL Fostering Services,Supplies and Services,Services,Task Based Fostering,21/06/2011,940,739.20,Revenue,REDACTED
Childrens & Education Services,Children Looked After (24hrs+),CL Fostering Services,Supplies and Services,Services,Task Based Fostering,21/06/2011,941,"2,241.86",Revenue,REDACTED
Childrens & Education Services,Children Looked After (24hrs+),CL Fostering Services,Supplies and Services,Services,Task Based Fostering,21/06/2011,942,"1,978.42",Revenue,REDACTED
Childrens & Education Services,Children Looked After (24hrs+),CL Fostering Services,Supplies and Services,Services,Task Based Fostering,21/06/2011,943,"1,179.28",Revenue,REDACTED
Adult Social Care,Adult u65 Phys/Sensory Impair,PD EAST TEAM-Homecare,Third Party Payments,Private Contractors,Miscellaneous Agency Services,22/06/2011,944,676.70,Revenue,COMMUNITY HOME CARE PROVIDER
Adult Social Care,Older People 65&Over inc OP-MH,OP East - Carer Services,Third Party Payments,Private Contractors,Miscellaneous Agency Services,22/06/2011,945,692.90,Revenue,COMMUNITY HOME CARE PROVIDER
Adult Social Care,Older People 65&Over inc OP-MH,OP East - Home Care External,Third Party Payments,Private Contractors,Miscellaneous Agency Services,22/06/2011,946,"1,174.97",Revenue,COMMUNITY HOME CARE PROVIDER
Adult Social Care,Adlt u65 Learning Disabilities,LD Day Care Agency,Third Party Payments,Private Contractors,Miscellaneous Agency Services,22/06/2011,947,954.10,Revenue,GRACE EYRE FOUNDATION
Adult Social Care,Older People 65&Over inc OP-MH,OP West - Home Care External,Third Party Payments,Private Contractors,Miscellaneous Agency Services,22/06/2011,948,"1,112.01",Revenue,HFH HOMECARE LTD
Adult Social Care,Older People 65&Over inc OP-MH,OP East - Carer Services,Third Party Payments,Private Contractors,Miscellaneous Agency Services,22/06/2011,949,"1,718.62",Revenue,HFH HOMECARE LTD
Adult Social Care,Older People 65&Over inc OP-MH,OP East - Home Care External,Third Party Payments,Private Contractors,Miscellaneous Agency Services,22/06/2011,950,"2,798.73",Revenue,HFH HOMECARE LTD
Adult Social Care,Older People 65&Over inc OP-MH,OP Hosp - Home Care External,Third Party Payments,Private Contractors,Miscellaneous Agency Services,22/06/2011,951,684.12,Revenue,PLAN PERSONNEL
Adult Social Care,Adult u65 Mental Health Needs,MH Home Care External - Wim,Third Party Payments,Private Contractors,Miscellaneous Agency Services,22/06/2011,952,881.98,Revenue,PLAN PERSONNEL
Adult Social Care,Adult u65 Phys/Sensory Impair,PD EAST TEAM-Homecare,Third Party Payments,Private Contractors,Miscellaneous Agency Services,22/06/2011,953,"1,852.94",Revenue,PLAN PERSONNEL
Adult Social Care,Adult u65 Phys/Sensory Impair,PD WEST TEAM-Homecare,Third Party Payments,Private Contractors,Miscellaneous Agency Services,22/06/2011,954,"2,333.63",Revenue,PLAN PERSONNEL
Adult Social Care,Adlt u65 Learning Disabilities,LD Home Care External,Third Party Payments,Private Contractors,Miscellaneous Agency Services,22/06/2011,955,"4,812.67",Revenue,PLAN PERSONNEL
Adult Social Care,Older People 65&Over inc OP-MH,OP East - Home Care External,Third Party Payments,Private Contractors,Miscellaneous Agency Services,22/06/2011,956,"15,228.63",Revenue,PLAN PERSONNEL
Adult Social Care,Older People 65&Over inc OP-MH,OP West - Home Care External,Third Party Payments,Private Contractors,Miscellaneous Agency Services,22/06/2011,957,"21,941.63",Revenue,PLAN PERSONNEL
Adult Social Care,Older People 65&Over inc OP-MH,OP Wim - Home Care External,Third Party Payments,Private Contractors,Miscellaneous Agency Services,22/06/2011,958,"1,605.00",Revenue,TOOTING NEIGHBOURHOOD CENTRE
Adult Social Care,Adlt u65 Learning Disabilities,LD Direct Payment Scheme,Third Party Payments,Private Contractors,Direct Payments,22/06/2011,959,502.56,Revenue,REDACTED
Adult Social Care,Older People 65&Over inc OP-MH,OP West -Direct Payment Scheme,Third Party Payments,Private Contractors,Direct Payments,22/06/2011,960,"1,278.00",Revenue,REDACTED
Adult Social Care,Adlt u65 Learning Disabilities,LD Direct Payment Scheme,Third Party Payments,Private Contractors,Direct Payments,22/06/2011,961,"2,275.64",Revenue,REDACTED
Adult Social Care,Adult u65 Phys/Sensory Impair,PD WEST TEAM-Direct Payment,Third Party Payments,Private Contractors,Direct Payments,22/06/2011,962,596.40,Revenue,REDACTED
Adult Social Care,Older People 65&Over inc OP-MH,OP West -Direct Payment Scheme,Third Party Payments,Private Contractors,Direct Payments,22/06/2011,963,695.28,Revenue,REDACTED
Adult Social Care,Adlt u65 Learning Disabilities,LD Direct Payment Scheme,Third Party Payments,Private Contractors,Direct Payments,22/06/2011,964,593.88,Revenue,REDACTED
Adult Social Care,Adult u65 Phys/Sensory Impair,PD WEST TEAM-Direct Payment,Third Party Payments,Private Contractors,Direct Payments,22/06/2011,965,881.60,Revenue,REDACTED
Adult Social Care,Adult u65 Phys/Sensory Impair,PD EAST TEAM-Direct Payment,Third Party Payments,Private Contractors,Direct Payments,22/06/2011,966,"2,301.80",Revenue,REDACTED
Adult Social Care,Older People 65&Over inc OP-MH,OP West -Direct Payment Scheme,Third Party Payments,Private Contractors,Direct Payments,22/06/2011,967,"1,911.60",Revenue,REDACTED
Adult Social Care,Older People 65&Over inc OP-MH,OP Hosp -Direct Payment Scheme,Third Party Payments,Private Contractors,Direct Payments,22/06/2011,968,894.60,Revenue,REDACTED
Adult Social Care,Adult u65 Phys/Sensory Impair,PD WEST TEAM-Direct Payment,Third Party Payments,Private Contractors,Direct Payments,22/06/2011,969,792.00,Revenue,REDACTED
Adult Social Care,Adult u65 Phys/Sensory Impair,PD EAST TEAM-Direct Payment,Third Party Payments,Private Contractors,Direct Payments,22/06/2011,970,"1,150.20",Revenue,REDACTED
Adult Social Care,Adlt u65 Learning Disabilities,LD Direct Payment Scheme,Third Party Payments,Private Contractors,Direct Payments,22/06/2011,971,566.16,Revenue,REDACTED
Adult Social Care,Older People 65&Over inc OP-MH,OP West -Direct Payment Scheme,Third Party Payments,Private Contractors,Direct Payments,22/06/2011,972,670.96,Revenue,REDACTED
Adult Social Care,Older People 65&Over inc OP-MH,OP West -Direct Payment Scheme,Third Party Payments,Private Contractors,Direct Payments,22/06/2011,973,"1,566.56",Revenue,REDACTED
Adult Social Care,Adult u65 Phys/Sensory Impair,PD EAST TEAM-Direct Payment,Third Party Payments,Private Contractors,Direct Payments,22/06/2011,974,668.88,Revenue,REDACTED
Adult Social Care,Older People 65&Over inc OP-MH,OP Hosp - Nursing Care,Third Party Payments,Private Contractors,Miscellaneous Agency Services,22/06/2011,975,"2,452.34",Revenue,ASHURST PARK CARE CENTRE
Adult Social Care,Adlt u65 Learning Disabilities,LD Residential Care External,Customer and client receipts,Charges,Miscellaneous Charges X,22/06/2011,976,-917.84,Revenue,ASRA G.LONDON HOUSING ASS.LTD
Adult Social Care,Adlt u65 Learning Disabilities,LD Residential Care External,Third Party Payments,Private Contractors,Miscellaneous Agency Services,22/06/2011,977,"3,661.44",Revenue,ASRA G.LONDON HOUSING ASS.LTD
Adult Social Care,Older People 65&Over inc OP-MH,OP West - Nursing Care,Third Party Payments,Private Contractors,Miscellaneous Agency Services,22/06/2011,978,859.50,Revenue,BUPA CARE HOMES
Adult Social Care,Older People 65&Over inc OP-MH,OP East - Nursing Care,Third Party Payments,Private Contractors,Miscellaneous Agency Services,22/06/2011,979,"2,533.72",Revenue,CARE UK
Adult Social Care,Adult u65 Mental Health Needs,MH Res Care Ext- Mitcham West,Third Party Payments,Private Contractors,Miscellaneous Agency Services,22/06/2011,980,"1,497.04",Revenue,ENNIS REST HOME
Adult Social Care,Adlt u65 Learning Disabilities,LD Residential Care External,Third Party Payments,Private Contractors,Miscellaneous Agency Services,22/06/2011,981,"4,113.72",Revenue,ESTHER CARE HOMES LIMITED
Adult Social Care,Older People 65&Over inc OP-MH,OP West - Residential Care Ext,Customer and client receipts,Charges,Miscellaneous Charges X,22/06/2011,982,"-1,113.60",Revenue,LINK HOUSE
Adult Social Care,Older People 65&Over inc OP-MH,OP West - Nursing Care,Customer and client receipts,Charges,Bd&Acc-contrib coll by home X,22/06/2011,983,-635.68,Revenue,LINK HOUSE
Adult Social Care,Older People 65&Over inc OP-MH,OP Hosp - Residential Care Ext,Third Party Payments,Private Contractors,Miscellaneous Agency Services,22/06/2011,984,"7,865.44",Revenue,LINK HOUSE
Adult Social Care,Older People 65&Over inc OP-MH,OP East - Residential Care Ext,Third Party Payments,Private Contractors,Miscellaneous Agency Services,22/06/2011,985,"8,021.84",Revenue,LINK HOUSE
Adult Social Care,Older People 65&Over inc OP-MH,OP East - Nursing Care,Third Party Payments,Private Contractors,Miscellaneous Agency Services,22/06/2011,986,"9,937.99",Revenue,LINK HOUSE
Adult Social Care,Older People 65&Over inc OP-MH,OP West - Nursing Care,Third Party Payments,Private Contractors,Miscellaneous Agency Services,22/06/2011,987,"23,067.09",Revenue,LINK HOUSE
Adult Social Care,Older People 65&Over inc OP-MH,OP West - Residential Care Ext,Third Party Payments,Private Contractors,Miscellaneous Agency Services,22/06/2011,988,"37,595.44",Revenue,LINK HOUSE
Adult Social Care,Older People 65&Over inc OP-MH,OP East - Residential Care Ext,Third Party Payments,Private Contractors,Miscellaneous Agency Services,22/06/2011,989,"1,675.60",Revenue,MANOR HOUSE RESIDENTIAL HOME
Adult Social Care,Adlt u65 Learning Disabilities,LD Residential Care External,Third Party Payments,Private Contractors,Miscellaneous Agency Services,22/06/2011,990,"2,904.52",Revenue,ST MICHAEL'S ADULT SERVICES
Adult Social Care,Older People 65&Over inc OP-MH,OP East - Residential Care Ext,Third Party Payments,Private Contractors,Miscellaneous Agency Services,22/06/2011,991,"1,464.64",Revenue,ROSEDALE REST HOME
Adult Social Care,Older People 65&Over inc OP-MH,OP East - Residential Care Ext,Third Party Payments,Private Contractors,Miscellaneous Agency Services,22/06/2011,992,"1,021.74",Revenue,ROSEDALE REST HOME
Adult Social Care,Older People 65&Over inc OP-MH,OP East - Residential Care Ext,Third Party Payments,Private Contractors,Miscellaneous Agency Services,22/06/2011,993,"1,786.40",Revenue,ROSEDALE REST HOME
Adult Social Care,Older People 65&Over inc OP-MH,OP East - Residential Care Ext,Third Party Payments,Private Contractors,Miscellaneous Agency Services,22/06/2011,994,"1,745.80",Revenue,ROSEDALE REST HOME
Adult Social Care,Older People 65&Over inc OP-MH,OP Hosp - Residential Care Ext,Third Party Payments,Private Contractors,Miscellaneous Agency Services,22/06/2011,995,"1,799.84",Revenue,ROSEDALE REST HOME
Adult Social Care,Older People 65&Over inc OP-MH,OP West - Residential Care Ext,Third Party Payments,Private Contractors,Miscellaneous Agency Services,22/06/2011,996,"2,100.00",Revenue,THE DEVONSHIRE RESID CARE HOME
Adult Social Care,Older People 65&Over inc OP-MH,OP East - Residential Care Ext,Customer and client receipts,Charges,Miscellaneous Charges X,22/06/2011,997,-606.60,Revenue,LANGLEY HOUSE TRUST
Adult Social Care,Older People 65&Over inc OP-MH,OP East - Residential Care Ext,Third Party Payments,Private Contractors,Miscellaneous Agency Services,22/06/2011,998,"1,632.64",Revenue,LANGLEY HOUSE TRUST
Adult Social Care,Adlt u65 Learning Disabilities,LD Residential Care External,Third Party Payments,Private Contractors,Miscellaneous Agency Services,22/06/2011,999,"5,717.76",Revenue,WINSLOW COURT
Adult Social Care,Adult u65 Mental Health Needs,HS Adult Placements,Third Party Payments,Private Contractors,Accommodation Based Support,22/06/2011,1000,"3,184.16",Revenue,REDACTED
Adult Social Care,Adult u65 Mental Health Needs,HS Adult Placements,Third Party Payments,Private Contractors,Accommodation Based Support,22/06/2011,1001,879.28,Revenue,REDACTED
Adult Social Care,Adult u65 Mental Health Needs,MH Adult Placement Cont-Morden,Third Party Payments,Private Contractors,Accommodation Based Support,22/06/2011,1002,879.28,Revenue,REDACTED
Adult Social Care,Adlt u65 Learning Disabilities,LD AdultPlacementCont,Third Party Payments,Private Contractors,Accommodation Based Support,22/06/2011,1003,606.40,Revenue,REDACTED
Adult Social Care,Adult u65 Mental Health Needs,HS Adult Placements,Third Party Payments,Private Contractors,Accommodation Based Support,22/06/2011,1004,"1,804.32",Revenue,REDACTED
Adult Social Care,Older People 65&Over inc OP-MH,OP East - Residential Care Ext,Third Party Payments,Private Contractors,Miscellaneous Agency Services,22/06/2011,1005,"9,299.79",Revenue,LINK HOUSE
Adult Social Care,Adult u65 Mental Health Needs,MH Adult Placement Cont-Morden,Third Party Payments,Private Contractors,Accommodation Based Support,22/06/2011,1006,848.96,Revenue,EL-SHADDAI
Adult Social Care,Adult u65 Mental Health Needs,MH Adult PlacementCont-MitWest,Third Party Payments,Private Contractors,Accommodation Based Support,22/06/2011,1007,848.96,Revenue,EL-SHADDAI
Childrens & Education Services,Family Support Services,CS Day Care CWD,Third Party Payments,Private Contractors,Miscellaneous Agency Services,22/06/2011,1008,"1,710.00",Revenue,JOSEPH HOOD FIRST SCHOOL
Childrens & Education Services,Other Ch's & Family Services,CL Leaving Care/Supp Lodgings,Third Party Payments,Private Contractors,Miscellaneous Agency Services,22/06/2011,1009,"1,280.00",Revenue,KEYA SUPPORT LTD
Childrens & Education Services,Other Ch's & Family Services,CL Leaving Care/Supp Lodgings,Third Party Payments,Private Contractors,Miscellaneous Agency Services,22/06/2011,1010,800.00,Revenue,KEYA SUPPORT LTD
Childrens & Education Services,Other Ch's & Family Services,CL Leaving Care/Supp Lodgings,Third Party Payments,Private Contractors,Miscellaneous Agency Services,22/06/2011,1011,"1,199.80",Revenue,ON BEHALF SP HOMES LTD NO2 ACC
Adult Social Care,Adult u65 Phys/Sensory Impair,PD WEST TEAM-Direct Payment,Third Party Payments,Private Contractors,Direct Payments,22/06/2011,1012,"1,244.04",Revenue,REDACTED
Adult Social Care,Older People 65&Over inc OP-MH,OP East -Direct Payment Scheme,Third Party Payments,Private Contractors,Direct Payments,22/06/2011,1013,"2,384.16",Revenue,REDACTED
Adult Social Care,Older People 65&Over inc OP-MH,OP East -Direct Payment Scheme,Third Party Payments,Private Contractors,Direct Payments,22/06/2011,1014,"1,704.00",Revenue,REDACTED
Adult Social Care,Adlt u65 Learning Disabilities,LD Direct Payment Scheme,Third Party Payments,Private Contractors,Direct Payments,22/06/2011,1015,533.28,Revenue,REDACTED
Adult Social Care,Adult u65 Phys/Sensory Impair,PD EAST TEAM-Direct Payment,Third Party Payments,Private Contractors,Direct Payments,22/06/2011,1016,"1,155.10",Revenue,REDACTED
Adult Social Care,Older People 65&Over inc OP-MH,OP East -Direct Payment Scheme,Third Party Payments,Private Contractors,Direct Payments,22/06/2011,1017,833.20,Revenue,REDACTED
Adult Social Care,Adult u65 Phys/Sensory Impair,PD EAST TEAM-Direct Payment,Third Party Payments,Private Contractors,Direct Payments,22/06/2011,1018,511.20,Revenue,REDACTED
Adult Social Care,Older People 65&Over inc OP-MH,OP West -Direct Payment Scheme,Third Party Payments,Private Contractors,Direct Payments,22/06/2011,1019,894.60,Revenue,REDACTED
Adult Social Care,Adult u65 Phys/Sensory Impair,PD EAST TEAM-Direct Payment,Third Party Payments,Private Contractors,Direct Payments,22/06/2011,1020,894.60,Revenue,REDACTED
Adult Social Care,Older People 65&Over inc OP-MH,OP East -Direct Payment Scheme,Third Party Payments,Private Contractors,Direct Payments,22/06/2011,1021,"1,130.76",Revenue,REDACTED
Adult Social Care,Older People 65&Over inc OP-MH,OP West -Direct Payment Scheme,Third Party Payments,Private Contractors,Direct Payments,22/06/2011,1022,"1,172.64",Revenue,REDACTED
Adult Social Care,Older People 65&Over inc OP-MH,OP East -Direct Payment Scheme,Third Party Payments,Private Contractors,Direct Payments,22/06/2011,1023,521.84,Revenue,REDACTED
Adult Social Care,Older People 65&Over inc OP-MH,OP East -Direct Payment Scheme,Third Party Payments,Private Contractors,Direct Payments,22/06/2011,1024,"1,278.00",Revenue,REDACTED
Adult Social Care,Older People 65&Over inc OP-MH,OP Hosp -Direct Payment Scheme,Third Party Payments,Private Contractors,Direct Payments,22/06/2011,1025,"4,038.68",Revenue,REDACTED
Adult Social Care,Adlt u65 Learning Disabilities,LD Direct Payment Scheme,Third Party Payments,Private Contractors,Direct Payments,22/06/2011,1026,"5,352.52",Revenue,REDACTED
Adult Social Care,Adult u65 Phys/Sensory Impair,PD WEST TEAM-Direct Payment,Third Party Payments,Private Contractors,Direct Payments,22/06/2011,1027,"1,280.00",Revenue,REDACTED
Adult Social Care,Older People 65&Over inc OP-MH,OP East -Direct Payment Scheme,Third Party Payments,Private Contractors,Direct Payments,22/06/2011,1028,500.52,Revenue,REDACTED
Adult Social Care,Older People 65&Over inc OP-MH,OP West -Direct Payment Scheme,Third Party Payments,Private Contractors,Direct Payments,22/06/2011,1029,745.48,Revenue,REDACTED
Adult Social Care,Older People 65&Over inc OP-MH,OP East -Direct Payment Scheme,Third Party Payments,Private Contractors,Direct Payments,22/06/2011,1030,"1,132.72",Revenue,REDACTED
Adult Social Care,Adult u65 Phys/Sensory Impair,PD WEST TEAM-Direct Payment,Third Party Payments,Private Contractors,Direct Payments,22/06/2011,1031,"3,444.28",Revenue,REDACTED
Adult Social Care,Adult u65 Phys/Sensory Impair,PD EAST TEAM-Direct Payment,Third Party Payments,Private Contractors,Direct Payments,22/06/2011,1032,"1,022.40",Revenue,REDACTED
Adult Social Care,Adult u65 Phys/Sensory Impair,PD EAST TEAM-Direct Payment,Third Party Payments,Private Contractors,Direct Payments,22/06/2011,1033,766.80,Revenue,REDACTED
Adult Social Care,Older People 65&Over inc OP-MH,OP East -Direct Payment Scheme,Third Party Payments,Private Contractors,Direct Payments,22/06/2011,1034,607.04,Revenue,REDACTED
